Department Family,Entity,Date,Expense Type,Expense Area,Supplier,Transaction Number,Amount,Item Description
BEIS,UKRI - AHRC,25/03/2019,Research Grant Expenditure,Research Grants,Aberystwyth University,98424740,"52,801.21",Research Grant Expenditure
BEIS,UKRI - AHRC,25/03/2019,Research Grant Expenditure,RCUK Newton Programme,Aberystwyth University,98424882,"30,956.48",Research Grant Expenditure
BEIS,UKRI - AHRC,07/03/2019,Recruitment Costs,HR,Agenda Resource Management Ltd,98421527,155.91,Recruitment Costs
BEIS,UKRI - AHRC,20/03/2019,Recruitment Costs,PSU JRS,Agenda Resource Management Ltd,98441516,57.97,Recruitment Costs
BEIS,UKRI - AHRC,21/03/2019,Recruitment Costs,Corporate Services,Agenda Resource Management Ltd,98441513,160.24,Recruitment Costs
BEIS,UKRI - AHRC,21/03/2019,Recruitment Costs,Corporate Services,Agenda Resource Management Ltd,98441514,160.24,Recruitment Costs
BEIS,UKRI - AHRC,21/03/2019,Recruitment Costs,Corporate Services,Agenda Resource Management Ltd,98441515,160.24,Recruitment Costs
BEIS,UKRI - AHRC,21/03/2019,Recruitment Costs,Corporate Services,Agenda Resource Management Ltd,98441517,61.63,Recruitment Costs
BEIS,UKRI - AHRC,21/03/2019,Recruitment Costs,Corporate Services,Agenda Resource Management Ltd,98441517,161.62,Recruitment Costs
BEIS,UKRI - AHRC,21/03/2019,Recruitment Costs,Corporate Services,Agenda Resource Management Ltd,98441519,160.24,Recruitment Costs
BEIS,UKRI - AHRC,28/03/2019,Recruitment Costs,Corporate Services,Agenda Resource Management Ltd,98447629,160.24,Recruitment Costs
BEIS,UKRI - AHRC,13/03/2019,Contract Staff,PSU Project Office,Alexander Mann Solutions Ltd,98435923,"3,766.62",Contract Staff
BEIS,UKRI - AHRC,15/03/2019,Contract Staff,PSU JRS,Alexander Mann Solutions Ltd,98435932,"2,684.69",Contract Staff
BEIS,UKRI - AHRC,26/03/2019,Contract Staff,PSU Project Office,Alexander Mann Solutions Ltd,98439526,"7,533.24",Contract Staff
BEIS,UKRI - AHRC,27/03/2019,Contract Staff,PSU Project Office,Alexander Mann Solutions Ltd,98396466,"3,096.96",Contract Staff
BEIS,UKRI - AHRC,27/03/2019,Contract Staff,PSU Project Office,Alexander Mann Solutions Ltd,98402596,"3,096.96",Contract Staff
BEIS,UKRI - AHRC,27/03/2019,Contract Staff,PSU Project Office,Alexander Mann Solutions Ltd,98411809,"6,193.92",Contract Staff
BEIS,UKRI - AHRC,15/03/2019,Council & Committee Honoraria,New Programme Development,Areti Galani,98420164,85.00,Council & Committee Honoraria
BEIS,UKRI - AHRC,25/03/2019,Research Grant Expenditure,Networks & Workshops,Arts University Bournemouth,98424855,"3,005.46",Research Grant Expenditure
BEIS,UKRI - AHRC,25/03/2019,Research Grant Expenditure,Fund for International Collaboration (FIC),Bangor University,98425043,"7,566.09",Research Grant Expenditure
BEIS,UKRI - AHRC,07/03/2019,Provisions ( Food etc),HR,Banner Group Ltd,98421114,41.18,Provisions ( Food etc)
BEIS,UKRI - AHRC,21/03/2019,Provisions ( Food etc),HR,Banner Group Ltd,98441119,7.48,Provisions ( Food etc)
BEIS,UKRI - AHRC,21/03/2019,Purchase of non capital equipment,HR,Banner Group Ltd,98441119,24.00,Purchase of non capital equipment
BEIS,UKRI - AHRC,25/03/2019,Research Grant Expenditure,Connected Communities Programme,Bath Spa University,98424741,"91,367.02",Research Grant Expenditure
BEIS,UKRI - AHRC,25/03/2019,Research Grant Expenditure,Global Challenges Research Fund (GCRF),Bath Spa University,98424895,"85,251.68",Research Grant Expenditure
BEIS,UKRI - AHRC,25/03/2019,Research Grant Expenditure,Networks & Workshops,Bath Spa University,98425080,"(3,531.74)",Research Grant Expenditure
BEIS,UKRI - AHRC,25/03/2019,Fellowships,Research Fellowships,Bath Spa University,98425254,"14,055.85",Fellowships
BEIS,UKRI - AHRC,05/03/2019,Research Grant Expenditure,Global Challenges Research Fund (GCRF),Biotechnology and Biological Sciences Research Council (BBSRC),98418646,"11,018.82",Research Grant Expenditure
BEIS,UKRI - AHRC,19/03/2019,Secondments,Communications,Biotechnology and Biological Sciences Research Council (BBSRC),98437624,"1,561.99",Secondments
BEIS,UKRI - AHRC,25/03/2019,Research Grant Expenditure,Research Grants,Birkbeck College,98424682,"66,292.88",Research Grant Expenditure
BEIS,UKRI - AHRC,25/03/2019,Research Grant Expenditure,Research Grants,Birkbeck College,98424690,"15,343.11",Research Grant Expenditure
BEIS,UKRI - AHRC,25/03/2019,Research Grant Expenditure,Research Grants,Birkbeck College,98424885,"66,354.48",Research Grant Expenditure
BEIS,UKRI - AHRC,25/03/2019,Research Grant Expenditure,Research Grants,Birkbeck College,98424885,"66,354.48",Research Grant Expenditure
BEIS,UKRI - AHRC,25/03/2019,Research Grant Expenditure,Networks & Workshops,Birkbeck College,98424973,"6,953.67",Research Grant Expenditure
BEIS,UKRI - AHRC,25/03/2019,Research Grant Expenditure,Research Grants,Birmingham City University,98424678,"34,020.85",Research Grant Expenditure
BEIS,UKRI - AHRC,25/03/2019,Research Grant Expenditure,Research Grants,Birmingham City University,98424776,"42,558.28",Research Grant Expenditure
BEIS,UKRI - AHRC,25/03/2019,Research Grant Expenditure,Networks & Workshops,Birmingham City University,98424859,"4,090.71",Research Grant Expenditure
BEIS,UKRI - AHRC,25/03/2019,Research Grant Expenditure,Networks & Workshops,Birmingham City University,98424923,"3,377.71",Research Grant Expenditure
BEIS,UKRI - AHRC,25/03/2019,Research Grant Expenditure,Fund for International Collaboration (FIC),Birmingham City University,98425045,"12,350.03",Research Grant Expenditure
BEIS,UKRI - AHRC,25/03/2019,Research Grant Expenditure,Networks & Workshops,Birmingham City University,98425074,"3,707.85",Research Grant Expenditure
BEIS,UKRI - AHRC,25/03/2019,Fellowships,NPIF Research Talent (RCUK Innovation Fellowships),Birmingham City University,98425242,"22,868.53",Fellowships
BEIS,UKRI - AHRC,25/03/2019,Research Grant Expenditure,Research Grants,British Institute Of International And Comparative Law,98424858,"27,753.07",Research Grant Expenditure
BEIS,UKRI - AHRC,25/03/2019,Research Grant Expenditure,Global Challenges Research Fund (GCRF),British Museum,98425125,"12,114.55",Research Grant Expenditure
BEIS,UKRI - AHRC,25/03/2019,Research Grant Expenditure,Connected Communities Programme,Brunel University London,98424663,"101,993.61",Research Grant Expenditure
BEIS,UKRI - AHRC,25/03/2019,Research Grant Expenditure,Newton Programme,Brunel University London,98424899,"18,479.91",Research Grant Expenditure
BEIS,UKRI - AHRC,25/03/2019,Fellowships,Research Fellowships,Brunel University London,98425250,"19,960.86",Fellowships
BEIS,UKRI - AHRC,15/03/2019,Council & Committee Honoraria,New Programme Development,Bryce Lease,98437289,170.00,Council & Committee Honoraria
BEIS,UKRI - AHRC,28/03/2019,Printing & Stationery,HR,C3 Marketing Ltd,98448918,"2,460.00",Printing & Stationery
BEIS,UKRI - AHRC,21/03/2019,Hospitality,GCRF - Programme Delivery,Calder Conference Ltd,98442857,"7,281.00",Hospitality
BEIS,UKRI - AHRC,29/03/2019,Hospitality,Business Process & Analysis,Calder Conference Ltd,98451106,275.29,Hospitality
BEIS,UKRI - AHRC,25/03/2019,Fellowships,Research Fellowships,Cardiff Metropolitan University,98425185,"20,194.66",Fellowships
BEIS,UKRI - AHRC,25/03/2019,Research Grant Expenditure,Research Grants,Cardiff University,98424720,"15,655.61",Research Grant Expenditure
BEIS,UKRI - AHRC,25/03/2019,Research Grant Expenditure,Research Grants,Cardiff University,98424722,"16,703.93",Research Grant Expenditure
BEIS,UKRI - AHRC,25/03/2019,Research Grant Expenditure,Research Grants,Cardiff University,98424783,"27,158.03",Research Grant Expenditure
BEIS,UKRI - AHRC,25/03/2019,Research Grant Expenditure,Networks & Workshops,Cardiff University,98424788,"4,521.99",Research Grant Expenditure
BEIS,UKRI - AHRC,25/03/2019,Research Grant Expenditure,Research Grants,Cardiff University,98424823,"22,402.96",Research Grant Expenditure
BEIS,UKRI - AHRC,25/03/2019,Research Grant Expenditure,Networks & Workshops,Cardiff University,98424832,"4,214.82",Research Grant Expenditure
BEIS,UKRI - AHRC,25/03/2019,Research Grant Expenditure,Newton Programme,Cardiff University,98424835,"13,951.50",Research Grant Expenditure
BEIS,UKRI - AHRC,25/03/2019,Research Grant Expenditure,Industrial Strategy Challenge Fund (ISCF) - Creative Clusters,Cardiff University,98424954,"292,341.93",Research Grant Expenditure
BEIS,UKRI - AHRC,25/03/2019,Research Grant Expenditure,Fund for International Collaboration (FIC),Cardiff University,98425047,"12,602.05",Research Grant Expenditure
BEIS,UKRI - AHRC,25/03/2019,Fellowships,Research Fellowships,Cardiff University,98425193,"29,557.24",Fellowships
BEIS,UKRI - AHRC,14/03/2019,Voluntary Deductions,Balance Sheet,Chargive,98431970,7.00,Voluntary Deductions
BEIS,UKRI - AHRC,14/03/2019,Voluntary Deductions,Balance Sheet,Civil Service Benevolent Fund,98431969,3.00,Voluntary Deductions
BEIS,UKRI - AHRC,27/03/2019,UK - Professional Memberships & Subscriptions,CLARIN,Clarin Eric,98444863,"11,554.59",UK - Professional Memberships & Subscriptions
BEIS,UKRI - AHRC,13/03/2019,Non-staff travel and subsistance,Communications,Corporate Travel Management (North) Ltd,98434805,0.50,Non-staff travel and subsistance
BEIS,UKRI - AHRC,13/03/2019,Non-staff travel and subsistance,Communications,Corporate Travel Management (North) Ltd,98434805,221.40,Non-staff travel and subsistance
BEIS,UKRI - AHRC,13/03/2019,Non-staff travel and subsistance,Communications,Corporate Travel Management (North) Ltd,98434805,0.50,Non-staff travel and subsistance
BEIS,UKRI - AHRC,13/03/2019,Non-staff travel and subsistance,Communications,Corporate Travel Management (North) Ltd,98434805,221.40,Non-staff travel and subsistance
BEIS,UKRI - AHRC,13/03/2019,Non-staff travel and subsistance,Communications,Corporate Travel Management (North) Ltd,98434805,0.50,Non-staff travel and subsistance
BEIS,UKRI - AHRC,13/03/2019,Non-staff travel and subsistance,Communications,Corporate Travel Management (North) Ltd,98434805,221.40,Non-staff travel and subsistance
BEIS,UKRI - AHRC,13/03/2019,Non-staff travel and subsistance,Communications,Corporate Travel Management (North) Ltd,98434805,0.50,Non-staff travel and subsistance
BEIS,UKRI - AHRC,13/03/2019,Non-staff travel and subsistance,Communications,Corporate Travel Management (North) Ltd,98434805,110.70,Non-staff travel and subsistance
BEIS,UKRI - AHRC,13/03/2019,Non-staff travel and subsistance,Communications,Corporate Travel Management (North) Ltd,98434805,0.40,Non-staff travel and subsistance
BEIS,UKRI - AHRC,13/03/2019,Non-staff travel and subsistance,"Histories,Culture & Heritage",Corporate Travel Management (North) Ltd,98434805,0.50,Non-staff travel and subsistance
BEIS,UKRI - AHRC,13/03/2019,Non-staff travel and subsistance,"Histories,Culture & Heritage",Corporate Travel Management (North) Ltd,98434805,92.00,Non-staff travel and subsistance
BEIS,UKRI - AHRC,13/03/2019,Non-staff travel and subsistance,"Histories,Culture & Heritage",Corporate Travel Management (North) Ltd,98434805,0.50,Non-staff travel and subsistance
BEIS,UKRI - AHRC,13/03/2019,Non-staff travel and subsistance,"Histories,Culture & Heritage",Corporate Travel Management (North) Ltd,98434805,75.00,Non-staff travel and subsistance
BEIS,UKRI - AHRC,13/03/2019,Non-staff travel and subsistance,"Histories,Culture & Heritage",Corporate Travel Management (North) Ltd,98434805,0.50,Non-staff travel and subsistance
BEIS,UKRI - AHRC,13/03/2019,Non-staff travel and subsistance,"Histories,Culture & Heritage",Corporate Travel Management (North) Ltd,98434805,92.00,Non-staff travel and subsistance
BEIS,UKRI - AHRC,13/03/2019,Non-staff travel and subsistance,"Histories,Culture & Heritage",Corporate Travel Management (North) Ltd,98434805,0.30,Non-staff travel and subsistance
BEIS,UKRI - AHRC,13/03/2019,Non-staff travel and subsistance,International,Corporate Travel Management (North) Ltd,98434805,137.50,Non-staff travel and subsistance
BEIS,UKRI - AHRC,13/03/2019,T&S Overseas - Accommodation,"AHRC - Strategic Planning, Evidence & Impact",Corporate Travel Management (North) Ltd,98434805,194.51,T&S Overseas - Accommodation
BEIS,UKRI - AHRC,13/03/2019,T&S Overseas - Accommodation,Business Process & Analysis,Corporate Travel Management (North) Ltd,98434805,293.91,T&S Overseas - Accommodation
BEIS,UKRI - AHRC,13/03/2019,T&S Overseas - Accommodation,"Histories,Culture & Heritage",Corporate Travel Management (North) Ltd,98434805,311.04,T&S Overseas - Accommodation
BEIS,UKRI - AHRC,13/03/2019,T&S Overseas - Accommodation,JPI Cultural Heritage Project,Corporate Travel Management (North) Ltd,98434805,159.31,T&S Overseas - Accommodation
BEIS,UKRI - AHRC,13/03/2019,T&S Overseas - Accommodation,SMT,Corporate Travel Management (North) Ltd,98434805,197.18,T&S Overseas - Accommodation
BEIS,UKRI - AHRC,13/03/2019,T&S Overseas - Accommodation,SMT,Corporate Travel Management (North) Ltd,98434805,192.09,T&S Overseas - Accommodation
BEIS,UKRI - AHRC,13/03/2019,T&S Overseas - Flights,HR,Corporate Travel Management (North) Ltd,98434805,13.50,T&S Overseas - Flights
BEIS,UKRI - AHRC,13/03/2019,T&S Overseas - Flights,HR,Corporate Travel Management (North) Ltd,98434805,"1,091.47",T&S Overseas - Flights
BEIS,UKRI - AHRC,13/03/2019,T&S Overseas - Flights,HR,Corporate Travel Management (North) Ltd,98434805,604.00,T&S Overseas - Flights
BEIS,UKRI - AHRC,13/03/2019,T&S Overseas - Flights,HR,Corporate Travel Management (North) Ltd,98434805,168.74,T&S Overseas - Flights
BEIS,UKRI - AHRC,13/03/2019,T&S Overseas - Flights,HR,Corporate Travel Management (North) Ltd,98434805,265.64,T&S Overseas - Flights
BEIS,UKRI - AHRC,13/03/2019,T&S Overseas - Flights,HR,Corporate Travel Management (North) Ltd,98434805,58.00,T&S Overseas - Flights
BEIS,UKRI - AHRC,13/03/2019,T&S Overseas - Flights,HR,Corporate Travel Management (North) Ltd,98434805,220.99,T&S Overseas - Flights
BEIS,UKRI - AHRC,13/03/2019,T&S Overseas - Flights,International,Corporate Travel Management (North) Ltd,98434805,2.16,T&S Overseas - Flights
BEIS,UKRI - AHRC,13/03/2019,T&S Overseas - Flights,International,Corporate Travel Management (North) Ltd,98434805,322.22,T&S Overseas - Flights
BEIS,UKRI - AHRC,13/03/2019,T&S Overseas - Flights,International,Corporate Travel Management (North) Ltd,98434805,2.16,T&S Overseas - Flights
BEIS,UKRI - AHRC,13/03/2019,T&S Overseas - Flights,International,Corporate Travel Management (North) Ltd,98434805,332.42,T&S Overseas - Flights
BEIS,UKRI - AHRC,13/03/2019,T&S Overseas - Flights,SMT,Corporate Travel Management (North) Ltd,98434805,2.16,T&S Overseas - Flights
BEIS,UKRI - AHRC,13/03/2019,T&S Overseas - Flights,SMT,Corporate Travel Management (North) Ltd,98434805,322.22,T&S Overseas - Flights
BEIS,UKRI - AHRC,13/03/2019,T&S Overseas - Flights,SMT,Corporate Travel Management (North) Ltd,98434805,2.16,T&S Overseas - Flights
BEIS,UKRI - AHRC,13/03/2019,T&S Overseas - Flights,SMT,Corporate Travel Management (North) Ltd,98434805,322.22,T&S Overseas - Flights
BEIS,UKRI - AHRC,13/03/2019,T&S Overseas - Flights,SMT,Corporate Travel Management (North) Ltd,98434805,2.16,T&S Overseas - Flights
BEIS,UKRI - AHRC,13/03/2019,T&S Overseas - Flights,SMT,Corporate Travel Management (North) Ltd,98434805,302.22,T&S Overseas - Flights
BEIS,UKRI - AHRC,13/03/2019,T&S Overseas - Flights,SMT,Corporate Travel Management (North) Ltd,98434805,2.16,T&S Overseas - Flights
BEIS,UKRI - AHRC,13/03/2019,T&S Overseas - Flights,SMT,Corporate Travel Management (North) Ltd,98434805,322.22,T&S Overseas - Flights
BEIS,UKRI - AHRC,13/03/2019,T&S Overseas - Flights,SMT,Corporate Travel Management (North) Ltd,98434805,156.00,T&S Overseas - Flights
BEIS,UKRI - AHRC,13/03/2019,T&S Overseas - Public Transport,"AHRC - Strategic Planning, Evidence & Impact",Corporate Travel Management (North) Ltd,98434805,0.50,T&S Overseas - Public Transport
BEIS,UKRI - AHRC,13/03/2019,T&S Overseas - Public Transport,"AHRC - Strategic Planning, Evidence & Impact",Corporate Travel Management (North) Ltd,98434805,1.44,T&S Overseas - Public Transport
BEIS,UKRI - AHRC,13/03/2019,T&S Overseas - Public Transport,"AHRC - Strategic Planning, Evidence & Impact",Corporate Travel Management (North) Ltd,98434805,307.37,T&S Overseas - Public Transport
BEIS,UKRI - AHRC,13/03/2019,T&S Overseas - Public Transport,"AHRC - Strategic Planning, Evidence & Impact",Corporate Travel Management (North) Ltd,98434805,0.39,T&S Overseas - Public Transport
BEIS,UKRI - AHRC,13/03/2019,T&S Overseas - Public Transport,HR,Corporate Travel Management (North) Ltd,98434805,16.50,T&S Overseas - Public Transport
BEIS,UKRI - AHRC,13/03/2019,T&S Overseas - Public Transport,HR,Corporate Travel Management (North) Ltd,98434805,32.10,T&S Overseas - Public Transport
BEIS,UKRI - AHRC,13/03/2019,T&S UK - Accommodation,Business Process & Analysis,Corporate Travel Management (North) Ltd,98434805,0.50,T&S UK - Accommodation
BEIS,UKRI - AHRC,13/03/2019,T&S UK - Accommodation,Business Process & Analysis,Corporate Travel Management (North) Ltd,98434805,220.68,T&S UK - Accommodation
BEIS,UKRI - AHRC,13/03/2019,T&S UK - Accommodation,Business Process & Analysis,Corporate Travel Management (North) Ltd,98434805,0.50,T&S UK - Accommodation
BEIS,UKRI - AHRC,13/03/2019,T&S UK - Accommodation,Business Process & Analysis,Corporate Travel Management (North) Ltd,98434805,1.44,T&S UK - Accommodation
BEIS,UKRI - AHRC,13/03/2019,T&S UK - Accommodation,Business Process & Analysis,Corporate Travel Management (North) Ltd,98434805,180.00,T&S UK - Accommodation
BEIS,UKRI - AHRC,13/03/2019,T&S UK - Accommodation,Business Process & Analysis,Corporate Travel Management (North) Ltd,98434805,0.50,T&S UK - Accommodation
BEIS,UKRI - AHRC,13/03/2019,T&S UK - Accommodation,Business Process & Analysis,Corporate Travel Management (North) Ltd,98434805,1.44,T&S UK - Accommodation
BEIS,UKRI - AHRC,13/03/2019,T&S UK - Accommodation,Business Process & Analysis,Corporate Travel Management (North) Ltd,98434805,90.00,T&S UK - Accommodation
BEIS,UKRI - AHRC,13/03/2019,T&S UK - Accommodation,Business Process & Analysis,Corporate Travel Management (North) Ltd,98434805,0.50,T&S UK - Accommodation
BEIS,UKRI - AHRC,13/03/2019,T&S UK - Accommodation,Business Process & Analysis,Corporate Travel Management (North) Ltd,98434805,1.44,T&S UK - Accommodation
BEIS,UKRI - AHRC,13/03/2019,T&S UK - Accommodation,Business Process & Analysis,Corporate Travel Management (North) Ltd,98434805,90.00,T&S UK - Accommodation
BEIS,UKRI - AHRC,13/03/2019,T&S UK - Accommodation,Business Process & Analysis,Corporate Travel Management (North) Ltd,98434805,1.27,T&S UK - Accommodation
BEIS,UKRI - AHRC,13/03/2019,T&S UK - Accommodation,Communications,Corporate Travel Management (North) Ltd,98434805,0.50,T&S UK - Accommodation
BEIS,UKRI - AHRC,13/03/2019,T&S UK - Accommodation,Communications,Corporate Travel Management (North) Ltd,98434805,110.70,T&S UK - Accommodation
BEIS,UKRI - AHRC,13/03/2019,T&S UK - Accommodation,Communications,Corporate Travel Management (North) Ltd,98434805,0.50,T&S UK - Accommodation
BEIS,UKRI - AHRC,13/03/2019,T&S UK - Accommodation,Communications,Corporate Travel Management (North) Ltd,98434805,110.70,T&S UK - Accommodation
BEIS,UKRI - AHRC,13/03/2019,T&S UK - Accommodation,Communications,Corporate Travel Management (North) Ltd,98434805,0.50,T&S UK - Accommodation
BEIS,UKRI - AHRC,13/03/2019,T&S UK - Accommodation,Communications,Corporate Travel Management (North) Ltd,98434805,110.70,T&S UK - Accommodation
BEIS,UKRI - AHRC,13/03/2019,T&S UK - Accommodation,Communications,Corporate Travel Management (North) Ltd,98434805,0.50,T&S UK - Accommodation
BEIS,UKRI - AHRC,13/03/2019,T&S UK - Accommodation,Communications,Corporate Travel Management (North) Ltd,98434805,1.44,T&S UK - Accommodation
BEIS,UKRI - AHRC,13/03/2019,T&S UK - Accommodation,Communications,Corporate Travel Management (North) Ltd,98434805,109.00,T&S UK - Accommodation
BEIS,UKRI - AHRC,13/03/2019,T&S UK - Accommodation,Communications,Corporate Travel Management (North) Ltd,98434805,0.69,T&S UK - Accommodation
BEIS,UKRI - AHRC,13/03/2019,T&S UK - Accommodation,Creative Arts & Digital Humanities,Corporate Travel Management (North) Ltd,98434805,0.50,T&S UK - Accommodation
BEIS,UKRI - AHRC,13/03/2019,T&S UK - Accommodation,Creative Arts & Digital Humanities,Corporate Travel Management (North) Ltd,98434805,80.80,T&S UK - Accommodation
BEIS,UKRI - AHRC,13/03/2019,T&S UK - Accommodation,Creative Arts & Digital Humanities,Corporate Travel Management (North) Ltd,98434805,0.50,T&S UK - Accommodation
BEIS,UKRI - AHRC,13/03/2019,T&S UK - Accommodation,Creative Arts & Digital Humanities,Corporate Travel Management (North) Ltd,98434805,53.50,T&S UK - Accommodation
BEIS,UKRI - AHRC,13/03/2019,T&S UK - Accommodation,Creative Arts & Digital Humanities,Corporate Travel Management (North) Ltd,98434805,0.50,T&S UK - Accommodation
BEIS,UKRI - AHRC,13/03/2019,T&S UK - Accommodation,Creative Arts & Digital Humanities,Corporate Travel Management (North) Ltd,98434805,337.00,T&S UK - Accommodation
BEIS,UKRI - AHRC,13/03/2019,T&S UK - Accommodation,Creative Arts & Digital Humanities,Corporate Travel Management (North) Ltd,98434805,0.50,T&S UK - Accommodation
BEIS,UKRI - AHRC,13/03/2019,T&S UK - Accommodation,Creative Arts & Digital Humanities,Corporate Travel Management (North) Ltd,98434805,1.44,T&S UK - Accommodation
BEIS,UKRI - AHRC,13/03/2019,T&S UK - Accommodation,Creative Arts & Digital Humanities,Corporate Travel Management (North) Ltd,98434805,90.00,T&S UK - Accommodation
BEIS,UKRI - AHRC,13/03/2019,T&S UK - Accommodation,Creative Arts & Digital Humanities,Corporate Travel Management (North) Ltd,98434805,0.69,T&S UK - Accommodation
BEIS,UKRI - AHRC,13/03/2019,T&S UK - Accommodation,GCRF - Programme Delivery,Corporate Travel Management (North) Ltd,98434805,0.50,T&S UK - Accommodation
BEIS,UKRI - AHRC,13/03/2019,T&S UK - Accommodation,GCRF - Programme Delivery,Corporate Travel Management (North) Ltd,98434805,242.00,T&S UK - Accommodation
BEIS,UKRI - AHRC,13/03/2019,T&S UK - Accommodation,GCRF - Programme Delivery,Corporate Travel Management (North) Ltd,98434805,0.50,T&S UK - Accommodation
BEIS,UKRI - AHRC,13/03/2019,T&S UK - Accommodation,GCRF - Programme Delivery,Corporate Travel Management (North) Ltd,98434805,242.00,T&S UK - Accommodation
BEIS,UKRI - AHRC,13/03/2019,T&S UK - Accommodation,GCRF - Programme Delivery,Corporate Travel Management (North) Ltd,98434805,0.50,T&S UK - Accommodation
BEIS,UKRI - AHRC,13/03/2019,T&S UK - Accommodation,GCRF - Programme Delivery,Corporate Travel Management (North) Ltd,98434805,1.44,T&S UK - Accommodation
BEIS,UKRI - AHRC,13/03/2019,T&S UK - Accommodation,GCRF - Programme Delivery,Corporate Travel Management (North) Ltd,98434805,"42,450.00",T&S UK - Accommodation
BEIS,UKRI - AHRC,13/03/2019,T&S UK - Accommodation,GCRF - Programme Delivery,Corporate Travel Management (North) Ltd,98434805,0.50,T&S UK - Accommodation
BEIS,UKRI - AHRC,13/03/2019,T&S UK - Accommodation,GCRF - Programme Delivery,Corporate Travel Management (North) Ltd,98434805,1.44,T&S UK - Accommodation
BEIS,UKRI - AHRC,13/03/2019,T&S UK - Accommodation,GCRF - Programme Delivery,Corporate Travel Management (North) Ltd,98434805,"15,300.00",T&S UK - Accommodation
BEIS,UKRI - AHRC,13/03/2019,T&S UK - Accommodation,GCRF - Programme Delivery,Corporate Travel Management (North) Ltd,98434805,0.98,T&S UK - Accommodation
BEIS,UKRI - AHRC,13/03/2019,T&S UK - Accommodation,HR,Corporate Travel Management (North) Ltd,98434805,0.50,T&S UK - Accommodation
BEIS,UKRI - AHRC,13/03/2019,T&S UK - Accommodation,HR,Corporate Travel Management (North) Ltd,98434805,84.25,T&S UK - Accommodation
BEIS,UKRI - AHRC,13/03/2019,T&S UK - Accommodation,HR,Corporate Travel Management (North) Ltd,98434805,0.50,T&S UK - Accommodation
BEIS,UKRI - AHRC,13/03/2019,T&S UK - Accommodation,HR,Corporate Travel Management (North) Ltd,98434805,33.00,T&S UK - Accommodation
BEIS,UKRI - AHRC,13/03/2019,T&S UK - Accommodation,HR,Corporate Travel Management (North) Ltd,98434805,0.20,T&S UK - Accommodation
BEIS,UKRI - AHRC,13/03/2019,T&S UK - Accommodation,"Histories,Culture & Heritage",Corporate Travel Management (North) Ltd,98434805,0.50,T&S UK - Accommodation
BEIS,UKRI - AHRC,13/03/2019,T&S UK - Accommodation,"Histories,Culture & Heritage",Corporate Travel Management (North) Ltd,98434805,75.00,T&S UK - Accommodation
BEIS,UKRI - AHRC,13/03/2019,T&S UK - Accommodation,"Histories,Culture & Heritage",Corporate Travel Management (North) Ltd,98434805,0.50,T&S UK - Accommodation
BEIS,UKRI - AHRC,13/03/2019,T&S UK - Accommodation,"Histories,Culture & Heritage",Corporate Travel Management (North) Ltd,98434805,1.44,T&S UK - Accommodation
BEIS,UKRI - AHRC,13/03/2019,T&S UK - Accommodation,"Histories,Culture & Heritage",Corporate Travel Management (North) Ltd,98434805,649.00,T&S UK - Accommodation
BEIS,UKRI - AHRC,13/03/2019,T&S UK - Accommodation,"Histories,Culture & Heritage",Corporate Travel Management (North) Ltd,98434805,0.50,T&S UK - Accommodation
BEIS,UKRI - AHRC,13/03/2019,T&S UK - Accommodation,"Histories,Culture & Heritage",Corporate Travel Management (North) Ltd,98434805,75.00,T&S UK - Accommodation
BEIS,UKRI - AHRC,13/03/2019,T&S UK - Accommodation,"Histories,Culture & Heritage",Corporate Travel Management (North) Ltd,98434805,0.50,T&S UK - Accommodation
BEIS,UKRI - AHRC,13/03/2019,T&S UK - Accommodation,"Histories,Culture & Heritage",Corporate Travel Management (North) Ltd,98434805,169.50,T&S UK - Accommodation
BEIS,UKRI - AHRC,13/03/2019,T&S UK - Accommodation,"Histories,Culture & Heritage",Corporate Travel Management (North) Ltd,98434805,0.50,T&S UK - Accommodation
BEIS,UKRI - AHRC,13/03/2019,T&S UK - Accommodation,"Histories,Culture & Heritage",Corporate Travel Management (North) Ltd,98434805,71.00,T&S UK - Accommodation
BEIS,UKRI - AHRC,13/03/2019,T&S UK - Accommodation,"Histories,Culture & Heritage",Corporate Travel Management (North) Ltd,98434805,0.50,T&S UK - Accommodation
BEIS,UKRI - AHRC,13/03/2019,T&S UK - Accommodation,"Histories,Culture & Heritage",Corporate Travel Management (North) Ltd,98434805,57.50,T&S UK - Accommodation
BEIS,UKRI - AHRC,13/03/2019,T&S UK - Accommodation,"Histories,Culture & Heritage",Corporate Travel Management (North) Ltd,98434805,0.50,T&S UK - Accommodation
BEIS,UKRI - AHRC,13/03/2019,T&S UK - Accommodation,"Histories,Culture & Heritage",Corporate Travel Management (North) Ltd,98434805,80.00,T&S UK - Accommodation
BEIS,UKRI - AHRC,13/03/2019,T&S UK - Accommodation,"Histories,Culture & Heritage",Corporate Travel Management (North) Ltd,98434805,0.50,T&S UK - Accommodation
BEIS,UKRI - AHRC,13/03/2019,T&S UK - Accommodation,"Histories,Culture & Heritage",Corporate Travel Management (North) Ltd,98434805,1.09,T&S UK - Accommodation
BEIS,UKRI - AHRC,13/03/2019,T&S UK - Accommodation,Industrial Strategy Challenge Fund (ISCF) - Creative Clusters,Corporate Travel Management (North) Ltd,98434805,0.50,T&S UK - Accommodation
BEIS,UKRI - AHRC,13/03/2019,T&S UK - Accommodation,Industrial Strategy Challenge Fund (ISCF) - Creative Clusters,Corporate Travel Management (North) Ltd,98434805,94.00,T&S UK - Accommodation
BEIS,UKRI - AHRC,13/03/2019,T&S UK - Accommodation,Industrial Strategy Challenge Fund (ISCF) - Creative Clusters,Corporate Travel Management (North) Ltd,98434805,0.50,T&S UK - Accommodation
BEIS,UKRI - AHRC,13/03/2019,T&S UK - Accommodation,Industrial Strategy Challenge Fund (ISCF) - Creative Clusters,Corporate Travel Management (North) Ltd,98434805,85.00,T&S UK - Accommodation
BEIS,UKRI - AHRC,13/03/2019,T&S UK - Accommodation,Industrial Strategy Challenge Fund (ISCF) - Creative Clusters,Corporate Travel Management (North) Ltd,98434805,0.50,T&S UK - Accommodation
BEIS,UKRI - AHRC,13/03/2019,T&S UK - Accommodation,Industrial Strategy Challenge Fund (ISCF) - Creative Clusters,Corporate Travel Management (North) Ltd,98434805,140.00,T&S UK - Accommodation
BEIS,UKRI - AHRC,13/03/2019,T&S UK - Accommodation,Industrial Strategy Challenge Fund (ISCF) - Creative Clusters,Corporate Travel Management (North) Ltd,98434805,0.50,T&S UK - Accommodation
BEIS,UKRI - AHRC,13/03/2019,T&S UK - Accommodation,Industrial Strategy Challenge Fund (ISCF) - Creative Clusters,Corporate Travel Management (North) Ltd,98434805,140.00,T&S UK - Accommodation
BEIS,UKRI - AHRC,13/03/2019,T&S UK - Accommodation,Industrial Strategy Challenge Fund (ISCF) - Creative Clusters,Corporate Travel Management (North) Ltd,98434805,0.40,T&S UK - Accommodation
BEIS,UKRI - AHRC,13/03/2019,T&S UK - Accommodation,International,Corporate Travel Management (North) Ltd,98434805,167.18,T&S UK - Accommodation
BEIS,UKRI - AHRC,13/03/2019,T&S UK - Accommodation,"Languages,Literature & International Engagement",Corporate Travel Management (North) Ltd,98434805,0.50,T&S UK - Accommodation
BEIS,UKRI - AHRC,13/03/2019,T&S UK - Accommodation,"Languages,Literature & International Engagement",Corporate Travel Management (North) Ltd,98434805,75.00,T&S UK - Accommodation
BEIS,UKRI - AHRC,13/03/2019,T&S UK - Accommodation,"Languages,Literature & International Engagement",Corporate Travel Management (North) Ltd,98434805,0.50,T&S UK - Accommodation
BEIS,UKRI - AHRC,13/03/2019,T&S UK - Accommodation,"Languages,Literature & International Engagement",Corporate Travel Management (North) Ltd,98434805,92.00,T&S UK - Accommodation
BEIS,UKRI - AHRC,13/03/2019,T&S UK - Accommodation,"Languages,Literature & International Engagement",Corporate Travel Management (North) Ltd,98434805,0.50,T&S UK - Accommodation
BEIS,UKRI - AHRC,13/03/2019,T&S UK - Accommodation,"Languages,Literature & International Engagement",Corporate Travel Management (North) Ltd,98434805,75.00,T&S UK - Accommodation
BEIS,UKRI - AHRC,13/03/2019,T&S UK - Accommodation,"Languages,Literature & International Engagement",Corporate Travel Management (North) Ltd,98434805,0.50,T&S UK - Accommodation
BEIS,UKRI - AHRC,13/03/2019,T&S UK - Accommodation,"Languages,Literature & International Engagement",Corporate Travel Management (North) Ltd,98434805,92.00,T&S UK - Accommodation
BEIS,UKRI - AHRC,13/03/2019,T&S UK - Accommodation,"Languages,Literature & International Engagement",Corporate Travel Management (North) Ltd,98434805,0.50,T&S UK - Accommodation
BEIS,UKRI - AHRC,13/03/2019,T&S UK - Accommodation,"Languages,Literature & International Engagement",Corporate Travel Management (North) Ltd,98434805,75.00,T&S UK - Accommodation
BEIS,UKRI - AHRC,13/03/2019,T&S UK - Accommodation,"Languages,Literature & International Engagement",Corporate Travel Management (North) Ltd,98434805,0.50,T&S UK - Accommodation
BEIS,UKRI - AHRC,13/03/2019,T&S UK - Accommodation,"Languages,Literature & International Engagement",Corporate Travel Management (North) Ltd,98434805,92.00,T&S UK - Accommodation
BEIS,UKRI - AHRC,13/03/2019,T&S UK - Accommodation,"Languages,Literature & International Engagement",Corporate Travel Management (North) Ltd,98434805,0.50,T&S UK - Accommodation
BEIS,UKRI - AHRC,13/03/2019,T&S UK - Accommodation,"Languages,Literature & International Engagement",Corporate Travel Management (North) Ltd,98434805,92.00,T&S UK - Accommodation
BEIS,UKRI - AHRC,13/03/2019,T&S UK - Accommodation,"Languages,Literature & International Engagement",Corporate Travel Management (North) Ltd,98434805,0.50,T&S UK - Accommodation
BEIS,UKRI - AHRC,13/03/2019,T&S UK - Accommodation,"Languages,Literature & International Engagement",Corporate Travel Management (North) Ltd,98434805,92.00,T&S UK - Accommodation
BEIS,UKRI - AHRC,13/03/2019,T&S UK - Accommodation,"Languages,Literature & International Engagement",Corporate Travel Management (North) Ltd,98434805,0.50,T&S UK - Accommodation
BEIS,UKRI - AHRC,13/03/2019,T&S UK - Accommodation,"Languages,Literature & International Engagement",Corporate Travel Management (North) Ltd,98434805,75.00,T&S UK - Accommodation
BEIS,UKRI - AHRC,13/03/2019,T&S UK - Accommodation,"Languages,Literature & International Engagement",Corporate Travel Management (North) Ltd,98434805,0.90,T&S UK - Accommodation
BEIS,UKRI - AHRC,13/03/2019,T&S UK - Accommodation,SMT,Corporate Travel Management (North) Ltd,98434805,0.50,T&S UK - Accommodation
BEIS,UKRI - AHRC,13/03/2019,T&S UK - Accommodation,SMT,Corporate Travel Management (North) Ltd,98434805,0.50,T&S UK - Accommodation
BEIS,UKRI - AHRC,13/03/2019,T&S UK - Accommodation,SMT,Corporate Travel Management (North) Ltd,98434805,61.65,T&S UK - Accommodation
BEIS,UKRI - AHRC,13/03/2019,T&S UK - Accommodation,SMT,Corporate Travel Management (North) Ltd,98434805,1.50,T&S UK - Accommodation
BEIS,UKRI - AHRC,13/03/2019,T&S UK - Accommodation,SMT,Corporate Travel Management (North) Ltd,98434805,1.44,T&S UK - Accommodation
BEIS,UKRI - AHRC,13/03/2019,T&S UK - Accommodation,SMT,Corporate Travel Management (North) Ltd,98434805,290.70,T&S UK - Accommodation
BEIS,UKRI - AHRC,13/03/2019,T&S UK - Accommodation,SMT,Corporate Travel Management (North) Ltd,98434805,290.70,T&S UK - Accommodation
BEIS,UKRI - AHRC,13/03/2019,T&S UK - Accommodation,SMT,Corporate Travel Management (North) Ltd,98434805,0.50,T&S UK - Accommodation
BEIS,UKRI - AHRC,13/03/2019,T&S UK - Accommodation,SMT,Corporate Travel Management (North) Ltd,98434805,1.44,T&S UK - Accommodation
BEIS,UKRI - AHRC,13/03/2019,T&S UK - Accommodation,SMT,Corporate Travel Management (North) Ltd,98434805,217.50,T&S UK - Accommodation
BEIS,UKRI - AHRC,13/03/2019,T&S UK - Accommodation,SMT,Corporate Travel Management (North) Ltd,98434805,1.00,T&S UK - Accommodation
BEIS,UKRI - AHRC,13/03/2019,T&S UK - Accommodation,SMT,Corporate Travel Management (North) Ltd,98434805,1.00,T&S UK - Accommodation
BEIS,UKRI - AHRC,13/03/2019,T&S UK - Accommodation,SMT,Corporate Travel Management (North) Ltd,98434805,214.50,T&S UK - Accommodation
BEIS,UKRI - AHRC,13/03/2019,T&S UK - Accommodation,SMT,Corporate Travel Management (North) Ltd,98434805,1.00,T&S UK - Accommodation
BEIS,UKRI - AHRC,13/03/2019,T&S UK - Accommodation,SMT,Corporate Travel Management (North) Ltd,98434805,585.00,T&S UK - Accommodation
BEIS,UKRI - AHRC,13/03/2019,T&S UK - Accommodation,SMT,Corporate Travel Management (North) Ltd,98434805,0.50,T&S UK - Accommodation
BEIS,UKRI - AHRC,13/03/2019,T&S UK - Accommodation,SMT,Corporate Travel Management (North) Ltd,98434805,214.50,T&S UK - Accommodation
BEIS,UKRI - AHRC,13/03/2019,T&S UK - Accommodation,SMT,Corporate Travel Management (North) Ltd,98434805,0.50,T&S UK - Accommodation
BEIS,UKRI - AHRC,13/03/2019,T&S UK - Accommodation,SMT,Corporate Travel Management (North) Ltd,98434805,212.00,T&S UK - Accommodation
BEIS,UKRI - AHRC,13/03/2019,T&S UK - Accommodation,SMT,Corporate Travel Management (North) Ltd,98434805,0.50,T&S UK - Accommodation
BEIS,UKRI - AHRC,13/03/2019,T&S UK - Accommodation,SMT,Corporate Travel Management (North) Ltd,98434805,99.99,T&S UK - Accommodation
BEIS,UKRI - AHRC,13/03/2019,T&S UK - Accommodation,SMT,Corporate Travel Management (North) Ltd,98434805,0.50,T&S UK - Accommodation
BEIS,UKRI - AHRC,13/03/2019,T&S UK - Accommodation,SMT,Corporate Travel Management (North) Ltd,98434805,0.50,T&S UK - Accommodation
BEIS,UKRI - AHRC,13/03/2019,T&S UK - Accommodation,SMT,Corporate Travel Management (North) Ltd,98434805,69.00,T&S UK - Accommodation
BEIS,UKRI - AHRC,13/03/2019,T&S UK - Accommodation,SMT,Corporate Travel Management (North) Ltd,98434805,0.50,T&S UK - Accommodation
BEIS,UKRI - AHRC,13/03/2019,T&S UK - Accommodation,SMT,Corporate Travel Management (North) Ltd,98434805,162.50,T&S UK - Accommodation
BEIS,UKRI - AHRC,13/03/2019,T&S UK - Accommodation,SMT,Corporate Travel Management (North) Ltd,98434805,0.50,T&S UK - Accommodation
BEIS,UKRI - AHRC,13/03/2019,T&S UK - Accommodation,SMT,Corporate Travel Management (North) Ltd,98434805,148.80,T&S UK - Accommodation
BEIS,UKRI - AHRC,13/03/2019,T&S UK - Accommodation,SMT,Corporate Travel Management (North) Ltd,98434805,0.50,T&S UK - Accommodation
BEIS,UKRI - AHRC,13/03/2019,T&S UK - Accommodation,SMT,Corporate Travel Management (North) Ltd,98434805,140.00,T&S UK - Accommodation
BEIS,UKRI - AHRC,13/03/2019,T&S UK - Accommodation,SMT,Corporate Travel Management (North) Ltd,98434805,0.50,T&S UK - Accommodation
BEIS,UKRI - AHRC,13/03/2019,T&S UK - Accommodation,SMT,Corporate Travel Management (North) Ltd,98434805,0.50,T&S UK - Accommodation
BEIS,UKRI - AHRC,13/03/2019,T&S UK - Accommodation,SMT,Corporate Travel Management (North) Ltd,98434805,65.00,T&S UK - Accommodation
BEIS,UKRI - AHRC,13/03/2019,T&S UK - Accommodation,SMT,Corporate Travel Management (North) Ltd,98434805,0.50,T&S UK - Accommodation
BEIS,UKRI - AHRC,13/03/2019,T&S UK - Accommodation,SMT,Corporate Travel Management (North) Ltd,98434805,65.00,T&S UK - Accommodation
BEIS,UKRI - AHRC,13/03/2019,T&S UK - Accommodation,SMT,Corporate Travel Management (North) Ltd,98434805,0.50,T&S UK - Accommodation
BEIS,UKRI - AHRC,13/03/2019,T&S UK - Accommodation,SMT,Corporate Travel Management (North) Ltd,98434805,75.84,T&S UK - Accommodation
BEIS,UKRI - AHRC,13/03/2019,T&S UK - Accommodation,SMT,Corporate Travel Management (North) Ltd,98434805,0.50,T&S UK - Accommodation
BEIS,UKRI - AHRC,13/03/2019,T&S UK - Accommodation,SMT,Corporate Travel Management (North) Ltd,98434805,0.50,T&S UK - Accommodation
BEIS,UKRI - AHRC,13/03/2019,T&S UK - Accommodation,SMT,Corporate Travel Management (North) Ltd,98434805,334.00,T&S UK - Accommodation
BEIS,UKRI - AHRC,13/03/2019,T&S UK - Accommodation,SMT,Corporate Travel Management (North) Ltd,98434805,3.18,T&S UK - Accommodation
BEIS,UKRI - AHRC,13/03/2019,T&S UK - Accommodation,SMT Strategic Leads,Corporate Travel Management (North) Ltd,98434805,0.50,T&S UK - Accommodation
BEIS,UKRI - AHRC,13/03/2019,T&S UK - Accommodation,SMT Strategic Leads,Corporate Travel Management (North) Ltd,98434805,167.95,T&S UK - Accommodation
BEIS,UKRI - AHRC,13/03/2019,T&S UK - Accommodation,SMT Strategic Leads,Corporate Travel Management (North) Ltd,98434805,0.10,T&S UK - Accommodation
BEIS,UKRI - AHRC,13/03/2019,T&S UK - Accommodation,Secretariat,Corporate Travel Management (North) Ltd,98434805,0.50,T&S UK - Accommodation
BEIS,UKRI - AHRC,13/03/2019,T&S UK - Accommodation,Secretariat,Corporate Travel Management (North) Ltd,98434805,189.00,T&S UK - Accommodation
BEIS,UKRI - AHRC,13/03/2019,T&S UK - Accommodation,Secretariat,Corporate Travel Management (North) Ltd,98434805,0.50,T&S UK - Accommodation
BEIS,UKRI - AHRC,13/03/2019,T&S UK - Accommodation,Secretariat,Corporate Travel Management (North) Ltd,98434805,202.80,T&S UK - Accommodation
BEIS,UKRI - AHRC,13/03/2019,T&S UK - Accommodation,Secretariat,Corporate Travel Management (North) Ltd,98434805,0.50,T&S UK - Accommodation
BEIS,UKRI - AHRC,13/03/2019,T&S UK - Accommodation,Secretariat,Corporate Travel Management (North) Ltd,98434805,110.70,T&S UK - Accommodation
BEIS,UKRI - AHRC,13/03/2019,T&S UK - Accommodation,Secretariat,Corporate Travel Management (North) Ltd,98434805,0.50,T&S UK - Accommodation
BEIS,UKRI - AHRC,13/03/2019,T&S UK - Accommodation,Secretariat,Corporate Travel Management (North) Ltd,98434805,1.44,T&S UK - Accommodation
BEIS,UKRI - AHRC,13/03/2019,T&S UK - Accommodation,Secretariat,Corporate Travel Management (North) Ltd,98434805,148.80,T&S UK - Accommodation
BEIS,UKRI - AHRC,13/03/2019,T&S UK - Accommodation,Secretariat,Corporate Travel Management (North) Ltd,98434805,0.50,T&S UK - Accommodation
BEIS,UKRI - AHRC,13/03/2019,T&S UK - Accommodation,Secretariat,Corporate Travel Management (North) Ltd,98434805,148.80,T&S UK - Accommodation
BEIS,UKRI - AHRC,13/03/2019,T&S UK - Accommodation,Secretariat,Corporate Travel Management (North) Ltd,98434805,0.50,T&S UK - Accommodation
BEIS,UKRI - AHRC,13/03/2019,T&S UK - Accommodation,Secretariat,Corporate Travel Management (North) Ltd,98434805,148.80,T&S UK - Accommodation
BEIS,UKRI - AHRC,13/03/2019,T&S UK - Accommodation,Secretariat,Corporate Travel Management (North) Ltd,98434805,0.89,T&S UK - Accommodation
BEIS,UKRI - AHRC,13/03/2019,T&S UK - Accommodation,Skills,Corporate Travel Management (North) Ltd,98434805,"1,020.00",T&S UK - Accommodation
BEIS,UKRI - AHRC,13/03/2019,T&S UK - Flights,Business Process & Analysis,Corporate Travel Management (North) Ltd,98434805,107.32,T&S UK - Flights
BEIS,UKRI - AHRC,13/03/2019,T&S UK - Flights,Business Process & Analysis,Corporate Travel Management (North) Ltd,98434805,107.32,T&S UK - Flights
BEIS,UKRI - AHRC,13/03/2019,T&S UK - Flights,Business Process & Analysis,Corporate Travel Management (North) Ltd,98434805,107.32,T&S UK - Flights
BEIS,UKRI - AHRC,13/03/2019,T&S UK - Flights,Business Process & Analysis,Corporate Travel Management (North) Ltd,98434805,107.32,T&S UK - Flights
BEIS,UKRI - AHRC,13/03/2019,T&S UK - Flights,Business Process & Analysis,Corporate Travel Management (North) Ltd,98434805,107.32,T&S UK - Flights
BEIS,UKRI - AHRC,13/03/2019,T&S UK - Flights,Business Process & Analysis,Corporate Travel Management (North) Ltd,98434805,107.32,T&S UK - Flights
BEIS,UKRI - AHRC,13/03/2019,T&S UK - Flights,Business Process & Analysis,Corporate Travel Management (North) Ltd,98434805,107.32,T&S UK - Flights
BEIS,UKRI - AHRC,13/03/2019,T&S UK - Flights,Communications,Corporate Travel Management (North) Ltd,98434805,172.48,T&S UK - Flights
BEIS,UKRI - AHRC,13/03/2019,T&S UK - Flights,Communications,Corporate Travel Management (North) Ltd,98434805,79.53,T&S UK - Flights
BEIS,UKRI - AHRC,13/03/2019,T&S UK - Flights,Creative Arts & Digital Humanities,Corporate Travel Management (North) Ltd,98434805,41.20,T&S UK - Flights
BEIS,UKRI - AHRC,13/03/2019,T&S UK - Flights,Creative Arts & Digital Humanities,Corporate Travel Management (North) Ltd,98434805,125.01,T&S UK - Flights
BEIS,UKRI - AHRC,13/03/2019,T&S UK - Flights,GCRF - Programme Delivery,Corporate Travel Management (North) Ltd,98434805,86.60,T&S UK - Flights
BEIS,UKRI - AHRC,13/03/2019,T&S UK - Flights,GCRF - Programme Delivery,Corporate Travel Management (North) Ltd,98434805,86.60,T&S UK - Flights
BEIS,UKRI - AHRC,13/03/2019,T&S UK - Flights,GCRF - Programme Delivery,Corporate Travel Management (North) Ltd,98434805,86.60,T&S UK - Flights
BEIS,UKRI - AHRC,13/03/2019,T&S UK - Flights,GCRF - Programme Delivery,Corporate Travel Management (North) Ltd,98434805,67.46,T&S UK - Flights
BEIS,UKRI - AHRC,13/03/2019,T&S UK - Flights,GCRF - Programme Delivery,Corporate Travel Management (North) Ltd,98434805,59.33,T&S UK - Flights
BEIS,UKRI - AHRC,13/03/2019,T&S UK - Flights,GCRF - Programme Delivery,Corporate Travel Management (North) Ltd,98434805,37.16,T&S UK - Flights
BEIS,UKRI - AHRC,13/03/2019,T&S UK - Flights,"Histories,Culture & Heritage",Corporate Travel Management (North) Ltd,98434805,166.07,T&S UK - Flights
BEIS,UKRI - AHRC,13/03/2019,T&S UK - Flights,Industrial Strategy Challenge Fund (ISCF) - Creative Clusters,Corporate Travel Management (North) Ltd,98434805,191.64,T&S UK - Flights
BEIS,UKRI - AHRC,13/03/2019,T&S UK - Flights,Industrial Strategy Challenge Fund (ISCF) - Creative Clusters,Corporate Travel Management (North) Ltd,98434805,139.98,T&S UK - Flights
BEIS,UKRI - AHRC,13/03/2019,T&S UK - Flights,Industrial Strategy Challenge Fund (ISCF) - Creative Clusters,Corporate Travel Management (North) Ltd,98434805,110.31,T&S UK - Flights
BEIS,UKRI - AHRC,13/03/2019,T&S UK - Flights,International,Corporate Travel Management (North) Ltd,98434805,2.16,T&S UK - Flights
BEIS,UKRI - AHRC,13/03/2019,T&S UK - Flights,International,Corporate Travel Management (North) Ltd,98434805,102.07,T&S UK - Flights
BEIS,UKRI - AHRC,13/03/2019,T&S UK - Flights,PSU Project Office,Corporate Travel Management (North) Ltd,98434805,109.94,T&S UK - Flights
BEIS,UKRI - AHRC,13/03/2019,T&S UK - Flights,PSU Project Office,Corporate Travel Management (North) Ltd,98434805,148.49,T&S UK - Flights
BEIS,UKRI - AHRC,13/03/2019,T&S UK - Flights,PSU Project Office,Corporate Travel Management (North) Ltd,98434805,66.94,T&S UK - Flights
BEIS,UKRI - AHRC,13/03/2019,T&S UK - Flights,PSU Project Office,Corporate Travel Management (North) Ltd,98434805,84.44,T&S UK - Flights
BEIS,UKRI - AHRC,13/03/2019,T&S UK - Flights,PSU Project Office,Corporate Travel Management (North) Ltd,98434805,92.94,T&S UK - Flights
BEIS,UKRI - AHRC,13/03/2019,T&S UK - Flights,PSU Project Office,Corporate Travel Management (North) Ltd,98434805,58.44,T&S UK - Flights
BEIS,UKRI - AHRC,13/03/2019,T&S UK - Flights,PSU Project Office,Corporate Travel Management (North) Ltd,98434805,164.62,T&S UK - Flights
BEIS,UKRI - AHRC,13/03/2019,T&S UK - Flights,PSU Project Office,Corporate Travel Management (North) Ltd,98434805,133.62,T&S UK - Flights
BEIS,UKRI - AHRC,13/03/2019,T&S UK - Flights,PSU Project Office,Corporate Travel Management (North) Ltd,98434805,62.62,T&S UK - Flights
BEIS,UKRI - AHRC,13/03/2019,T&S UK - Flights,PSU Project Office,Corporate Travel Management (North) Ltd,98434805,65.62,T&S UK - Flights
BEIS,UKRI - AHRC,13/03/2019,T&S UK - Flights,PSU Project Office,Corporate Travel Management (North) Ltd,98434805,62.62,T&S UK - Flights
BEIS,UKRI - AHRC,13/03/2019,T&S UK - Flights,SMT,Corporate Travel Management (North) Ltd,98434805,36.44,T&S UK - Flights
BEIS,UKRI - AHRC,13/03/2019,T&S UK - Flights,SMT,Corporate Travel Management (North) Ltd,98434805,53.62,T&S UK - Flights
BEIS,UKRI - AHRC,13/03/2019,T&S UK - Flights,SMT,Corporate Travel Management (North) Ltd,98434805,91.54,T&S UK - Flights
BEIS,UKRI - AHRC,13/03/2019,T&S UK - Flights,SMT,Corporate Travel Management (North) Ltd,98434805,91.77,T&S UK - Flights
BEIS,UKRI - AHRC,13/03/2019,T&S UK - Flights,SMT,Corporate Travel Management (North) Ltd,98434805,405.54,T&S UK - Flights
BEIS,UKRI - AHRC,13/03/2019,T&S UK - Flights,SMT,Corporate Travel Management (North) Ltd,98434805,58.28,T&S UK - Flights
BEIS,UKRI - AHRC,13/03/2019,T&S UK - Flights,Secretariat,Corporate Travel Management (North) Ltd,98434805,205.09,T&S UK - Flights
BEIS,UKRI - AHRC,13/03/2019,T&S UK - Other Charges,Communications,Corporate Travel Management (North) Ltd,98434805,0.50,T&S UK - Other Charges
BEIS,UKRI - AHRC,13/03/2019,T&S UK - Other Charges,Communications,Corporate Travel Management (North) Ltd,98434805,1.44,T&S UK - Other Charges
BEIS,UKRI - AHRC,13/03/2019,T&S UK - Other Charges,Communications,Corporate Travel Management (North) Ltd,98434805,137.95,T&S UK - Other Charges
BEIS,UKRI - AHRC,13/03/2019,T&S UK - Other Charges,Communications,Corporate Travel Management (North) Ltd,98434805,0.39,T&S UK - Other Charges
BEIS,UKRI - AHRC,13/03/2019,T&S UK - Public Transport,"AHRC - Strategic Planning, Evidence & Impact",Corporate Travel Management (North) Ltd,98434805,114.40,T&S UK - Public Transport
BEIS,UKRI - AHRC,13/03/2019,T&S UK - Public Transport,"AHRC - Strategic Planning, Evidence & Impact",Corporate Travel Management (North) Ltd,98434805,66.60,T&S UK - Public Transport
BEIS,UKRI - AHRC,13/03/2019,T&S UK - Public Transport,Business Process & Analysis,Corporate Travel Management (North) Ltd,98434805,(42.90),T&S UK - Public Transport
BEIS,UKRI - AHRC,13/03/2019,T&S UK - Public Transport,Business Process & Analysis,Corporate Travel Management (North) Ltd,98434805,(37.40),T&S UK - Public Transport
BEIS,UKRI - AHRC,13/03/2019,T&S UK - Public Transport,Communications,Corporate Travel Management (North) Ltd,98434805,100.20,T&S UK - Public Transport
BEIS,UKRI - AHRC,13/03/2019,T&S UK - Public Transport,Communications,Corporate Travel Management (North) Ltd,98434805,114.40,T&S UK - Public Transport
BEIS,UKRI - AHRC,13/03/2019,T&S UK - Public Transport,Communications,Corporate Travel Management (North) Ltd,98434805,144.00,T&S UK - Public Transport
BEIS,UKRI - AHRC,13/03/2019,T&S UK - Public Transport,Communications,Corporate Travel Management (North) Ltd,98434805,151.60,T&S UK - Public Transport
BEIS,UKRI - AHRC,13/03/2019,T&S UK - Public Transport,Communications,Corporate Travel Management (North) Ltd,98434805,144.00,T&S UK - Public Transport
BEIS,UKRI - AHRC,13/03/2019,T&S UK - Public Transport,Communications,Corporate Travel Management (North) Ltd,98434805,165.10,T&S UK - Public Transport
BEIS,UKRI - AHRC,13/03/2019,T&S UK - Public Transport,Communications,Corporate Travel Management (North) Ltd,98434805,136.90,T&S UK - Public Transport
BEIS,UKRI - AHRC,13/03/2019,T&S UK - Public Transport,Communications,Corporate Travel Management (North) Ltd,98434805,60.80,T&S UK - Public Transport
BEIS,UKRI - AHRC,13/03/2019,T&S UK - Public Transport,Communications,Corporate Travel Management (North) Ltd,98434805,19.10,T&S UK - Public Transport
BEIS,UKRI - AHRC,13/03/2019,T&S UK - Public Transport,Communications,Corporate Travel Management (North) Ltd,98434805,48.85,T&S UK - Public Transport
BEIS,UKRI - AHRC,13/03/2019,T&S UK - Public Transport,Communications,Corporate Travel Management (North) Ltd,98434805,118.60,T&S UK - Public Transport
BEIS,UKRI - AHRC,13/03/2019,T&S UK - Public Transport,Communications,Corporate Travel Management (North) Ltd,98434805,151.60,T&S UK - Public Transport
BEIS,UKRI - AHRC,13/03/2019,T&S UK - Public Transport,Communications,Corporate Travel Management (North) Ltd,98434805,18.00,T&S UK - Public Transport
BEIS,UKRI - AHRC,13/03/2019,T&S UK - Public Transport,Communications,Corporate Travel Management (North) Ltd,98434805,43.30,T&S UK - Public Transport
BEIS,UKRI - AHRC,13/03/2019,T&S UK - Public Transport,Communications,Corporate Travel Management (North) Ltd,98434805,5.00,T&S UK - Public Transport
BEIS,UKRI - AHRC,13/03/2019,T&S UK - Public Transport,Communications,Corporate Travel Management (North) Ltd,98434805,(206.10),T&S UK - Public Transport
BEIS,UKRI - AHRC,13/03/2019,T&S UK - Public Transport,Communications,Corporate Travel Management (North) Ltd,98434805,5.00,T&S UK - Public Transport
BEIS,UKRI - AHRC,13/03/2019,T&S UK - Public Transport,Communications,Corporate Travel Management (North) Ltd,98434805,(174.00),T&S UK - Public Transport
BEIS,UKRI - AHRC,13/03/2019,T&S UK - Public Transport,Communications,Corporate Travel Management (North) Ltd,98434805,(204.00),T&S UK - Public Transport
BEIS,UKRI - AHRC,13/03/2019,T&S UK - Public Transport,Communications,Corporate Travel Management (North) Ltd,98434805,5.00,T&S UK - Public Transport
BEIS,UKRI - AHRC,13/03/2019,T&S UK - Public Transport,Communications,Corporate Travel Management (North) Ltd,98434805,(174.00),T&S UK - Public Transport
BEIS,UKRI - AHRC,13/03/2019,T&S UK - Public Transport,Communications,Corporate Travel Management (North) Ltd,98434805,103.80,T&S UK - Public Transport
BEIS,UKRI - AHRC,13/03/2019,T&S UK - Public Transport,Communications,Corporate Travel Management (North) Ltd,98434805,1.00,T&S UK - Public Transport
BEIS,UKRI - AHRC,13/03/2019,T&S UK - Public Transport,Communications,Corporate Travel Management (North) Ltd,98434805,209.00,T&S UK - Public Transport
BEIS,UKRI - AHRC,13/03/2019,T&S UK - Public Transport,Communications,Corporate Travel Management (North) Ltd,98434805,136.90,T&S UK - Public Transport
BEIS,UKRI - AHRC,13/03/2019,T&S UK - Public Transport,Communications,Corporate Travel Management (North) Ltd,98434805,178.00,T&S UK - Public Transport
BEIS,UKRI - AHRC,13/03/2019,T&S UK - Public Transport,Communications,Corporate Travel Management (North) Ltd,98434805,13.10,T&S UK - Public Transport
BEIS,UKRI - AHRC,13/03/2019,T&S UK - Public Transport,Communications,Corporate Travel Management (North) Ltd,98434805,(204.00),T&S UK - Public Transport
BEIS,UKRI - AHRC,13/03/2019,T&S UK - Public Transport,Communications,Corporate Travel Management (North) Ltd,98434805,19.60,T&S UK - Public Transport
BEIS,UKRI - AHRC,13/03/2019,T&S UK - Public Transport,Creative Arts & Digital Humanities,Corporate Travel Management (North) Ltd,98434805,84.80,T&S UK - Public Transport
BEIS,UKRI - AHRC,13/03/2019,T&S UK - Public Transport,Creative Arts & Digital Humanities,Corporate Travel Management (North) Ltd,98434805,69.10,T&S UK - Public Transport
BEIS,UKRI - AHRC,13/03/2019,T&S UK - Public Transport,Creative Arts & Digital Humanities,Corporate Travel Management (North) Ltd,98434805,13.10,T&S UK - Public Transport
BEIS,UKRI - AHRC,13/03/2019,T&S UK - Public Transport,Creative Arts & Digital Humanities,Corporate Travel Management (North) Ltd,98434805,24.10,T&S UK - Public Transport
BEIS,UKRI - AHRC,13/03/2019,T&S UK - Public Transport,Creative Arts & Digital Humanities,Corporate Travel Management (North) Ltd,98434805,62.20,T&S UK - Public Transport
BEIS,UKRI - AHRC,13/03/2019,T&S UK - Public Transport,Creative Arts & Digital Humanities,Corporate Travel Management (North) Ltd,98434805,72.60,T&S UK - Public Transport
BEIS,UKRI - AHRC,13/03/2019,T&S UK - Public Transport,Creative Arts & Digital Humanities,Corporate Travel Management (North) Ltd,98434805,152.15,T&S UK - Public Transport
BEIS,UKRI - AHRC,13/03/2019,T&S UK - Public Transport,Creative Arts & Digital Humanities,Corporate Travel Management (North) Ltd,98434805,(104.00),T&S UK - Public Transport
BEIS,UKRI - AHRC,13/03/2019,T&S UK - Public Transport,Creative Arts & Digital Humanities,Corporate Travel Management (North) Ltd,98434805,67.10,T&S UK - Public Transport
BEIS,UKRI - AHRC,13/03/2019,T&S UK - Public Transport,Creative Arts & Digital Humanities,Corporate Travel Management (North) Ltd,98434805,54.10,T&S UK - Public Transport
BEIS,UKRI - AHRC,13/03/2019,T&S UK - Public Transport,Creative Arts & Digital Humanities,Corporate Travel Management (North) Ltd,98434805,1.00,T&S UK - Public Transport
BEIS,UKRI - AHRC,13/03/2019,T&S UK - Public Transport,Creative Arts & Digital Humanities,Corporate Travel Management (North) Ltd,98434805,117.50,T&S UK - Public Transport
BEIS,UKRI - AHRC,13/03/2019,T&S UK - Public Transport,Creative Arts & Digital Humanities,Corporate Travel Management (North) Ltd,98434805,1.00,T&S UK - Public Transport
BEIS,UKRI - AHRC,13/03/2019,T&S UK - Public Transport,Creative Arts & Digital Humanities,Corporate Travel Management (North) Ltd,98434805,171.00,T&S UK - Public Transport
BEIS,UKRI - AHRC,13/03/2019,T&S UK - Public Transport,Creative Arts & Digital Humanities,Corporate Travel Management (North) Ltd,98434805,69.10,T&S UK - Public Transport
BEIS,UKRI - AHRC,13/03/2019,T&S UK - Public Transport,Creative Arts & Digital Humanities,Corporate Travel Management (North) Ltd,98434805,13.10,T&S UK - Public Transport
BEIS,UKRI - AHRC,13/03/2019,T&S UK - Public Transport,Creative Arts & Digital Humanities,Corporate Travel Management (North) Ltd,98434805,(64.90),T&S UK - Public Transport
BEIS,UKRI - AHRC,13/03/2019,T&S UK - Public Transport,Creative Arts & Digital Humanities,Corporate Travel Management (North) Ltd,98434805,(141.00),T&S UK - Public Transport
BEIS,UKRI - AHRC,13/03/2019,T&S UK - Public Transport,Creative Arts & Digital Humanities,Corporate Travel Management (North) Ltd,98434805,(64.90),T&S UK - Public Transport
BEIS,UKRI - AHRC,13/03/2019,T&S UK - Public Transport,Creative Arts & Digital Humanities,Corporate Travel Management (North) Ltd,98434805,(166.00),T&S UK - Public Transport
BEIS,UKRI - AHRC,13/03/2019,T&S UK - Public Transport,Creative Arts & Digital Humanities,Corporate Travel Management (North) Ltd,98434805,114.40,T&S UK - Public Transport
BEIS,UKRI - AHRC,13/03/2019,T&S UK - Public Transport,Creative Arts & Digital Humanities,Corporate Travel Management (North) Ltd,98434805,218.00,T&S UK - Public Transport
BEIS,UKRI - AHRC,13/03/2019,T&S UK - Public Transport,Creative Arts & Digital Humanities,Corporate Travel Management (North) Ltd,98434805,1.00,T&S UK - Public Transport
BEIS,UKRI - AHRC,13/03/2019,T&S UK - Public Transport,Creative Arts & Digital Humanities,Corporate Travel Management (North) Ltd,98434805,418.00,T&S UK - Public Transport
BEIS,UKRI - AHRC,13/03/2019,T&S UK - Public Transport,Creative Arts & Digital Humanities,Corporate Travel Management (North) Ltd,98434805,1.00,T&S UK - Public Transport
BEIS,UKRI - AHRC,13/03/2019,T&S UK - Public Transport,Creative Arts & Digital Humanities,Corporate Travel Management (North) Ltd,98434805,85.50,T&S UK - Public Transport
BEIS,UKRI - AHRC,13/03/2019,T&S UK - Public Transport,Finance,Corporate Travel Management (North) Ltd,98434805,23.70,T&S UK - Public Transport
BEIS,UKRI - AHRC,13/03/2019,T&S UK - Public Transport,Finance,Corporate Travel Management (North) Ltd,98434805,23.70,T&S UK - Public Transport
BEIS,UKRI - AHRC,13/03/2019,T&S UK - Public Transport,Finance,Corporate Travel Management (North) Ltd,98434805,23.70,T&S UK - Public Transport
BEIS,UKRI - AHRC,13/03/2019,T&S UK - Public Transport,Finance,Corporate Travel Management (North) Ltd,98434805,23.70,T&S UK - Public Transport
BEIS,UKRI - AHRC,13/03/2019,T&S UK - Public Transport,Finance,Corporate Travel Management (North) Ltd,98434805,23.70,T&S UK - Public Transport
BEIS,UKRI - AHRC,13/03/2019,T&S UK - Public Transport,Finance,Corporate Travel Management (North) Ltd,98434805,16.50,T&S UK - Public Transport
BEIS,UKRI - AHRC,13/03/2019,T&S UK - Public Transport,GCRF - Programme Delivery,Corporate Travel Management (North) Ltd,98434805,13.10,T&S UK - Public Transport
BEIS,UKRI - AHRC,13/03/2019,T&S UK - Public Transport,GCRF - Programme Delivery,Corporate Travel Management (North) Ltd,98434805,112.00,T&S UK - Public Transport
BEIS,UKRI - AHRC,13/03/2019,T&S UK - Public Transport,GCRF - Programme Delivery,Corporate Travel Management (North) Ltd,98434805,13.10,T&S UK - Public Transport
BEIS,UKRI - AHRC,13/03/2019,T&S UK - Public Transport,GCRF - Programme Delivery,Corporate Travel Management (North) Ltd,98434805,114.40,T&S UK - Public Transport
BEIS,UKRI - AHRC,13/03/2019,T&S UK - Public Transport,GCRF - Programme Delivery,Corporate Travel Management (North) Ltd,98434805,1.00,T&S UK - Public Transport
BEIS,UKRI - AHRC,13/03/2019,T&S UK - Public Transport,GCRF - Programme Delivery,Corporate Travel Management (North) Ltd,98434805,53.10,T&S UK - Public Transport
BEIS,UKRI - AHRC,13/03/2019,T&S UK - Public Transport,GCRF - Programme Delivery,Corporate Travel Management (North) Ltd,98434805,13.10,T&S UK - Public Transport
BEIS,UKRI - AHRC,13/03/2019,T&S UK - Public Transport,GCRF - Programme Delivery,Corporate Travel Management (North) Ltd,98434805,103.80,T&S UK - Public Transport
BEIS,UKRI - AHRC,13/03/2019,T&S UK - Public Transport,GCRF - Programme Delivery,Corporate Travel Management (North) Ltd,98434805,35.40,T&S UK - Public Transport
BEIS,UKRI - AHRC,13/03/2019,T&S UK - Public Transport,GCRF - Programme Delivery,Corporate Travel Management (North) Ltd,98434805,31.80,T&S UK - Public Transport
BEIS,UKRI - AHRC,13/03/2019,T&S UK - Public Transport,GCRF - Programme Delivery,Corporate Travel Management (North) Ltd,98434805,89.75,T&S UK - Public Transport
BEIS,UKRI - AHRC,13/03/2019,T&S UK - Public Transport,GCRF - Programme Delivery,Corporate Travel Management (North) Ltd,98434805,89.75,T&S UK - Public Transport
BEIS,UKRI - AHRC,13/03/2019,T&S UK - Public Transport,GCRF - Programme Delivery,Corporate Travel Management (North) Ltd,98434805,207.00,T&S UK - Public Transport
BEIS,UKRI - AHRC,13/03/2019,T&S UK - Public Transport,GCRF - Programme Delivery,Corporate Travel Management (North) Ltd,98434805,79.35,T&S UK - Public Transport
BEIS,UKRI - AHRC,13/03/2019,T&S UK - Public Transport,GCRF - Programme Delivery,Corporate Travel Management (North) Ltd,98434805,18.00,T&S UK - Public Transport
BEIS,UKRI - AHRC,13/03/2019,T&S UK - Public Transport,GCRF - Programme Delivery,Corporate Travel Management (North) Ltd,98434805,43.30,T&S UK - Public Transport
BEIS,UKRI - AHRC,13/03/2019,T&S UK - Public Transport,GCRF - Programme Delivery,Corporate Travel Management (North) Ltd,98434805,72.85,T&S UK - Public Transport
BEIS,UKRI - AHRC,13/03/2019,T&S UK - Public Transport,GCRF - Programme Delivery,Corporate Travel Management (North) Ltd,98434805,53.85,T&S UK - Public Transport
BEIS,UKRI - AHRC,13/03/2019,T&S UK - Public Transport,GCRF - Programme Delivery,Corporate Travel Management (North) Ltd,98434805,43.30,T&S UK - Public Transport
BEIS,UKRI - AHRC,13/03/2019,T&S UK - Public Transport,GCRF - Programme Delivery,Corporate Travel Management (North) Ltd,98434805,18.00,T&S UK - Public Transport
BEIS,UKRI - AHRC,13/03/2019,T&S UK - Public Transport,GCRF - Programme Delivery,Corporate Travel Management (North) Ltd,98434805,1.00,T&S UK - Public Transport
BEIS,UKRI - AHRC,13/03/2019,T&S UK - Public Transport,GCRF - Programme Delivery,Corporate Travel Management (North) Ltd,98434805,144.00,T&S UK - Public Transport
BEIS,UKRI - AHRC,13/03/2019,T&S UK - Public Transport,GCRF - Programme Delivery,Corporate Travel Management (North) Ltd,98434805,206.80,T&S UK - Public Transport
BEIS,UKRI - AHRC,13/03/2019,T&S UK - Public Transport,GCRF - Programme Delivery,Corporate Travel Management (North) Ltd,98434805,111.55,T&S UK - Public Transport
BEIS,UKRI - AHRC,13/03/2019,T&S UK - Public Transport,GCRF - Programme Delivery,Corporate Travel Management (North) Ltd,98434805,144.00,T&S UK - Public Transport
BEIS,UKRI - AHRC,13/03/2019,T&S UK - Public Transport,GCRF - Programme Delivery,Corporate Travel Management (North) Ltd,98434805,18.60,T&S UK - Public Transport
BEIS,UKRI - AHRC,13/03/2019,T&S UK - Public Transport,GCRF - Programme Delivery,Corporate Travel Management (North) Ltd,98434805,92.40,T&S UK - Public Transport
BEIS,UKRI - AHRC,13/03/2019,T&S UK - Public Transport,GCRF - Programme Delivery,Corporate Travel Management (North) Ltd,98434805,377.10,T&S UK - Public Transport
BEIS,UKRI - AHRC,13/03/2019,T&S UK - Public Transport,GCRF - Programme Delivery,Corporate Travel Management (North) Ltd,98434805,1.00,T&S UK - Public Transport
BEIS,UKRI - AHRC,13/03/2019,T&S UK - Public Transport,GCRF - Programme Delivery,Corporate Travel Management (North) Ltd,98434805,147.85,T&S UK - Public Transport
BEIS,UKRI - AHRC,13/03/2019,T&S UK - Public Transport,GCRF - Programme Delivery,Corporate Travel Management (North) Ltd,98434805,30.00,T&S UK - Public Transport
BEIS,UKRI - AHRC,13/03/2019,T&S UK - Public Transport,GCRF - Programme Delivery,Corporate Travel Management (North) Ltd,98434805,112.00,T&S UK - Public Transport
BEIS,UKRI - AHRC,13/03/2019,T&S UK - Public Transport,GCRF - Programme Delivery,Corporate Travel Management (North) Ltd,98434805,13.10,T&S UK - Public Transport
BEIS,UKRI - AHRC,13/03/2019,T&S UK - Public Transport,GCRF - Programme Delivery,Corporate Travel Management (North) Ltd,98434805,42.40,T&S UK - Public Transport
BEIS,UKRI - AHRC,13/03/2019,T&S UK - Public Transport,GCRF - Programme Delivery,Corporate Travel Management (North) Ltd,98434805,97.80,T&S UK - Public Transport
BEIS,UKRI - AHRC,13/03/2019,T&S UK - Public Transport,GCRF - Programme Delivery,Corporate Travel Management (North) Ltd,98434805,71.20,T&S UK - Public Transport
BEIS,UKRI - AHRC,13/03/2019,T&S UK - Public Transport,GCRF - Programme Delivery,Corporate Travel Management (North) Ltd,98434805,13.10,T&S UK - Public Transport
BEIS,UKRI - AHRC,13/03/2019,T&S UK - Public Transport,GCRF - Programme Delivery,Corporate Travel Management (North) Ltd,98434805,1.00,T&S UK - Public Transport
BEIS,UKRI - AHRC,13/03/2019,T&S UK - Public Transport,GCRF - Programme Delivery,Corporate Travel Management (North) Ltd,98434805,228.80,T&S UK - Public Transport
BEIS,UKRI - AHRC,13/03/2019,T&S UK - Public Transport,GCRF - Programme Delivery,Corporate Travel Management (North) Ltd,98434805,114.40,T&S UK - Public Transport
BEIS,UKRI - AHRC,13/03/2019,T&S UK - Public Transport,GCRF - Programme Delivery,Corporate Travel Management (North) Ltd,98434805,31.80,T&S UK - Public Transport
BEIS,UKRI - AHRC,13/03/2019,T&S UK - Public Transport,GCRF - Programme Delivery,Corporate Travel Management (North) Ltd,98434805,1.00,T&S UK - Public Transport
BEIS,UKRI - AHRC,13/03/2019,T&S UK - Public Transport,GCRF - Programme Delivery,Corporate Travel Management (North) Ltd,98434805,165.10,T&S UK - Public Transport
BEIS,UKRI - AHRC,13/03/2019,T&S UK - Public Transport,GCRF - Programme Delivery,Corporate Travel Management (North) Ltd,98434805,2.00,T&S UK - Public Transport
BEIS,UKRI - AHRC,13/03/2019,T&S UK - Public Transport,GCRF - Programme Delivery,Corporate Travel Management (North) Ltd,98434805,30.00,T&S UK - Public Transport
BEIS,UKRI - AHRC,13/03/2019,T&S UK - Public Transport,GCRF - Programme Delivery,Corporate Travel Management (North) Ltd,98434805,60.60,T&S UK - Public Transport
BEIS,UKRI - AHRC,13/03/2019,T&S UK - Public Transport,GCRF - Programme Delivery,Corporate Travel Management (North) Ltd,98434805,1.00,T&S UK - Public Transport
BEIS,UKRI - AHRC,13/03/2019,T&S UK - Public Transport,GCRF - Programme Delivery,Corporate Travel Management (North) Ltd,98434805,110.80,T&S UK - Public Transport
BEIS,UKRI - AHRC,13/03/2019,T&S UK - Public Transport,GCRF - Programme Delivery,Corporate Travel Management (North) Ltd,98434805,1.00,T&S UK - Public Transport
BEIS,UKRI - AHRC,13/03/2019,T&S UK - Public Transport,GCRF - Programme Delivery,Corporate Travel Management (North) Ltd,98434805,76.80,T&S UK - Public Transport
BEIS,UKRI - AHRC,13/03/2019,T&S UK - Public Transport,GCRF - Programme Delivery,Corporate Travel Management (North) Ltd,98434805,114.40,T&S UK - Public Transport
BEIS,UKRI - AHRC,13/03/2019,T&S UK - Public Transport,GCRF - Programme Delivery,Corporate Travel Management (North) Ltd,98434805,13.10,T&S UK - Public Transport
BEIS,UKRI - AHRC,13/03/2019,T&S UK - Public Transport,GCRF - Programme Delivery,Corporate Travel Management (North) Ltd,98434805,13.10,T&S UK - Public Transport
BEIS,UKRI - AHRC,13/03/2019,T&S UK - Public Transport,GCRF - Programme Delivery,Corporate Travel Management (North) Ltd,98434805,112.00,T&S UK - Public Transport
BEIS,UKRI - AHRC,13/03/2019,T&S UK - Public Transport,GCRF - Programme Delivery,Corporate Travel Management (North) Ltd,98434805,151.60,T&S UK - Public Transport
BEIS,UKRI - AHRC,13/03/2019,T&S UK - Public Transport,HR,Corporate Travel Management (North) Ltd,98434805,151.10,T&S UK - Public Transport
BEIS,UKRI - AHRC,13/03/2019,T&S UK - Public Transport,HR,Corporate Travel Management (North) Ltd,98434805,23.70,T&S UK - Public Transport
BEIS,UKRI - AHRC,13/03/2019,T&S UK - Public Transport,HR,Corporate Travel Management (North) Ltd,98434805,177.00,T&S UK - Public Transport
BEIS,UKRI - AHRC,13/03/2019,T&S UK - Public Transport,HR,Corporate Travel Management (North) Ltd,98434805,177.00,T&S UK - Public Transport
BEIS,UKRI - AHRC,13/03/2019,T&S UK - Public Transport,HR,Corporate Travel Management (North) Ltd,98434805,177.00,T&S UK - Public Transport
BEIS,UKRI - AHRC,13/03/2019,T&S UK - Public Transport,HR,Corporate Travel Management (North) Ltd,98434805,129.00,T&S UK - Public Transport
BEIS,UKRI - AHRC,13/03/2019,T&S UK - Public Transport,HR,Corporate Travel Management (North) Ltd,98434805,184.00,T&S UK - Public Transport
BEIS,UKRI - AHRC,13/03/2019,T&S UK - Public Transport,HR,Corporate Travel Management (North) Ltd,98434805,23.70,T&S UK - Public Transport
BEIS,UKRI - AHRC,13/03/2019,T&S UK - Public Transport,HR,Corporate Travel Management (North) Ltd,98434805,23.70,T&S UK - Public Transport
BEIS,UKRI - AHRC,13/03/2019,T&S UK - Public Transport,HR,Corporate Travel Management (North) Ltd,98434805,151.10,T&S UK - Public Transport
BEIS,UKRI - AHRC,13/03/2019,T&S UK - Public Transport,HR,Corporate Travel Management (North) Ltd,98434805,151.10,T&S UK - Public Transport
BEIS,UKRI - AHRC,13/03/2019,T&S UK - Public Transport,HR,Corporate Travel Management (North) Ltd,98434805,23.70,T&S UK - Public Transport
BEIS,UKRI - AHRC,13/03/2019,T&S UK - Public Transport,HR,Corporate Travel Management (North) Ltd,98434805,1.00,T&S UK - Public Transport
BEIS,UKRI - AHRC,13/03/2019,T&S UK - Public Transport,HR,Corporate Travel Management (North) Ltd,98434805,177.00,T&S UK - Public Transport
BEIS,UKRI - AHRC,13/03/2019,T&S UK - Public Transport,HR,Corporate Travel Management (North) Ltd,98434805,(18.70),T&S UK - Public Transport
BEIS,UKRI - AHRC,13/03/2019,T&S UK - Public Transport,HR,Corporate Travel Management (North) Ltd,98434805,(18.70),T&S UK - Public Transport
BEIS,UKRI - AHRC,13/03/2019,T&S UK - Public Transport,HR,Corporate Travel Management (North) Ltd,98434805,144.00,T&S UK - Public Transport
BEIS,UKRI - AHRC,13/03/2019,T&S UK - Public Transport,HR,Corporate Travel Management (North) Ltd,98434805,144.00,T&S UK - Public Transport
BEIS,UKRI - AHRC,13/03/2019,T&S UK - Public Transport,HR,Corporate Travel Management (North) Ltd,98434805,144.00,T&S UK - Public Transport
BEIS,UKRI - AHRC,13/03/2019,T&S UK - Public Transport,HR,Corporate Travel Management (North) Ltd,98434805,103.80,T&S UK - Public Transport
BEIS,UKRI - AHRC,13/03/2019,T&S UK - Public Transport,"Histories,Culture & Heritage",Corporate Travel Management (North) Ltd,98434805,114.40,T&S UK - Public Transport
BEIS,UKRI - AHRC,13/03/2019,T&S UK - Public Transport,"Histories,Culture & Heritage",Corporate Travel Management (North) Ltd,98434805,53.45,T&S UK - Public Transport
BEIS,UKRI - AHRC,13/03/2019,T&S UK - Public Transport,"Histories,Culture & Heritage",Corporate Travel Management (North) Ltd,98434805,35.05,T&S UK - Public Transport
BEIS,UKRI - AHRC,13/03/2019,T&S UK - Public Transport,"Histories,Culture & Heritage",Corporate Travel Management (North) Ltd,98434805,81.65,T&S UK - Public Transport
BEIS,UKRI - AHRC,13/03/2019,T&S UK - Public Transport,"Histories,Culture & Heritage",Corporate Travel Management (North) Ltd,98434805,1.00,T&S UK - Public Transport
BEIS,UKRI - AHRC,13/03/2019,T&S UK - Public Transport,"Histories,Culture & Heritage",Corporate Travel Management (North) Ltd,98434805,90.90,T&S UK - Public Transport
BEIS,UKRI - AHRC,13/03/2019,T&S UK - Public Transport,"Histories,Culture & Heritage",Corporate Travel Management (North) Ltd,98434805,114.40,T&S UK - Public Transport
BEIS,UKRI - AHRC,13/03/2019,T&S UK - Public Transport,"Histories,Culture & Heritage",Corporate Travel Management (North) Ltd,98434805,1.00,T&S UK - Public Transport
BEIS,UKRI - AHRC,13/03/2019,T&S UK - Public Transport,"Histories,Culture & Heritage",Corporate Travel Management (North) Ltd,98434805,10.20,T&S UK - Public Transport
BEIS,UKRI - AHRC,13/03/2019,T&S UK - Public Transport,"Histories,Culture & Heritage",Corporate Travel Management (North) Ltd,98434805,151.10,T&S UK - Public Transport
BEIS,UKRI - AHRC,13/03/2019,T&S UK - Public Transport,"Histories,Culture & Heritage",Corporate Travel Management (North) Ltd,98434805,13.10,T&S UK - Public Transport
BEIS,UKRI - AHRC,13/03/2019,T&S UK - Public Transport,"Histories,Culture & Heritage",Corporate Travel Management (North) Ltd,98434805,39.20,T&S UK - Public Transport
BEIS,UKRI - AHRC,13/03/2019,T&S UK - Public Transport,"Histories,Culture & Heritage",Corporate Travel Management (North) Ltd,98434805,11.00,T&S UK - Public Transport
BEIS,UKRI - AHRC,13/03/2019,T&S UK - Public Transport,"Histories,Culture & Heritage",Corporate Travel Management (North) Ltd,98434805,59.30,T&S UK - Public Transport
BEIS,UKRI - AHRC,13/03/2019,T&S UK - Public Transport,"Histories,Culture & Heritage",Corporate Travel Management (North) Ltd,98434805,23.70,T&S UK - Public Transport
BEIS,UKRI - AHRC,13/03/2019,T&S UK - Public Transport,"Histories,Culture & Heritage",Corporate Travel Management (North) Ltd,98434805,1.00,T&S UK - Public Transport
BEIS,UKRI - AHRC,13/03/2019,T&S UK - Public Transport,"Histories,Culture & Heritage",Corporate Travel Management (North) Ltd,98434805,164.00,T&S UK - Public Transport
BEIS,UKRI - AHRC,13/03/2019,T&S UK - Public Transport,"Histories,Culture & Heritage",Corporate Travel Management (North) Ltd,98434805,140.00,T&S UK - Public Transport
BEIS,UKRI - AHRC,13/03/2019,T&S UK - Public Transport,"Histories,Culture & Heritage",Corporate Travel Management (North) Ltd,98434805,95.05,T&S UK - Public Transport
BEIS,UKRI - AHRC,13/03/2019,T&S UK - Public Transport,"Histories,Culture & Heritage",Corporate Travel Management (North) Ltd,98434805,84.65,T&S UK - Public Transport
BEIS,UKRI - AHRC,13/03/2019,T&S UK - Public Transport,"Histories,Culture & Heritage",Corporate Travel Management (North) Ltd,98434805,85.50,T&S UK - Public Transport
BEIS,UKRI - AHRC,13/03/2019,T&S UK - Public Transport,Industrial Strategy Challenge Fund (ISCF) - Creative Clusters,Corporate Travel Management (North) Ltd,98434805,1.00,T&S UK - Public Transport
BEIS,UKRI - AHRC,13/03/2019,T&S UK - Public Transport,Industrial Strategy Challenge Fund (ISCF) - Creative Clusters,Corporate Travel Management (North) Ltd,98434805,113.00,T&S UK - Public Transport
BEIS,UKRI - AHRC,13/03/2019,T&S UK - Public Transport,Industrial Strategy Challenge Fund (ISCF) - Creative Clusters,Corporate Travel Management (North) Ltd,98434805,1.00,T&S UK - Public Transport
BEIS,UKRI - AHRC,13/03/2019,T&S UK - Public Transport,Industrial Strategy Challenge Fund (ISCF) - Creative Clusters,Corporate Travel Management (North) Ltd,98434805,166.50,T&S UK - Public Transport
BEIS,UKRI - AHRC,13/03/2019,T&S UK - Public Transport,Industrial Strategy Challenge Fund (ISCF) - Creative Clusters,Corporate Travel Management (North) Ltd,98434805,88.30,T&S UK - Public Transport
BEIS,UKRI - AHRC,13/03/2019,T&S UK - Public Transport,Industrial Strategy Challenge Fund (ISCF) - Creative Clusters,Corporate Travel Management (North) Ltd,98434805,1.00,T&S UK - Public Transport
BEIS,UKRI - AHRC,13/03/2019,T&S UK - Public Transport,Industrial Strategy Challenge Fund (ISCF) - Creative Clusters,Corporate Travel Management (North) Ltd,98434805,166.50,T&S UK - Public Transport
BEIS,UKRI - AHRC,13/03/2019,T&S UK - Public Transport,Industrial Strategy Challenge Fund (ISCF) - Creative Clusters,Corporate Travel Management (North) Ltd,98434805,2.00,T&S UK - Public Transport
BEIS,UKRI - AHRC,13/03/2019,T&S UK - Public Transport,Industrial Strategy Challenge Fund (ISCF) - Creative Clusters,Corporate Travel Management (North) Ltd,98434805,50.50,T&S UK - Public Transport
BEIS,UKRI - AHRC,13/03/2019,T&S UK - Public Transport,Industrial Strategy Challenge Fund (ISCF) - Creative Clusters,Corporate Travel Management (North) Ltd,98434805,72.00,T&S UK - Public Transport
BEIS,UKRI - AHRC,13/03/2019,T&S UK - Public Transport,Industrial Strategy Challenge Fund (ISCF) - Creative Clusters,Corporate Travel Management (North) Ltd,98434805,1.00,T&S UK - Public Transport
BEIS,UKRI - AHRC,13/03/2019,T&S UK - Public Transport,Industrial Strategy Challenge Fund (ISCF) - Creative Clusters,Corporate Travel Management (North) Ltd,98434805,117.50,T&S UK - Public Transport
BEIS,UKRI - AHRC,13/03/2019,T&S UK - Public Transport,Industrial Strategy Challenge Fund (ISCF) - Creative Clusters,Corporate Travel Management (North) Ltd,98434805,3.00,T&S UK - Public Transport
BEIS,UKRI - AHRC,13/03/2019,T&S UK - Public Transport,Industrial Strategy Challenge Fund (ISCF) - Creative Clusters,Corporate Travel Management (North) Ltd,98434805,53.10,T&S UK - Public Transport
BEIS,UKRI - AHRC,13/03/2019,T&S UK - Public Transport,Industrial Strategy Challenge Fund (ISCF) - Creative Clusters,Corporate Travel Management (North) Ltd,98434805,171.00,T&S UK - Public Transport
BEIS,UKRI - AHRC,13/03/2019,T&S UK - Public Transport,Industrial Strategy Challenge Fund (ISCF) - Creative Clusters,Corporate Travel Management (North) Ltd,98434805,85.50,T&S UK - Public Transport
BEIS,UKRI - AHRC,13/03/2019,T&S UK - Public Transport,Industrial Strategy Challenge Fund (ISCF) - Creative Clusters,Corporate Travel Management (North) Ltd,98434805,128.20,T&S UK - Public Transport
BEIS,UKRI - AHRC,13/03/2019,T&S UK - Public Transport,Industrial Strategy Challenge Fund (ISCF) - Creative Clusters,Corporate Travel Management (North) Ltd,98434805,5.00,T&S UK - Public Transport
BEIS,UKRI - AHRC,13/03/2019,T&S UK - Public Transport,Industrial Strategy Challenge Fund (ISCF) - Creative Clusters,Corporate Travel Management (North) Ltd,98434805,(21.80),T&S UK - Public Transport
BEIS,UKRI - AHRC,13/03/2019,T&S UK - Public Transport,International,Corporate Travel Management (North) Ltd,98434805,(61.60),T&S UK - Public Transport
BEIS,UKRI - AHRC,13/03/2019,T&S UK - Public Transport,"Languages,Literature & International Engagement",Corporate Travel Management (North) Ltd,98434805,1.00,T&S UK - Public Transport
BEIS,UKRI - AHRC,13/03/2019,T&S UK - Public Transport,"Languages,Literature & International Engagement",Corporate Travel Management (North) Ltd,98434805,215.20,T&S UK - Public Transport
BEIS,UKRI - AHRC,13/03/2019,T&S UK - Public Transport,"Languages,Literature & International Engagement",Corporate Travel Management (North) Ltd,98434805,189.25,T&S UK - Public Transport
BEIS,UKRI - AHRC,13/03/2019,T&S UK - Public Transport,"Languages,Literature & International Engagement",Corporate Travel Management (North) Ltd,98434805,1.00,T&S UK - Public Transport
BEIS,UKRI - AHRC,13/03/2019,T&S UK - Public Transport,"Languages,Literature & International Engagement",Corporate Travel Management (North) Ltd,98434805,189.25,T&S UK - Public Transport
BEIS,UKRI - AHRC,13/03/2019,T&S UK - Public Transport,"Languages,Literature & International Engagement",Corporate Travel Management (North) Ltd,98434805,103.80,T&S UK - Public Transport
BEIS,UKRI - AHRC,13/03/2019,T&S UK - Public Transport,"Languages,Literature & International Engagement",Corporate Travel Management (North) Ltd,98434805,1.00,T&S UK - Public Transport
BEIS,UKRI - AHRC,13/03/2019,T&S UK - Public Transport,"Languages,Literature & International Engagement",Corporate Travel Management (North) Ltd,98434805,103.80,T&S UK - Public Transport
BEIS,UKRI - AHRC,13/03/2019,T&S UK - Public Transport,PSU Project Office,Corporate Travel Management (North) Ltd,98434805,31.40,T&S UK - Public Transport
BEIS,UKRI - AHRC,13/03/2019,T&S UK - Public Transport,PSU Project Office,Corporate Travel Management (North) Ltd,98434805,31.40,T&S UK - Public Transport
BEIS,UKRI - AHRC,13/03/2019,T&S UK - Public Transport,PSU Project Office,Corporate Travel Management (North) Ltd,98434805,31.40,T&S UK - Public Transport
BEIS,UKRI - AHRC,13/03/2019,T&S UK - Public Transport,PSU Project Office,Corporate Travel Management (North) Ltd,98434805,31.40,T&S UK - Public Transport
BEIS,UKRI - AHRC,13/03/2019,T&S UK - Public Transport,PSU Project Office,Corporate Travel Management (North) Ltd,98434805,288.00,T&S UK - Public Transport
BEIS,UKRI - AHRC,13/03/2019,T&S UK - Public Transport,PSU Project Office,Corporate Travel Management (North) Ltd,98434805,10.25,T&S UK - Public Transport
BEIS,UKRI - AHRC,13/03/2019,T&S UK - Public Transport,PSU Project Office,Corporate Travel Management (North) Ltd,98434805,16.35,T&S UK - Public Transport
BEIS,UKRI - AHRC,13/03/2019,T&S UK - Public Transport,PSU Project Office,Corporate Travel Management (North) Ltd,98434805,16.35,T&S UK - Public Transport
BEIS,UKRI - AHRC,13/03/2019,T&S UK - Public Transport,PSU Project Office,Corporate Travel Management (North) Ltd,98434805,16.35,T&S UK - Public Transport
BEIS,UKRI - AHRC,13/03/2019,T&S UK - Public Transport,PSU Project Office,Corporate Travel Management (North) Ltd,98434805,16.35,T&S UK - Public Transport
BEIS,UKRI - AHRC,13/03/2019,T&S UK - Public Transport,PSU Project Office,Corporate Travel Management (North) Ltd,98434805,16.35,T&S UK - Public Transport
BEIS,UKRI - AHRC,13/03/2019,T&S UK - Public Transport,PSU Project Office,Corporate Travel Management (North) Ltd,98434805,16.35,T&S UK - Public Transport
BEIS,UKRI - AHRC,13/03/2019,T&S UK - Public Transport,PSU Project Office,Corporate Travel Management (North) Ltd,98434805,1.00,T&S UK - Public Transport
BEIS,UKRI - AHRC,13/03/2019,T&S UK - Public Transport,PSU Project Office,Corporate Travel Management (North) Ltd,98434805,64.55,T&S UK - Public Transport
BEIS,UKRI - AHRC,13/03/2019,T&S UK - Public Transport,PSU Project Office,Corporate Travel Management (North) Ltd,98434805,1.00,T&S UK - Public Transport
BEIS,UKRI - AHRC,13/03/2019,T&S UK - Public Transport,PSU Project Office,Corporate Travel Management (North) Ltd,98434805,64.55,T&S UK - Public Transport
BEIS,UKRI - AHRC,13/03/2019,T&S UK - Public Transport,PSU Project Office,Corporate Travel Management (North) Ltd,98434805,177.00,T&S UK - Public Transport
BEIS,UKRI - AHRC,13/03/2019,T&S UK - Public Transport,PSU Project Office,Corporate Travel Management (North) Ltd,98434805,177.00,T&S UK - Public Transport
BEIS,UKRI - AHRC,13/03/2019,T&S UK - Public Transport,PSU Project Office,Corporate Travel Management (North) Ltd,98434805,48.40,T&S UK - Public Transport
BEIS,UKRI - AHRC,13/03/2019,T&S UK - Public Transport,PSU Project Office,Corporate Travel Management (North) Ltd,98434805,144.70,T&S UK - Public Transport
BEIS,UKRI - AHRC,13/03/2019,T&S UK - Public Transport,PSU Project Office,Corporate Travel Management (North) Ltd,98434805,65.20,T&S UK - Public Transport
BEIS,UKRI - AHRC,13/03/2019,T&S UK - Public Transport,PSU Project Office,Corporate Travel Management (North) Ltd,98434805,65.20,T&S UK - Public Transport
BEIS,UKRI - AHRC,13/03/2019,T&S UK - Public Transport,SMT,Corporate Travel Management (North) Ltd,98434805,39.40,T&S UK - Public Transport
BEIS,UKRI - AHRC,13/03/2019,T&S UK - Public Transport,SMT,Corporate Travel Management (North) Ltd,98434805,133.10,T&S UK - Public Transport
BEIS,UKRI - AHRC,13/03/2019,T&S UK - Public Transport,SMT,Corporate Travel Management (North) Ltd,98434805,2.00,T&S UK - Public Transport
BEIS,UKRI - AHRC,13/03/2019,T&S UK - Public Transport,SMT,Corporate Travel Management (North) Ltd,98434805,54.60,T&S UK - Public Transport
BEIS,UKRI - AHRC,13/03/2019,T&S UK - Public Transport,SMT,Corporate Travel Management (North) Ltd,98434805,1.00,T&S UK - Public Transport
BEIS,UKRI - AHRC,13/03/2019,T&S UK - Public Transport,SMT,Corporate Travel Management (North) Ltd,98434805,27.30,T&S UK - Public Transport
BEIS,UKRI - AHRC,13/03/2019,T&S UK - Public Transport,SMT,Corporate Travel Management (North) Ltd,98434805,97.80,T&S UK - Public Transport
BEIS,UKRI - AHRC,13/03/2019,T&S UK - Public Transport,SMT,Corporate Travel Management (North) Ltd,98434805,2.00,T&S UK - Public Transport
BEIS,UKRI - AHRC,13/03/2019,T&S UK - Public Transport,SMT,Corporate Travel Management (North) Ltd,98434805,89.50,T&S UK - Public Transport
BEIS,UKRI - AHRC,13/03/2019,T&S UK - Public Transport,SMT,Corporate Travel Management (North) Ltd,98434805,63.50,T&S UK - Public Transport
BEIS,UKRI - AHRC,13/03/2019,T&S UK - Public Transport,SMT,Corporate Travel Management (North) Ltd,98434805,1.00,T&S UK - Public Transport
BEIS,UKRI - AHRC,13/03/2019,T&S UK - Public Transport,SMT,Corporate Travel Management (North) Ltd,98434805,159.10,T&S UK - Public Transport
BEIS,UKRI - AHRC,13/03/2019,T&S UK - Public Transport,SMT,Corporate Travel Management (North) Ltd,98434805,67.20,T&S UK - Public Transport
BEIS,UKRI - AHRC,13/03/2019,T&S UK - Public Transport,SMT,Corporate Travel Management (North) Ltd,98434805,53.80,T&S UK - Public Transport
BEIS,UKRI - AHRC,13/03/2019,T&S UK - Public Transport,SMT,Corporate Travel Management (North) Ltd,98434805,82.30,T&S UK - Public Transport
BEIS,UKRI - AHRC,13/03/2019,T&S UK - Public Transport,SMT,Corporate Travel Management (North) Ltd,98434805,65.20,T&S UK - Public Transport
BEIS,UKRI - AHRC,13/03/2019,T&S UK - Public Transport,SMT,Corporate Travel Management (North) Ltd,98434805,97.80,T&S UK - Public Transport
BEIS,UKRI - AHRC,13/03/2019,T&S UK - Public Transport,SMT,Corporate Travel Management (North) Ltd,98434805,1.00,T&S UK - Public Transport
BEIS,UKRI - AHRC,13/03/2019,T&S UK - Public Transport,SMT,Corporate Travel Management (North) Ltd,98434805,21.40,T&S UK - Public Transport
BEIS,UKRI - AHRC,13/03/2019,T&S UK - Public Transport,SMT,Corporate Travel Management (North) Ltd,98434805,28.80,T&S UK - Public Transport
BEIS,UKRI - AHRC,13/03/2019,T&S UK - Public Transport,SMT,Corporate Travel Management (North) Ltd,98434805,1.00,T&S UK - Public Transport
BEIS,UKRI - AHRC,13/03/2019,T&S UK - Public Transport,SMT,Corporate Travel Management (North) Ltd,98434805,67.20,T&S UK - Public Transport
BEIS,UKRI - AHRC,13/03/2019,T&S UK - Public Transport,SMT,Corporate Travel Management (North) Ltd,98434805,28.80,T&S UK - Public Transport
BEIS,UKRI - AHRC,13/03/2019,T&S UK - Public Transport,SMT,Corporate Travel Management (North) Ltd,98434805,71.10,T&S UK - Public Transport
BEIS,UKRI - AHRC,13/03/2019,T&S UK - Public Transport,SMT,Corporate Travel Management (North) Ltd,98434805,1.00,T&S UK - Public Transport
BEIS,UKRI - AHRC,13/03/2019,T&S UK - Public Transport,SMT,Corporate Travel Management (North) Ltd,98434805,28.80,T&S UK - Public Transport
BEIS,UKRI - AHRC,13/03/2019,T&S UK - Public Transport,SMT,Corporate Travel Management (North) Ltd,98434805,36.50,T&S UK - Public Transport
BEIS,UKRI - AHRC,13/03/2019,T&S UK - Public Transport,SMT,Corporate Travel Management (North) Ltd,98434805,56.50,T&S UK - Public Transport
BEIS,UKRI - AHRC,13/03/2019,T&S UK - Public Transport,SMT,Corporate Travel Management (North) Ltd,98434805,20.50,T&S UK - Public Transport
BEIS,UKRI - AHRC,13/03/2019,T&S UK - Public Transport,SMT,Corporate Travel Management (North) Ltd,98434805,(64.00),T&S UK - Public Transport
BEIS,UKRI - AHRC,13/03/2019,T&S UK - Public Transport,SMT,Corporate Travel Management (North) Ltd,98434805,1.00,T&S UK - Public Transport
BEIS,UKRI - AHRC,13/03/2019,T&S UK - Public Transport,SMT,Corporate Travel Management (North) Ltd,98434805,144.40,T&S UK - Public Transport
BEIS,UKRI - AHRC,13/03/2019,T&S UK - Public Transport,SMT,Corporate Travel Management (North) Ltd,98434805,138.00,T&S UK - Public Transport
BEIS,UKRI - AHRC,13/03/2019,T&S UK - Public Transport,SMT,Corporate Travel Management (North) Ltd,98434805,108.40,T&S UK - Public Transport
BEIS,UKRI - AHRC,13/03/2019,T&S UK - Public Transport,SMT,Corporate Travel Management (North) Ltd,98434805,32.60,T&S UK - Public Transport
BEIS,UKRI - AHRC,13/03/2019,T&S UK - Public Transport,SMT,Corporate Travel Management (North) Ltd,98434805,101.50,T&S UK - Public Transport
BEIS,UKRI - AHRC,13/03/2019,T&S UK - Public Transport,SMT,Corporate Travel Management (North) Ltd,98434805,5.00,T&S UK - Public Transport
BEIS,UKRI - AHRC,13/03/2019,T&S UK - Public Transport,SMT,Corporate Travel Management (North) Ltd,98434805,(61.60),T&S UK - Public Transport
BEIS,UKRI - AHRC,13/03/2019,T&S UK - Public Transport,SMT,Corporate Travel Management (North) Ltd,98434805,1.00,T&S UK - Public Transport
BEIS,UKRI - AHRC,13/03/2019,T&S UK - Public Transport,SMT,Corporate Travel Management (North) Ltd,98434805,116.00,T&S UK - Public Transport
BEIS,UKRI - AHRC,13/03/2019,T&S UK - Public Transport,SMT,Corporate Travel Management (North) Ltd,98434805,109.00,T&S UK - Public Transport
BEIS,UKRI - AHRC,13/03/2019,T&S UK - Public Transport,SMT,Corporate Travel Management (North) Ltd,98434805,28.80,T&S UK - Public Transport
BEIS,UKRI - AHRC,13/03/2019,T&S UK - Public Transport,SMT,Corporate Travel Management (North) Ltd,98434805,108.40,T&S UK - Public Transport
BEIS,UKRI - AHRC,13/03/2019,T&S UK - Public Transport,SMT,Corporate Travel Management (North) Ltd,98434805,108.40,T&S UK - Public Transport
BEIS,UKRI - AHRC,13/03/2019,T&S UK - Public Transport,SMT,Corporate Travel Management (North) Ltd,98434805,89.00,T&S UK - Public Transport
BEIS,UKRI - AHRC,13/03/2019,T&S UK - Public Transport,SMT,Corporate Travel Management (North) Ltd,98434805,39.40,T&S UK - Public Transport
BEIS,UKRI - AHRC,13/03/2019,T&S UK - Public Transport,SMT,Corporate Travel Management (North) Ltd,98434805,1.00,T&S UK - Public Transport
BEIS,UKRI - AHRC,13/03/2019,T&S UK - Public Transport,SMT,Corporate Travel Management (North) Ltd,98434805,37.00,T&S UK - Public Transport
BEIS,UKRI - AHRC,13/03/2019,T&S UK - Public Transport,SMT,Corporate Travel Management (North) Ltd,98434805,1.00,T&S UK - Public Transport
BEIS,UKRI - AHRC,13/03/2019,T&S UK - Public Transport,SMT,Corporate Travel Management (North) Ltd,98434805,127.50,T&S UK - Public Transport
BEIS,UKRI - AHRC,13/03/2019,T&S UK - Public Transport,SMT,Corporate Travel Management (North) Ltd,98434805,203.00,T&S UK - Public Transport
BEIS,UKRI - AHRC,13/03/2019,T&S UK - Public Transport,SMT,Corporate Travel Management (North) Ltd,98434805,47.65,T&S UK - Public Transport
BEIS,UKRI - AHRC,13/03/2019,T&S UK - Public Transport,SMT,Corporate Travel Management (North) Ltd,98434805,1.00,T&S UK - Public Transport
BEIS,UKRI - AHRC,13/03/2019,T&S UK - Public Transport,SMT,Corporate Travel Management (North) Ltd,98434805,205.50,T&S UK - Public Transport
BEIS,UKRI - AHRC,13/03/2019,T&S UK - Public Transport,SMT,Corporate Travel Management (North) Ltd,98434805,95.45,T&S UK - Public Transport
BEIS,UKRI - AHRC,13/03/2019,T&S UK - Public Transport,SMT,Corporate Travel Management (North) Ltd,98434805,134.00,T&S UK - Public Transport
BEIS,UKRI - AHRC,13/03/2019,T&S UK - Public Transport,SMT,Corporate Travel Management (North) Ltd,98434805,42.10,T&S UK - Public Transport
BEIS,UKRI - AHRC,13/03/2019,T&S UK - Public Transport,SMT,Corporate Travel Management (North) Ltd,98434805,121.60,T&S UK - Public Transport
BEIS,UKRI - AHRC,13/03/2019,T&S UK - Public Transport,SMT,Corporate Travel Management (North) Ltd,98434805,1.00,T&S UK - Public Transport
BEIS,UKRI - AHRC,13/03/2019,T&S UK - Public Transport,SMT,Corporate Travel Management (North) Ltd,98434805,107.00,T&S UK - Public Transport
BEIS,UKRI - AHRC,13/03/2019,T&S UK - Public Transport,SMT,Corporate Travel Management (North) Ltd,98434805,28.80,T&S UK - Public Transport
BEIS,UKRI - AHRC,13/03/2019,T&S UK - Public Transport,SMT,Corporate Travel Management (North) Ltd,98434805,89.00,T&S UK - Public Transport
BEIS,UKRI - AHRC,13/03/2019,T&S UK - Public Transport,SMT,Corporate Travel Management (North) Ltd,98434805,39.40,T&S UK - Public Transport
BEIS,UKRI - AHRC,13/03/2019,T&S UK - Public Transport,SMT,Corporate Travel Management (North) Ltd,98434805,108.40,T&S UK - Public Transport
BEIS,UKRI - AHRC,13/03/2019,T&S UK - Public Transport,SMT,Corporate Travel Management (North) Ltd,98434805,10.70,T&S UK - Public Transport
BEIS,UKRI - AHRC,13/03/2019,T&S UK - Public Transport,SMT,Corporate Travel Management (North) Ltd,98434805,88.20,T&S UK - Public Transport
BEIS,UKRI - AHRC,13/03/2019,T&S UK - Public Transport,SMT,Corporate Travel Management (North) Ltd,98434805,32.60,T&S UK - Public Transport
BEIS,UKRI - AHRC,13/03/2019,T&S UK - Public Transport,SMT,Corporate Travel Management (North) Ltd,98434805,1.00,T&S UK - Public Transport
BEIS,UKRI - AHRC,13/03/2019,T&S UK - Public Transport,SMT,Corporate Travel Management (North) Ltd,98434805,89.50,T&S UK - Public Transport
BEIS,UKRI - AHRC,13/03/2019,T&S UK - Public Transport,SMT,Corporate Travel Management (North) Ltd,98434805,5.00,T&S UK - Public Transport
BEIS,UKRI - AHRC,13/03/2019,T&S UK - Public Transport,SMT,Corporate Travel Management (North) Ltd,98434805,(47.60),T&S UK - Public Transport
BEIS,UKRI - AHRC,13/03/2019,T&S UK - Public Transport,SMT,Corporate Travel Management (North) Ltd,98434805,53.80,T&S UK - Public Transport
BEIS,UKRI - AHRC,13/03/2019,T&S UK - Public Transport,SMT,Corporate Travel Management (North) Ltd,98434805,64.50,T&S UK - Public Transport
BEIS,UKRI - AHRC,13/03/2019,T&S UK - Public Transport,SMT,Corporate Travel Management (North) Ltd,98434805,108.40,T&S UK - Public Transport
BEIS,UKRI - AHRC,13/03/2019,T&S UK - Public Transport,SMT,Corporate Travel Management (North) Ltd,98434805,20.50,T&S UK - Public Transport
BEIS,UKRI - AHRC,13/03/2019,T&S UK - Public Transport,SMT,Corporate Travel Management (North) Ltd,98434805,53.80,T&S UK - Public Transport
BEIS,UKRI - AHRC,13/03/2019,T&S UK - Public Transport,SMT,Corporate Travel Management (North) Ltd,98434805,5.00,T&S UK - Public Transport
BEIS,UKRI - AHRC,13/03/2019,T&S UK - Public Transport,SMT,Corporate Travel Management (North) Ltd,98434805,(208.00),T&S UK - Public Transport
BEIS,UKRI - AHRC,13/03/2019,T&S UK - Public Transport,SMT,Corporate Travel Management (North) Ltd,98434805,85.50,T&S UK - Public Transport
BEIS,UKRI - AHRC,13/03/2019,T&S UK - Public Transport,SMT,Corporate Travel Management (North) Ltd,98434805,138.00,T&S UK - Public Transport
BEIS,UKRI - AHRC,13/03/2019,T&S UK - Public Transport,SMT,Corporate Travel Management (North) Ltd,98434805,138.00,T&S UK - Public Transport
BEIS,UKRI - AHRC,13/03/2019,T&S UK - Public Transport,SMT,Corporate Travel Management (North) Ltd,98434805,74.60,T&S UK - Public Transport
BEIS,UKRI - AHRC,13/03/2019,T&S UK - Public Transport,SMT,Corporate Travel Management (North) Ltd,98434805,1.00,T&S UK - Public Transport
BEIS,UKRI - AHRC,13/03/2019,T&S UK - Public Transport,SMT,Corporate Travel Management (North) Ltd,98434805,45.00,T&S UK - Public Transport
BEIS,UKRI - AHRC,13/03/2019,T&S UK - Public Transport,SMT,Corporate Travel Management (North) Ltd,98434805,186.00,T&S UK - Public Transport
BEIS,UKRI - AHRC,13/03/2019,T&S UK - Public Transport,SMT,Corporate Travel Management (North) Ltd,98434805,97.80,T&S UK - Public Transport
BEIS,UKRI - AHRC,13/03/2019,T&S UK - Public Transport,SMT,Corporate Travel Management (North) Ltd,98434805,1.00,T&S UK - Public Transport
BEIS,UKRI - AHRC,13/03/2019,T&S UK - Public Transport,SMT,Corporate Travel Management (North) Ltd,98434805,69.00,T&S UK - Public Transport
BEIS,UKRI - AHRC,13/03/2019,T&S UK - Public Transport,SMT,Corporate Travel Management (North) Ltd,98434805,28.80,T&S UK - Public Transport
BEIS,UKRI - AHRC,13/03/2019,T&S UK - Public Transport,SMT,Corporate Travel Management (North) Ltd,98434805,28.80,T&S UK - Public Transport
BEIS,UKRI - AHRC,13/03/2019,T&S UK - Public Transport,SMT,Corporate Travel Management (North) Ltd,98434805,1.00,T&S UK - Public Transport
BEIS,UKRI - AHRC,13/03/2019,T&S UK - Public Transport,SMT,Corporate Travel Management (North) Ltd,98434805,216.80,T&S UK - Public Transport
BEIS,UKRI - AHRC,13/03/2019,T&S UK - Public Transport,SMT,Corporate Travel Management (North) Ltd,98434805,1.00,T&S UK - Public Transport
BEIS,UKRI - AHRC,13/03/2019,T&S UK - Public Transport,SMT,Corporate Travel Management (North) Ltd,98434805,356.00,T&S UK - Public Transport
BEIS,UKRI - AHRC,13/03/2019,T&S UK - Public Transport,SMT,Corporate Travel Management (North) Ltd,98434805,1.00,T&S UK - Public Transport
BEIS,UKRI - AHRC,13/03/2019,T&S UK - Public Transport,SMT,Corporate Travel Management (North) Ltd,98434805,322.60,T&S UK - Public Transport
BEIS,UKRI - AHRC,13/03/2019,T&S UK - Public Transport,SMT,Corporate Travel Management (North) Ltd,98434805,69.50,T&S UK - Public Transport
BEIS,UKRI - AHRC,13/03/2019,T&S UK - Public Transport,SMT Strategic Leads,Corporate Travel Management (North) Ltd,98434805,13.10,T&S UK - Public Transport
BEIS,UKRI - AHRC,13/03/2019,T&S UK - Public Transport,SMT Strategic Leads,Corporate Travel Management (North) Ltd,98434805,28.00,T&S UK - Public Transport
BEIS,UKRI - AHRC,13/03/2019,T&S UK - Public Transport,SMT Strategic Leads,Corporate Travel Management (North) Ltd,98434805,26.20,T&S UK - Public Transport
BEIS,UKRI - AHRC,13/03/2019,T&S UK - Public Transport,SMT Strategic Leads,Corporate Travel Management (North) Ltd,98434805,30.00,T&S UK - Public Transport
BEIS,UKRI - AHRC,13/03/2019,T&S UK - Public Transport,SMT Strategic Leads,Corporate Travel Management (North) Ltd,98434805,35.70,T&S UK - Public Transport
BEIS,UKRI - AHRC,13/03/2019,T&S UK - Public Transport,SMT Strategic Leads,Corporate Travel Management (North) Ltd,98434805,13.10,T&S UK - Public Transport
BEIS,UKRI - AHRC,13/03/2019,T&S UK - Public Transport,SMT Strategic Leads,Corporate Travel Management (North) Ltd,98434805,30.20,T&S UK - Public Transport
BEIS,UKRI - AHRC,13/03/2019,T&S UK - Public Transport,SMT Strategic Leads,Corporate Travel Management (North) Ltd,98434805,24.50,T&S UK - Public Transport
BEIS,UKRI - AHRC,13/03/2019,T&S UK - Public Transport,SMT Strategic Leads,Corporate Travel Management (North) Ltd,98434805,2.16,T&S UK - Public Transport
BEIS,UKRI - AHRC,13/03/2019,T&S UK - Public Transport,SMT Strategic Leads,Corporate Travel Management (North) Ltd,98434805,123.55,T&S UK - Public Transport
BEIS,UKRI - AHRC,13/03/2019,T&S UK - Public Transport,SMT Strategic Leads,Corporate Travel Management (North) Ltd,98434805,174.45,T&S UK - Public Transport
BEIS,UKRI - AHRC,13/03/2019,T&S UK - Public Transport,SMT Strategic Leads,Corporate Travel Management (North) Ltd,98434805,13.10,T&S UK - Public Transport
BEIS,UKRI - AHRC,13/03/2019,T&S UK - Public Transport,SMT Strategic Leads,Corporate Travel Management (North) Ltd,98434805,34.70,T&S UK - Public Transport
BEIS,UKRI - AHRC,13/03/2019,T&S UK - Public Transport,SMT Strategic Leads,Corporate Travel Management (North) Ltd,98434805,6.00,T&S UK - Public Transport
BEIS,UKRI - AHRC,13/03/2019,T&S UK - Public Transport,Secretariat,Corporate Travel Management (North) Ltd,98434805,39.70,T&S UK - Public Transport
BEIS,UKRI - AHRC,13/03/2019,T&S UK - Public Transport,Secretariat,Corporate Travel Management (North) Ltd,98434805,26.50,T&S UK - Public Transport
BEIS,UKRI - AHRC,13/03/2019,T&S UK - Public Transport,Skills,Corporate Travel Management (North) Ltd,98434805,36.00,T&S UK - Public Transport
BEIS,UKRI - AHRC,13/03/2019,T&S UK - Public Transport,Skills,Corporate Travel Management (North) Ltd,98434805,36.00,T&S UK - Public Transport
BEIS,UKRI - AHRC,13/03/2019,T&S UK - Public Transport,Skills,Corporate Travel Management (North) Ltd,98434805,184.00,T&S UK - Public Transport
BEIS,UKRI - AHRC,13/03/2019,T&S UK - Public Transport,Skills,Corporate Travel Management (North) Ltd,98434805,18.00,T&S UK - Public Transport
BEIS,UKRI - AHRC,13/03/2019,T&S UK - Public Transport,Skills,Corporate Travel Management (North) Ltd,98434805,43.30,T&S UK - Public Transport
BEIS,UKRI - AHRC,13/03/2019,T&S UK - Public Transport,Skills,Corporate Travel Management (North) Ltd,98434805,114.40,T&S UK - Public Transport
BEIS,UKRI - AHRC,13/03/2019,T&S UK - Public Transport,Skills,Corporate Travel Management (North) Ltd,98434805,103.80,T&S UK - Public Transport
BEIS,UKRI - AHRC,25/03/2019,Research Grant Expenditure,JPI Cultural Heritage,De Montfort University,98424840,"13,222.05",Research Grant Expenditure
BEIS,UKRI - AHRC,25/03/2019,Research Grant Expenditure,Audience of the Future (ISCF 2),Digital Catapult Services Ltd,98425041,"101,527.98",Research Grant Expenditure
BEIS,UKRI - AHRC,25/03/2019,Research Grant Expenditure,Audience of the Future (ISCF 2),Digital Catapult Services Ltd,98425041,"101,527.98",Research Grant Expenditure
BEIS,UKRI - AHRC,07/03/2019,Marketing & PR,Communications,E & P Design Ltd,98427869,100.00,Marketing & PR
BEIS,UKRI - AHRC,19/03/2019,Fellowships,Public Policy,Economic & Social Research Council,98437646,"8,503.88",Fellowships
BEIS,UKRI - AHRC,19/03/2019,Fellowships,Public Policy,Economic & Social Research Council,98437648,"10,059.12",Fellowships
BEIS,UKRI - AHRC,19/03/2019,Fellowships,Public Policy,Economic & Social Research Council,98437649,"7,765.04",Fellowships
BEIS,UKRI - AHRC,19/03/2019,Research Grant Expenditure,Connected Communities Programme,Economic & Social Research Council,98439468,"4,534.10",Research Grant Expenditure
BEIS,UKRI - AHRC,19/03/2019,Research Grant Expenditure,Cross Council Responsive Mode Awards,Economic & Social Research Council,98439470,"41,404.58",Research Grant Expenditure
BEIS,UKRI - AHRC,19/03/2019,Research Grant Expenditure,Global Uncertainties Programme,Economic & Social Research Council,98439473,"3,255.66",Research Grant Expenditure
BEIS,UKRI - AHRC,19/03/2019,Research Grant Expenditure,Global Uncertainties Programme,Economic & Social Research Council,98439474,"2,052.56",Research Grant Expenditure
BEIS,UKRI - AHRC,19/03/2019,Research Grant Expenditure,Global Uncertainties Programme,Economic & Social Research Council,98439488,"2,846.36",Research Grant Expenditure
BEIS,UKRI - AHRC,19/03/2019,Research Grant Expenditure,Cross Council Responsive Mode Awards,Economic & Social Research Council,98439489,"29,027.54",Research Grant Expenditure
BEIS,UKRI - AHRC,19/03/2019,Research Grant Expenditure,Global Challenges Research Fund (GCRF),Economic & Social Research Council,98439492,"9,186.95",Research Grant Expenditure
BEIS,UKRI - AHRC,19/03/2019,Research Grant Expenditure,Global Challenges Research Fund (GCRF),Economic & Social Research Council,98439493,"16,745.00",Research Grant Expenditure
BEIS,UKRI - AHRC,19/03/2019,Research Grant Expenditure,Cross Council Responsive Mode Awards,Economic & Social Research Council,98439496,"12,601.65",Research Grant Expenditure
BEIS,UKRI - AHRC,19/03/2019,Research Grant Expenditure,Anti-microbial Resistance (AMR),Economic & Social Research Council,98439500,"26,477.59",Research Grant Expenditure
BEIS,UKRI - AHRC,19/03/2019,Research Grant Expenditure,Commissioned Research,Economic & Social Research Council,98439501,"27,009.57",Research Grant Expenditure
BEIS,UKRI - AHRC,19/03/2019,Research Grant Expenditure,Cross Council Responsive Mode Awards,Economic & Social Research Council,98439503,"14,201.08",Research Grant Expenditure
BEIS,UKRI - AHRC,19/03/2019,Research Grant Expenditure,RCUK Global Challenges Research Fund (RCUK GCRF),Economic & Social Research Council,98439508,"36,744.00",Research Grant Expenditure
BEIS,UKRI - AHRC,19/03/2019,Research Grant Expenditure,RCUK Global Challenges Research Fund (RCUK GCRF),Economic & Social Research Council,98439516,"51,129.90",Research Grant Expenditure
BEIS,UKRI - AHRC,19/03/2019,Research Grant Expenditure,RCUK Global Challenges Research Fund (RCUK GCRF),Economic & Social Research Council,98439519,"21,842.65",Research Grant Expenditure
BEIS,UKRI - AHRC,19/03/2019,Research Grant Expenditure,RCUK Global Challenges Research Fund (RCUK GCRF),Economic & Social Research Council,98439522,"18,896.35",Research Grant Expenditure
BEIS,UKRI - AHRC,19/03/2019,Research Grant Expenditure,RCUK Global Challenges Research Fund (RCUK GCRF),Economic & Social Research Council,98439532,"21,828.10",Research Grant Expenditure
BEIS,UKRI - AHRC,19/03/2019,Research Grant Expenditure,RCUK Global Challenges Research Fund (RCUK GCRF),Economic & Social Research Council,98439535,"47,090.50",Research Grant Expenditure
BEIS,UKRI - AHRC,19/03/2019,Research Grant Expenditure,RCUK Global Challenges Research Fund (RCUK GCRF),Economic & Social Research Council,98439536,"38,826.50",Research Grant Expenditure
BEIS,UKRI - AHRC,19/03/2019,Research Grant Expenditure,RCUK Global Challenges Research Fund (RCUK GCRF),Economic & Social Research Council,98439546,"46,571.80",Research Grant Expenditure
BEIS,UKRI - AHRC,19/03/2019,Research Grant Expenditure,Urban Living,Economic & Social Research Council,98439550,"3,527.65",Research Grant Expenditure
BEIS,UKRI - AHRC,19/03/2019,Research Grant Expenditure,Urban Living,Economic & Social Research Council,98439557,"3,977.16",Research Grant Expenditure
BEIS,UKRI - AHRC,19/03/2019,Research Grant Expenditure,Urban Living,Economic & Social Research Council,98439560,"7,216.28",Research Grant Expenditure
BEIS,UKRI - AHRC,19/03/2019,Research Grant Expenditure,Urban Living,Economic & Social Research Council,98439564,"7,111.40",Research Grant Expenditure
BEIS,UKRI - AHRC,19/03/2019,Research Grant Expenditure,Urban Living,Economic & Social Research Council,98439566,"5,692.00",Research Grant Expenditure
BEIS,UKRI - AHRC,19/03/2019,Research Grant Expenditure,Urban Living,Economic & Social Research Council,98439570,"3,466.63",Research Grant Expenditure
BEIS,UKRI - AHRC,19/03/2019,Research Grant Expenditure,Digital Transformations,Economic & Social Research Council,98439582,"6,321.46",Research Grant Expenditure
BEIS,UKRI - AHRC,26/03/2019,Research Grant Expenditure,Urban Living,Economic & Social Research Council,98439555,"2,498.12",Research Grant Expenditure
BEIS,UKRI - AHRC,26/03/2019,Research Grant Expenditure,Digital Transformations,Economic & Social Research Council,98441888,"7,847.07",Research Grant Expenditure
BEIS,UKRI - AHRC,26/03/2019,Research Grant Expenditure,Digital Transformations,Economic & Social Research Council,98441892,"7,176.91",Research Grant Expenditure
BEIS,UKRI - AHRC,26/03/2019,Research Grant Expenditure,Digital Transformations,Economic & Social Research Council,98441913,"5,081.33",Research Grant Expenditure
BEIS,UKRI - AHRC,26/03/2019,Research Grant Expenditure,Digital Transformations,Economic & Social Research Council,98441915,"8,697.38",Research Grant Expenditure
BEIS,UKRI - AHRC,26/03/2019,Research Grant Expenditure,Digital Transformations,Economic & Social Research Council,98441918,"5,543.41",Research Grant Expenditure
BEIS,UKRI - AHRC,26/03/2019,Research Grant Expenditure,Digital Transformations,Economic & Social Research Council,98441921,"7,315.58",Research Grant Expenditure
BEIS,UKRI - AHRC,26/03/2019,Research Grant Expenditure,Urban Living,Economic & Social Research Council,98441930,"6,299.70",Research Grant Expenditure
BEIS,UKRI - AHRC,26/03/2019,Research Grant Expenditure,Cross Council Responsive Mode Awards,Economic & Social Research Council,98441932,"15,890.03",Research Grant Expenditure
BEIS,UKRI - AHRC,26/03/2019,Research Grant Expenditure,Global Challenges Research Fund (GCRF),Economic & Social Research Council,98441937,"13,933.95",Research Grant Expenditure
BEIS,UKRI - AHRC,26/03/2019,Research Grant Expenditure,Global Challenges Research Fund (GCRF),Economic & Social Research Council,98441940,"35,041.02",Research Grant Expenditure
BEIS,UKRI - AHRC,26/03/2019,Research Grant Expenditure,Global Challenges Research Fund (GCRF),Economic & Social Research Council,98441942,"16,559.90",Research Grant Expenditure
BEIS,UKRI - AHRC,26/03/2019,Research Grant Expenditure,Global Challenges Research Fund (GCRF),Economic & Social Research Council,98441946,"6,370.06",Research Grant Expenditure
BEIS,UKRI - AHRC,26/03/2019,Research Grant Expenditure,Global Challenges Research Fund (GCRF),Economic & Social Research Council,98441949,"17,232.61",Research Grant Expenditure
BEIS,UKRI - AHRC,26/03/2019,Research Grant Expenditure,Urban Living,Economic & Social Research Council,98441951,"3,921.89",Research Grant Expenditure
BEIS,UKRI - AHRC,26/03/2019,Research Grant Expenditure,Urban Living,Economic & Social Research Council,98441953,"4,001.05",Research Grant Expenditure
BEIS,UKRI - AHRC,26/03/2019,Research Grant Expenditure,Urban Living,Economic & Social Research Council,98441956,"5,026.21",Research Grant Expenditure
BEIS,UKRI - AHRC,26/03/2019,Research Grant Expenditure,Urban Living,Economic & Social Research Council,98441958,"3,336.08",Research Grant Expenditure
BEIS,UKRI - AHRC,26/03/2019,Research Grant Expenditure,Urban Living,Economic & Social Research Council,98441961,"4,525.08",Research Grant Expenditure
BEIS,UKRI - AHRC,26/03/2019,Research Grant Expenditure,Urban Living,Economic & Social Research Council,98441964,"3,743.85",Research Grant Expenditure
BEIS,UKRI - AHRC,26/03/2019,Research Grant Expenditure,Commissioned Research,Economic & Social Research Council,98441977,"17,919.32",Research Grant Expenditure
BEIS,UKRI - AHRC,26/03/2019,Research Grant Expenditure,Commissioned Research,Economic & Social Research Council,98441985,"6,089.15",Research Grant Expenditure
BEIS,UKRI - AHRC,26/03/2019,Research Grant Expenditure,Commissioned Research,Economic & Social Research Council,98441992,"5,910.75",Research Grant Expenditure
BEIS,UKRI - AHRC,26/03/2019,Research Grant Expenditure,Commissioned Research,Economic & Social Research Council,98442002,"13,455.05",Research Grant Expenditure
BEIS,UKRI - AHRC,26/03/2019,Research Grant Expenditure,Commissioned Research,Economic & Social Research Council,98442010,"8,010.77",Research Grant Expenditure
BEIS,UKRI - AHRC,26/03/2019,Research Grant Expenditure,Commissioned Research,Economic & Social Research Council,98442017,"6,741.89",Research Grant Expenditure
BEIS,UKRI - AHRC,26/03/2019,Research Grant Expenditure,Commissioned Research,Economic & Social Research Council,98442023,"6,728.90",Research Grant Expenditure
BEIS,UKRI - AHRC,26/03/2019,Research Grant Expenditure,Commissioned Research,Economic & Social Research Council,98442029,"6,728.45",Research Grant Expenditure
BEIS,UKRI - AHRC,26/03/2019,Research Grant Expenditure,RCUK Global Challenges Research Fund (RCUK GCRF),Economic & Social Research Council,98442034,"184,648.77",Research Grant Expenditure
BEIS,UKRI - AHRC,26/03/2019,Research Grant Expenditure,RCUK Global Challenges Research Fund (RCUK GCRF),Economic & Social Research Council,98442040,"91,173.00",Research Grant Expenditure
BEIS,UKRI - AHRC,26/03/2019,Research Grant Expenditure,RCUK Global Challenges Research Fund (RCUK GCRF),Economic & Social Research Council,98442045,"44,854.38",Research Grant Expenditure
BEIS,UKRI - AHRC,19/03/2019,Nursery Deductions,Balance Sheet,EDENRED (UK GROUP) LTD,98440545,"3,294.00",Nursery Deductions
BEIS,UKRI - AHRC,25/03/2019,Research Grant Expenditure,Fund for International Collaboration (FIC),Edge Hill University College,98423904,"25,204.12",Research Grant Expenditure
BEIS,UKRI - AHRC,21/03/2019,Conferences & Seminars,Commissioned Research,Edinburgh International Television Festival Ltd,98374365,"24,000.00",Conferences & Seminars
BEIS,UKRI - AHRC,28/03/2019,Advertising & Promotion,GCRF - Programme Delivery,Elmar Rubio T/A Elmar Rubio Photography,98449884,592.00,Advertising & Promotion
BEIS,UKRI - AHRC,19/03/2019,Computer Software Licences,Business Process & Analysis,Engineering & Physical Sciences Research Council,98419837,"18,750.00",Computer Software Licences
BEIS,UKRI - AHRC,19/03/2019,Research Grant Expenditure,NPIF Research Talent (RCUK Innovation Fellowships),Engineering & Physical Sciences Research Council,98437929,"21,516.37",Research Grant Expenditure
BEIS,UKRI - AHRC,19/03/2019,Research Grant Expenditure,NPIF Research Talent (RCUK Innovation Fellowships),Engineering & Physical Sciences Research Council,98437933,"12,345.07",Research Grant Expenditure
BEIS,UKRI - AHRC,19/03/2019,Research Grant Expenditure,NPIF Research Talent (RCUK Innovation Fellowships),Engineering & Physical Sciences Research Council,98437938,"7,006.61",Research Grant Expenditure
BEIS,UKRI - AHRC,19/03/2019,Research Grant Expenditure,NPIF Research Talent (RCUK Innovation Fellowships),Engineering & Physical Sciences Research Council,98437941,"13,825.97",Research Grant Expenditure
BEIS,UKRI - AHRC,19/03/2019,Research Grant Expenditure,Digital Economy,Engineering & Physical Sciences Research Council,98437965,"25,597.49",Research Grant Expenditure
BEIS,UKRI - AHRC,19/03/2019,Research Grant Expenditure,Digital Economy,Engineering & Physical Sciences Research Council,98437966,"25,681.85",Research Grant Expenditure
BEIS,UKRI - AHRC,19/03/2019,Research Grant Expenditure,Digital Economy,Engineering & Physical Sciences Research Council,98438047,"13,971.40",Research Grant Expenditure
BEIS,UKRI - AHRC,19/03/2019,Research Grant Expenditure,Digital Economy,Engineering & Physical Sciences Research Council,98438057,"6,203.54",Research Grant Expenditure
BEIS,UKRI - AHRC,19/03/2019,Research Grant Expenditure,Digital Economy,Engineering & Physical Sciences Research Council,98438059,"21,065.71",Research Grant Expenditure
BEIS,UKRI - AHRC,19/03/2019,Research Grant Expenditure,Digital Economy,Engineering & Physical Sciences Research Council,98438060,"10,485.34",Research Grant Expenditure
BEIS,UKRI - AHRC,19/03/2019,Research Grant Expenditure,Digital Economy,Engineering & Physical Sciences Research Council,98438062,"17,620.49",Research Grant Expenditure
BEIS,UKRI - AHRC,19/03/2019,Research Grant Expenditure,Digital Economy,Engineering & Physical Sciences Research Council,98438064,"32,411.72",Research Grant Expenditure
BEIS,UKRI - AHRC,26/03/2019,Other Programme Costs,RCUK Other,Engineering & Physical Sciences Research Council,98426091,"232,758.16",Other Programme Costs
BEIS,UKRI - AHRC,20/03/2019,Consultancy Services,HR,Everwell Occupational Health Ltd,98442048,144.00,Consultancy Services
BEIS,UKRI - AHRC,25/03/2019,Research Grant Expenditure,Creative Economy,Falmouth University,98424959,"31,213.33",Research Grant Expenditure
BEIS,UKRI - AHRC,25/03/2019,Research Grant Expenditure,Creative Economy,Falmouth University,98425132,"(2,811.78)",Research Grant Expenditure
BEIS,UKRI - AHRC,25/03/2019,Research Grant Expenditure,Anti-microbial Resistance (AMR),Glasgow School of Art,98424770,"30,170.60",Research Grant Expenditure
BEIS,UKRI - AHRC,25/03/2019,Research Grant Expenditure,Anti-microbial Resistance (AMR),Glasgow School of Art,98424775,"26,005.19",Research Grant Expenditure
BEIS,UKRI - AHRC,25/03/2019,Research Grant Expenditure,Creative Economy,Glasgow School of Art,98424946,"32,137.89",Research Grant Expenditure
BEIS,UKRI - AHRC,25/03/2019,Research Grant Expenditure,Creative Economy,Glasgow School of Art,98425138,"(4,180.45)",Research Grant Expenditure
BEIS,UKRI - AHRC,25/03/2019,Fellowships,NPIF Research Talent (RCUK Innovation Fellowships),Glasgow School of Art,98425239,"25,171.15",Fellowships
BEIS,UKRI - AHRC,25/03/2019,Research Grant Expenditure,RCUK Global Challenges Research Fund (RCUK GCRF),Goldsmiths College University of London,98424801,"203,857.00",Research Grant Expenditure
BEIS,UKRI - AHRC,25/03/2019,Research Grant Expenditure,Research Grants,Goldsmiths College University of London,98424811,"71,272.74",Research Grant Expenditure
BEIS,UKRI - AHRC,25/03/2019,Research Grant Expenditure,Follow-on Fund,Goldsmiths College University of London,98424879,"80,639.39",Research Grant Expenditure
BEIS,UKRI - AHRC,25/03/2019,Research Grant Expenditure,Creative Economy,Goldsmiths College University of London,98424964,"8,024.94",Research Grant Expenditure
BEIS,UKRI - AHRC,25/03/2019,Research Grant Expenditure,Global Challenges Research Fund (GCRF),Goldsmiths College University of London,98424970,"31,480.26",Research Grant Expenditure
BEIS,UKRI - AHRC,25/03/2019,Research Grant Expenditure,Global Challenges Research Fund (GCRF),Goldsmiths College University of London,98424972,"37,133.47",Research Grant Expenditure
BEIS,UKRI - AHRC,25/03/2019,Research Grant Expenditure,Fund for International Collaboration (FIC),Goldsmiths College University of London,98425007,"47,937.20",Research Grant Expenditure
BEIS,UKRI - AHRC,25/03/2019,Research Grant Expenditure,Fund for International Collaboration (FIC),Goldsmiths College University of London,98425050,"12,517.87",Research Grant Expenditure
BEIS,UKRI - AHRC,25/03/2019,Research Grant Expenditure,Follow-on Fund,Goldsmiths College University of London,98425100,"(161,017.94)",Research Grant Expenditure
BEIS,UKRI - AHRC,25/03/2019,Fellowships,Research Fellowships,Goldsmiths College University of London,98425219,"22,263.79",Fellowships
BEIS,UKRI - AHRC,14/03/2019,Agency Staff,Finance,Hays Specialist Recruitment Ltd,98434812,"2,672.76",Agency Staff
BEIS,UKRI - AHRC,15/03/2019,Agency Staff,Finance,Hays Specialist Recruitment Ltd,98435678,"1,816.50",Agency Staff
BEIS,UKRI - AHRC,15/03/2019,Agency Staff,Finance,Hays Specialist Recruitment Ltd,98437460,"1,816.50",Agency Staff
BEIS,UKRI - AHRC,15/03/2019,Agency Staff,Finance,Hays Specialist Recruitment Ltd,98437462,"1,271.56",Agency Staff
BEIS,UKRI - AHRC,15/03/2019,Agency Staff,Finance,Hays Specialist Recruitment Ltd,98437463,"1,453.20",Agency Staff
BEIS,UKRI - AHRC,15/03/2019,Agency Staff,Finance,Hays Specialist Recruitment Ltd,98437465,"1,816.50",Agency Staff
BEIS,UKRI - AHRC,15/03/2019,Agency Staff,Finance,Hays Specialist Recruitment Ltd,98437782,"1,816.50",Agency Staff
BEIS,UKRI - AHRC,20/03/2019,Agency Staff,Finance,Hays Specialist Recruitment Ltd,98441885,"1,816.50",Agency Staff
BEIS,UKRI - AHRC,22/03/2019,Agency Staff,Finance,Hays Specialist Recruitment Ltd,98444445,"1,816.50",Agency Staff
BEIS,UKRI - AHRC,14/03/2019,Consultancy Services,HR,Health Assured Ltd,98436728,396.00,Consultancy Services
BEIS,UKRI - AHRC,25/03/2019,Research Grant Expenditure,Research Grants,Historic Environment Scotland (GRANT),98424683,"35,822.16",Research Grant Expenditure
BEIS,UKRI - AHRC,25/03/2019,Research Grant Expenditure,Networks & Workshops,Historic Royal Palaces,98424860,"9,027.57",Research Grant Expenditure
BEIS,UKRI - AHRC,25/03/2019,Fellowships,Research Fellowships,Historic Royal Palaces,98425206,"35,841.68",Fellowships
BEIS,UKRI - AHRC,13/03/2019,NI Payable Salaries,Balance Sheet,HM Revenue & Customs,98431963,"99,043.11",NI Payable Salaries
BEIS,UKRI - AHRC,13/03/2019,PAYE Payable Salaries,Balance Sheet,HM Revenue & Customs,98431964,"68,334.81",PAYE Payable Salaries
BEIS,UKRI - AHRC,13/03/2019,Student Loans,Balance Sheet,HM Revenue & Customs,98431965,"4,881.00",Student Loans
BEIS,UKRI - AHRC,13/03/2019,Apprenticeship Levy,Corporate Services,HM Revenue & Customs,98431966,"2,601.00",Apprenticeship Levy
BEIS,UKRI - AHRC,25/03/2019,Research Grant Expenditure,Newton Programme,Imperial College London,98424994,"1,006.53",Research Grant Expenditure
BEIS,UKRI - AHRC,25/03/2019,Research Grant Expenditure,Newton Programme,Imperial College London,98424994,"16,754.57",Research Grant Expenditure
BEIS,UKRI - AHRC,25/03/2019,Research Grant Expenditure,Global Challenges Research Fund (GCRF),Imperial College London,98425086,"15,376.18",Research Grant Expenditure
BEIS,UKRI - AHRC,25/03/2019,Research Grant Expenditure,Follow-on Fund,Imperial College London,98425121,"26,102.39",Research Grant Expenditure
BEIS,UKRI - AHRC,07/03/2019,Hospitality,GCRF - Programme Delivery,In Any Event UK Solutions Ltd,98424322,"13,770.00",Hospitality
BEIS,UKRI - AHRC,19/03/2019,Legal & Professional Services,Business Process & Analysis,Institute for Government,98433271,"20,400.00",Legal & Professional Services
BEIS,UKRI - AHRC,25/03/2019,Research Grant Expenditure,Global Challenges Research Fund (GCRF),Institute of Development Studies,98424693,"53,613.52",Research Grant Expenditure
BEIS,UKRI - AHRC,25/03/2019,Research Grant Expenditure,Global Challenges Research Fund (GCRF),Institute of Development Studies,98424988,"37,844.15",Research Grant Expenditure
BEIS,UKRI - AHRC,25/03/2019,Research Grant Expenditure,Research Grants,Keele University,98424780,"61,681.33",Research Grant Expenditure
BEIS,UKRI - AHRC,25/03/2019,Research Grant Expenditure,Networks & Workshops,Keele University,98425065,"5,547.91",Research Grant Expenditure
BEIS,UKRI - AHRC,25/03/2019,Fellowships,Research Fellowships,Keele University,98425188,"20,201.40",Fellowships
BEIS,UKRI - AHRC,15/03/2019,Council & Committee Honoraria,New Programme Development,unspecified,98420162,115.00,Council & Committee Honoraria
BEIS,UKRI - AHRC,25/03/2019,Research Grant Expenditure,Open World Research Initiative (OWRI).,King's College London,98424672,"194,277.13",Research Grant Expenditure
BEIS,UKRI - AHRC,25/03/2019,Research Grant Expenditure,Research Grants,King's College London,98424757,"67,745.11",Research Grant Expenditure
BEIS,UKRI - AHRC,25/03/2019,Research Grant Expenditure,Follow-on Fund,King's College London,98424830,"19,263.07",Research Grant Expenditure
BEIS,UKRI - AHRC,25/03/2019,Research Grant Expenditure,Networks & Workshops,King's College London,98424834,"6,047.11",Research Grant Expenditure
BEIS,UKRI - AHRC,25/03/2019,Research Grant Expenditure,Research Grants,King's College London,98424872,"65,274.21",Research Grant Expenditure
BEIS,UKRI - AHRC,25/03/2019,Research Grant Expenditure,Research Grants,King's College London,98424872,"65,274.21",Research Grant Expenditure
BEIS,UKRI - AHRC,25/03/2019,Research Grant Expenditure,Global Challenges Research Fund (GCRF),King's College London,98424931,"82,253.17",Research Grant Expenditure
BEIS,UKRI - AHRC,25/03/2019,Research Grant Expenditure,Global Challenges Research Fund (GCRF),King's College London,98424967,"35,104.88",Research Grant Expenditure
BEIS,UKRI - AHRC,25/03/2019,Research Grant Expenditure,Newton Programme,King's College London,98425031,"22,732.61",Research Grant Expenditure
BEIS,UKRI - AHRC,25/03/2019,Research Grant Expenditure,Fund for International Collaboration (FIC),King's College London,98425039,"53,565.12",Research Grant Expenditure
BEIS,UKRI - AHRC,25/03/2019,Research Grant Expenditure,Global Challenges Research Fund (GCRF),King's College London,98425082,"6,091.44",Research Grant Expenditure
BEIS,UKRI - AHRC,25/03/2019,Research Grant Expenditure,Follow-on Fund,King's College London,98425112,"(7,397.80)",Research Grant Expenditure
BEIS,UKRI - AHRC,25/03/2019,Research Grant Expenditure,Follow-on Fund,King's College London,98425114,"16,744.95",Research Grant Expenditure
BEIS,UKRI - AHRC,25/03/2019,Research Grant Expenditure,Follow-on Fund,King's College London,98425122,"19,537.18",Research Grant Expenditure
BEIS,UKRI - AHRC,25/03/2019,Fellowships,Research Fellowships,King's College London,98425201,"26,847.06",Fellowships
BEIS,UKRI - AHRC,25/03/2019,Research Grant Expenditure,Networks & Workshops,Kingston University,98424881,"4,506.86",Research Grant Expenditure
BEIS,UKRI - AHRC,25/03/2019,Research Grant Expenditure,Networks & Workshops,Kingston University,98424881,"4,506.86",Research Grant Expenditure
BEIS,UKRI - AHRC,25/03/2019,Fellowships,Research Fellowships,Kingston University,98425177,"14,354.40",Fellowships
BEIS,UKRI - AHRC,25/03/2019,Research Grant Expenditure,Design: Strategic Initiatives,Lancaster University,98424732,"57,839.81",Research Grant Expenditure
BEIS,UKRI - AHRC,25/03/2019,Research Grant Expenditure,Research Grants,Lancaster University,98424750,"62,323.20",Research Grant Expenditure
BEIS,UKRI - AHRC,25/03/2019,Research Grant Expenditure,Anti-microbial Resistance (AMR),Lancaster University,98424786,"27,335.66",Research Grant Expenditure
BEIS,UKRI - AHRC,25/03/2019,Research Grant Expenditure,Networks & Workshops,Lancaster University,98424827,"5,179.97",Research Grant Expenditure
BEIS,UKRI - AHRC,25/03/2019,Research Grant Expenditure,Newton Programme,Lancaster University,98424898,"16,444.18",Research Grant Expenditure
BEIS,UKRI - AHRC,25/03/2019,Research Grant Expenditure,Newton Programme,Lancaster University,98424898,"16,444.18",Research Grant Expenditure
BEIS,UKRI - AHRC,25/03/2019,Research Grant Expenditure,Follow-on Fund,Lancaster University,98424936,"20,156.01",Research Grant Expenditure
BEIS,UKRI - AHRC,25/03/2019,Research Grant Expenditure,Follow-on Fund,Lancaster University,98424936,"20,156.01",Research Grant Expenditure
BEIS,UKRI - AHRC,25/03/2019,Research Grant Expenditure,Global Challenges Research Fund (GCRF),Lancaster University,98424978,"37,845.66",Research Grant Expenditure
BEIS,UKRI - AHRC,25/03/2019,Research Grant Expenditure,Global Challenges Research Fund (GCRF),Lancaster University,98425001,"86,562.88",Research Grant Expenditure
BEIS,UKRI - AHRC,25/03/2019,Research Grant Expenditure,KE Hubs,Lancaster University,98425052,"14,210.74",Research Grant Expenditure
BEIS,UKRI - AHRC,20/03/2019,Legal & Professional Services,Industrial Strategy Challenge Fund (ISCF) - Creative Clusters,Lilley Associates Ltd,98442187,"9,000.00",Legal & Professional Services
BEIS,UKRI - AHRC,25/03/2019,Research Grant Expenditure,Newton Programme,Liverpool John Moores University,98424901,"16,485.42",Research Grant Expenditure
BEIS,UKRI - AHRC,25/03/2019,Fellowships,Research Fellowships,Liverpool John Moores University,98425217,"32,544.68",Fellowships
BEIS,UKRI - AHRC,25/03/2019,Research Grant Expenditure,Global Challenges Research Fund (GCRF),London School of Economics and Political Science,98424695,"58,713.89",Research Grant Expenditure
BEIS,UKRI - AHRC,25/03/2019,Research Grant Expenditure,Research Grants,London School of Economics and Political Science,98424817,"68,392.56",Research Grant Expenditure
BEIS,UKRI - AHRC,25/03/2019,Research Grant Expenditure,RCUK Global Challenges Research Fund (RCUK GCRF),London School of Economics and Political Science,98425008,"374,634.99",Research Grant Expenditure
BEIS,UKRI - AHRC,25/03/2019,Research Grant Expenditure,Networks & Workshops,London South Bank University,98425095,"3,566.75",Research Grant Expenditure
BEIS,UKRI - AHRC,25/03/2019,Research Grant Expenditure,Networks & Workshops,London South Bank University,98425110,"3,825.36",Research Grant Expenditure
BEIS,UKRI - AHRC,25/03/2019,Research Grant Expenditure,Research Grants,Loughborough University,98424681,"47,203.53",Research Grant Expenditure
BEIS,UKRI - AHRC,25/03/2019,Research Grant Expenditure,Networks & Workshops,Loughborough University,98424756,"4,361.73",Research Grant Expenditure
BEIS,UKRI - AHRC,25/03/2019,Research Grant Expenditure,Global Challenges Research Fund (GCRF),Loughborough University,98424889,"61,700.24",Research Grant Expenditure
BEIS,UKRI - AHRC,25/03/2019,Research Grant Expenditure,Newton Programme,Loughborough University,98424896,"29,653.19",Research Grant Expenditure
BEIS,UKRI - AHRC,25/03/2019,Research Grant Expenditure,Global Challenges Research Fund (GCRF),Loughborough University,98425126,(7.70),Research Grant Expenditure
BEIS,UKRI - AHRC,25/03/2019,Fellowships,Research Fellowships,Loughborough University,98425214,"25,823.77",Fellowships
BEIS,UKRI - AHRC,08/03/2019,Council & Committee Honoraria,"AHRC - Strategic Planning, Evidence & Impact",Maja Maricevic,98431738,500.00,Council & Committee Honoraria
BEIS,UKRI - AHRC,25/03/2019,Research Grant Expenditure,Networks & Workshops,Manchester Metropolitan University,98424717,"5,555.51",Research Grant Expenditure
BEIS,UKRI - AHRC,25/03/2019,Research Grant Expenditure,Research Grants,Manchester Metropolitan University,98424736,"58,747.98",Research Grant Expenditure
BEIS,UKRI - AHRC,25/03/2019,Research Grant Expenditure,Networks & Workshops,Manchester Metropolitan University,98424805,"4,872.06",Research Grant Expenditure
BEIS,UKRI - AHRC,25/03/2019,Research Grant Expenditure,Research Grants,Manchester Metropolitan University,98424824,"25,849.98",Research Grant Expenditure
BEIS,UKRI - AHRC,25/03/2019,Research Grant Expenditure,Global Challenges Research Fund (GCRF),Manchester Metropolitan University,98424975,"31,638.52",Research Grant Expenditure
BEIS,UKRI - AHRC,25/03/2019,Research Grant Expenditure,Creative Economy,Manchester Metropolitan University,98425136,"(3,632.92)",Research Grant Expenditure
BEIS,UKRI - AHRC,25/03/2019,Research Grant Expenditure,Research Grants,National Museums of Scotland,98424726,"32,523.87",Research Grant Expenditure
BEIS,UKRI - AHRC,25/03/2019,Research Grant Expenditure,Networks & Workshops,National Museums of Scotland,98424852,"5,601.26",Research Grant Expenditure
BEIS,UKRI - AHRC,19/03/2019,Research Grant Expenditure,Oxford Radio Carbon Dating Service,Natural Environment Research Council,98436616,"41,000.00",Research Grant Expenditure
BEIS,UKRI - AHRC,19/03/2019,Research Grant Expenditure,RCUK Global Challenges Research Fund (RCUK GCRF),Natural Environment Research Council,98437670,"43,456.72",Research Grant Expenditure
BEIS,UKRI - AHRC,19/03/2019,Research Grant Expenditure,RCUK Global Challenges Research Fund (RCUK GCRF),Natural Environment Research Council,98437675,"89,456.99",Research Grant Expenditure
BEIS,UKRI - AHRC,19/03/2019,Research Grant Expenditure,RCUK Global Challenges Research Fund (RCUK GCRF),Natural Environment Research Council,98437679,"112,843.59",Research Grant Expenditure
BEIS,UKRI - AHRC,19/03/2019,Research Grant Expenditure,RCUK Global Challenges Research Fund (RCUK GCRF),Natural Environment Research Council,98437688,"17,334.50",Research Grant Expenditure
BEIS,UKRI - AHRC,26/03/2019,Secondments,PSU JRS,Natural Environment Research Council,98436602,"12,184.01",Secondments
BEIS,UKRI - AHRC,26/03/2019,Secondments,PSU JRS,Natural Environment Research Council,98441911,"(12,184.01)",Secondments
BEIS,UKRI - AHRC,25/03/2019,Research Grant Expenditure,Industrial Strategy Challenge Fund (ISCF) - Creative Clusters,NESTA,98424917,"315,868.13",Research Grant Expenditure
BEIS,UKRI - AHRC,25/03/2019,Research Grant Expenditure,Commissioned Research,NESTA,98425142,(1.62),Research Grant Expenditure
BEIS,UKRI - AHRC,04/03/2019,Non-staff travel and subsistance,"Histories,Culture & Heritage",Non Employee Expenses Supplier,98420874,227.70,Non-staff travel and subsistance
BEIS,UKRI - AHRC,04/03/2019,Non-staff travel and subsistance,"Histories,Culture & Heritage",Non Employee Expenses Supplier,98420875,167.13,Non-staff travel and subsistance
BEIS,UKRI - AHRC,04/03/2019,Non-staff travel and subsistance,"Histories,Culture & Heritage",Non Employee Expenses Supplier,98420876,83.10,Non-staff travel and subsistance
BEIS,UKRI - AHRC,04/03/2019,Non-staff travel and subsistance,"Histories,Culture & Heritage",Non Employee Expenses Supplier,98420877,101.30,Non-staff travel and subsistance
BEIS,UKRI - AHRC,04/03/2019,Non-staff travel and subsistance,"Histories,Culture & Heritage",Non Employee Expenses Supplier,98420878,154.04,Non-staff travel and subsistance
BEIS,UKRI - AHRC,04/03/2019,Non-staff travel and subsistance,Newton Programme,Non Employee Expenses Supplier,98420881,67.07,Non-staff travel and subsistance
BEIS,UKRI - AHRC,04/03/2019,Non-staff travel and subsistance,Creative Arts & Digital Humanities,Non Employee Expenses Supplier,98420882,108.90,Non-staff travel and subsistance
BEIS,UKRI - AHRC,04/03/2019,Non-staff travel and subsistance,Creative Arts & Digital Humanities,Non Employee Expenses Supplier,98420883,142.06,Non-staff travel and subsistance
BEIS,UKRI - AHRC,04/03/2019,Non-staff travel and subsistance,Creative Arts & Digital Humanities,Non Employee Expenses Supplier,98420884,235.40,Non-staff travel and subsistance
BEIS,UKRI - AHRC,04/03/2019,Non-staff travel and subsistance,Creative Arts & Digital Humanities,Non Employee Expenses Supplier,98420885,108.80,Non-staff travel and subsistance
BEIS,UKRI - AHRC,04/03/2019,Non-staff travel and subsistance,Creative Arts & Digital Humanities,Non Employee Expenses Supplier,98420886,71.00,Non-staff travel and subsistance
BEIS,UKRI - AHRC,04/03/2019,Non-staff travel and subsistance,"AHRC - Strategic Planning, Evidence & Impact",Non Employee Expenses Supplier,98420887,103.00,Non-staff travel and subsistance
BEIS,UKRI - AHRC,04/03/2019,Non-staff travel and subsistance,"Histories,Culture & Heritage",Non Employee Expenses Supplier,98420888,116.15,Non-staff travel and subsistance
BEIS,UKRI - AHRC,04/03/2019,Non-staff travel and subsistance,"Histories,Culture & Heritage",Non Employee Expenses Supplier,98420889,204.95,Non-staff travel and subsistance
BEIS,UKRI - AHRC,04/03/2019,Non-staff travel and subsistance,"Histories,Culture & Heritage",Non Employee Expenses Supplier,98420890,156.13,Non-staff travel and subsistance
BEIS,UKRI - AHRC,04/03/2019,Non-staff travel and subsistance,"Histories,Culture & Heritage",Non Employee Expenses Supplier,98420891,45.30,Non-staff travel and subsistance
BEIS,UKRI - AHRC,04/03/2019,Non-staff travel and subsistance,"Histories,Culture & Heritage",Non Employee Expenses Supplier,98420892,131.10,Non-staff travel and subsistance
BEIS,UKRI - AHRC,04/03/2019,Non-staff travel and subsistance,"AHRC - Strategic Planning, Evidence & Impact",Non Employee Expenses Supplier,98420893,172.86,Non-staff travel and subsistance
BEIS,UKRI - AHRC,04/03/2019,Non-staff travel and subsistance,Creative Arts & Digital Humanities,Non Employee Expenses Supplier,98420894,382.60,Non-staff travel and subsistance
BEIS,UKRI - AHRC,13/03/2019,Non-staff travel and subsistance,GCRF - Programme Delivery,Non Employee Expenses Supplier,98435060,96.09,Non-staff travel and subsistance
BEIS,UKRI - AHRC,13/03/2019,Non-staff travel and subsistance,Creative Arts & Digital Humanities,Non Employee Expenses Supplier,98436015,157.60,Non-staff travel and subsistance
BEIS,UKRI - AHRC,13/03/2019,Non-staff travel and subsistance,Creative Arts & Digital Humanities,Non Employee Expenses Supplier,98436016,138.80,Non-staff travel and subsistance
BEIS,UKRI - AHRC,13/03/2019,Non-staff travel and subsistance,Creative Arts & Digital Humanities,Non Employee Expenses Supplier,98436017,281.14,Non-staff travel and subsistance
BEIS,UKRI - AHRC,13/03/2019,Non-staff travel and subsistance,Creative Arts & Digital Humanities,Non Employee Expenses Supplier,98436018,266.90,Non-staff travel and subsistance
BEIS,UKRI - AHRC,13/03/2019,Non-staff travel and subsistance,Creative Arts & Digital Humanities,Non Employee Expenses Supplier,98436019,286.78,Non-staff travel and subsistance
BEIS,UKRI - AHRC,13/03/2019,Non-staff travel and subsistance,Creative Arts & Digital Humanities,Non Employee Expenses Supplier,98436020,93.06,Non-staff travel and subsistance
BEIS,UKRI - AHRC,13/03/2019,Non-staff travel and subsistance,SMT,Non Employee Expenses Supplier,98436021,91.90,Non-staff travel and subsistance
BEIS,UKRI - AHRC,13/03/2019,Non-staff travel and subsistance,SMT,Non Employee Expenses Supplier,98436022,866.76,Non-staff travel and subsistance
BEIS,UKRI - AHRC,13/03/2019,Non-staff travel and subsistance,Creative Arts & Digital Humanities,Non Employee Expenses Supplier,98436023,125.45,Non-staff travel and subsistance
BEIS,UKRI - AHRC,13/03/2019,Non-staff travel and subsistance,"Languages,Literature & International Engagement",Non Employee Expenses Supplier,98436024,55.80,Non-staff travel and subsistance
BEIS,UKRI - AHRC,13/03/2019,Non-staff travel and subsistance,"Languages,Literature & International Engagement",Non Employee Expenses Supplier,98436025,176.80,Non-staff travel and subsistance
BEIS,UKRI - AHRC,13/03/2019,Non-staff travel and subsistance,Communications,Non Employee Expenses Supplier,98436026,69.05,Non-staff travel and subsistance
BEIS,UKRI - AHRC,13/03/2019,Non-staff travel and subsistance,Communications,Non Employee Expenses Supplier,98436027,87.30,Non-staff travel and subsistance
BEIS,UKRI - AHRC,13/03/2019,Non-staff travel and subsistance,"AHRC - Strategic Planning, Evidence & Impact",Non Employee Expenses Supplier,98436028,221.41,Non-staff travel and subsistance
BEIS,UKRI - AHRC,13/03/2019,Non-staff travel and subsistance,Creative Arts & Digital Humanities,Non Employee Expenses Supplier,98436029,178.50,Non-staff travel and subsistance
BEIS,UKRI - AHRC,13/03/2019,Non-staff travel and subsistance,SMT,Non Employee Expenses Supplier,98436030,145.80,Non-staff travel and subsistance
BEIS,UKRI - AHRC,13/03/2019,Non-staff travel and subsistance,SMT,Non Employee Expenses Supplier,98436031,780.42,Non-staff travel and subsistance
BEIS,UKRI - AHRC,13/03/2019,Non-staff travel and subsistance,SMT,Non Employee Expenses Supplier,98436032,145.19,Non-staff travel and subsistance
BEIS,UKRI - AHRC,13/03/2019,Non-staff travel and subsistance,SMT,Non Employee Expenses Supplier,98436033,183.20,Non-staff travel and subsistance
BEIS,UKRI - AHRC,13/03/2019,Non-staff travel and subsistance,SMT,Non Employee Expenses Supplier,98436034,113.90,Non-staff travel and subsistance
BEIS,UKRI - AHRC,13/03/2019,Non-staff travel and subsistance,Communications,Non Employee Expenses Supplier,98436035,88.80,Non-staff travel and subsistance
BEIS,UKRI - AHRC,26/03/2019,Non-staff travel and subsistance,SMT,Non Employee Expenses Supplier,98447791,70.51,Non-staff travel and subsistance
BEIS,UKRI - AHRC,26/03/2019,Non-staff travel and subsistance,Creative Arts & Digital Humanities,Non Employee Expenses Supplier,98447792,692.89,Non-staff travel and subsistance
BEIS,UKRI - AHRC,26/03/2019,Non-staff travel and subsistance,Newton Programme,Non Employee Expenses Supplier,98447793,439.00,Non-staff travel and subsistance
BEIS,UKRI - AHRC,26/03/2019,Non-staff travel and subsistance,Creative Arts & Digital Humanities,Non Employee Expenses Supplier,98447794,44.10,Non-staff travel and subsistance
BEIS,UKRI - AHRC,26/03/2019,Non-staff travel and subsistance,Creative Arts & Digital Humanities,Non Employee Expenses Supplier,98447795,71.80,Non-staff travel and subsistance
BEIS,UKRI - AHRC,26/03/2019,Non-staff travel and subsistance,Creative Arts & Digital Humanities,Non Employee Expenses Supplier,98447796,73.85,Non-staff travel and subsistance
BEIS,UKRI - AHRC,26/03/2019,Non-staff travel and subsistance,Creative Arts & Digital Humanities,Non Employee Expenses Supplier,98447797,106.55,Non-staff travel and subsistance
BEIS,UKRI - AHRC,26/03/2019,Non-staff travel and subsistance,Creative Arts & Digital Humanities,Non Employee Expenses Supplier,98447798,81.50,Non-staff travel and subsistance
BEIS,UKRI - AHRC,26/03/2019,Non-staff travel and subsistance,Creative Arts & Digital Humanities,Non Employee Expenses Supplier,98447799,56.00,Non-staff travel and subsistance
BEIS,UKRI - AHRC,26/03/2019,Non-staff travel and subsistance,Creative Arts & Digital Humanities,Non Employee Expenses Supplier,98447800,132.80,Non-staff travel and subsistance
BEIS,UKRI - AHRC,26/03/2019,Non-staff travel and subsistance,Creative Arts & Digital Humanities,Non Employee Expenses Supplier,98447801,84.80,Non-staff travel and subsistance
BEIS,UKRI - AHRC,26/03/2019,Non-staff travel and subsistance,Skills,Non Employee Expenses Supplier,98447802,62.10,Non-staff travel and subsistance
BEIS,UKRI - AHRC,26/03/2019,Non-staff travel and subsistance,GCRF - Programme Delivery,Non Employee Expenses Supplier,98447803,142.60,Non-staff travel and subsistance
BEIS,UKRI - AHRC,26/03/2019,Non-staff travel and subsistance,Skills,Non Employee Expenses Supplier,98447804,102.51,Non-staff travel and subsistance
BEIS,UKRI - AHRC,26/03/2019,Non-staff travel and subsistance,Communications,Non Employee Expenses Supplier,98447805,68.25,Non-staff travel and subsistance
BEIS,UKRI - AHRC,26/03/2019,Non-staff travel and subsistance,Communications,Non Employee Expenses Supplier,98447806,118.50,Non-staff travel and subsistance
BEIS,UKRI - AHRC,26/03/2019,Non-staff travel and subsistance,Skills,Non Employee Expenses Supplier,98447807,123.00,Non-staff travel and subsistance
BEIS,UKRI - AHRC,26/03/2019,Non-staff travel and subsistance,Skills,Non Employee Expenses Supplier,98447808,219.56,Non-staff travel and subsistance
BEIS,UKRI - AHRC,26/03/2019,Non-staff travel and subsistance,Skills,Non Employee Expenses Supplier,98447809,89.60,Non-staff travel and subsistance
BEIS,UKRI - AHRC,26/03/2019,Non-staff travel and subsistance,Skills,Non Employee Expenses Supplier,98447810,221.00,Non-staff travel and subsistance
BEIS,UKRI - AHRC,26/03/2019,Non-staff travel and subsistance,"Histories,Culture & Heritage",Non Employee Expenses Supplier,98447811,116.85,Non-staff travel and subsistance
BEIS,UKRI - AHRC,26/03/2019,Non-staff travel and subsistance,"Histories,Culture & Heritage",Non Employee Expenses Supplier,98447812,128.86,Non-staff travel and subsistance
BEIS,UKRI - AHRC,26/03/2019,Non-staff travel and subsistance,"Histories,Culture & Heritage",Non Employee Expenses Supplier,98447813,113.90,Non-staff travel and subsistance
BEIS,UKRI - AHRC,26/03/2019,Non-staff travel and subsistance,GCRF - Programme Delivery,Non Employee Expenses Supplier,98447814,199.80,Non-staff travel and subsistance
BEIS,UKRI - AHRC,26/03/2019,Non-staff travel and subsistance,"Languages,Literature & International Engagement",Non Employee Expenses Supplier,98447815,165.00,Non-staff travel and subsistance
BEIS,UKRI - AHRC,26/03/2019,Non-staff travel and subsistance,"Languages,Literature & International Engagement",Non Employee Expenses Supplier,98447816,103.50,Non-staff travel and subsistance
BEIS,UKRI - AHRC,26/03/2019,Non-staff travel and subsistance,"Histories,Culture & Heritage",Non Employee Expenses Supplier,98447817,59.30,Non-staff travel and subsistance
BEIS,UKRI - AHRC,26/03/2019,Non-staff travel and subsistance,"Histories,Culture & Heritage",Non Employee Expenses Supplier,98447818,59.30,Non-staff travel and subsistance
BEIS,UKRI - AHRC,26/03/2019,Non-staff travel and subsistance,International,Non Employee Expenses Supplier,98447819,184.40,Non-staff travel and subsistance
BEIS,UKRI - AHRC,26/03/2019,Non-staff travel and subsistance,International,Non Employee Expenses Supplier,98447820,395.50,Non-staff travel and subsistance
BEIS,UKRI - AHRC,26/03/2019,Non-staff travel and subsistance,SMT,Non Employee Expenses Supplier,98447821,98.71,Non-staff travel and subsistance
BEIS,UKRI - AHRC,26/03/2019,Non-staff travel and subsistance,GCRF - Programme Delivery,Non Employee Expenses Supplier,98447822,73.30,Non-staff travel and subsistance
BEIS,UKRI - AHRC,26/03/2019,Non-staff travel and subsistance,Communications,Non Employee Expenses Supplier,98447823,149.70,Non-staff travel and subsistance
BEIS,UKRI - AHRC,26/03/2019,Non-staff travel and subsistance,Skills,Non Employee Expenses Supplier,98447824,124.50,Non-staff travel and subsistance
BEIS,UKRI - AHRC,26/03/2019,Non-staff travel and subsistance,Skills,Non Employee Expenses Supplier,98447825,123.50,Non-staff travel and subsistance
BEIS,UKRI - AHRC,26/03/2019,Non-staff travel and subsistance,Communications,Non Employee Expenses Supplier,98447826,102.50,Non-staff travel and subsistance
BEIS,UKRI - AHRC,26/03/2019,Non-staff travel and subsistance,Skills,Non Employee Expenses Supplier,98447827,56.80,Non-staff travel and subsistance
BEIS,UKRI - AHRC,26/03/2019,Non-staff travel and subsistance,Skills,Non Employee Expenses Supplier,98447828,63.40,Non-staff travel and subsistance
BEIS,UKRI - AHRC,26/03/2019,Non-staff travel and subsistance,Creative Arts & Digital Humanities,Non Employee Expenses Supplier,98447829,65.50,Non-staff travel and subsistance
BEIS,UKRI - AHRC,26/03/2019,Non-staff travel and subsistance,Skills,Non Employee Expenses Supplier,98447830,22.00,Non-staff travel and subsistance
BEIS,UKRI - AHRC,26/03/2019,Non-staff travel and subsistance,Creative Arts & Digital Humanities,Non Employee Expenses Supplier,98447831,323.25,Non-staff travel and subsistance
BEIS,UKRI - AHRC,26/03/2019,Non-staff travel and subsistance,"Languages,Literature & International Engagement",Non Employee Expenses Supplier,98447832,117.80,Non-staff travel and subsistance
BEIS,UKRI - AHRC,26/03/2019,Non-staff travel and subsistance,"Languages,Literature & International Engagement",Non Employee Expenses Supplier,98447833,162.75,Non-staff travel and subsistance
BEIS,UKRI - AHRC,26/03/2019,Non-staff travel and subsistance,"Languages,Literature & International Engagement",Non Employee Expenses Supplier,98447834,130.20,Non-staff travel and subsistance
BEIS,UKRI - AHRC,26/03/2019,Non-staff travel and subsistance,"Languages,Literature & International Engagement",Non Employee Expenses Supplier,98447835,38.14,Non-staff travel and subsistance
BEIS,UKRI - AHRC,26/03/2019,Non-staff travel and subsistance,International,Non Employee Expenses Supplier,98447836,241.71,Non-staff travel and subsistance
BEIS,UKRI - AHRC,26/03/2019,Non-staff travel and subsistance,Fund for International Collaboration,Non Employee Expenses Supplier,98447837,"1,020.44",Non-staff travel and subsistance
BEIS,UKRI - AHRC,26/03/2019,Non-staff travel and subsistance,Industrial Strategy Challenge Fund (ISCF) - Creative Clusters,Non Employee Expenses Supplier,98447838,184.00,Non-staff travel and subsistance
BEIS,UKRI - AHRC,26/03/2019,Non-staff travel and subsistance,"Languages,Literature & International Engagement",Non Employee Expenses Supplier,98447839,92.70,Non-staff travel and subsistance
BEIS,UKRI - AHRC,26/03/2019,Non-staff travel and subsistance,GCRF - Programme Delivery,Non Employee Expenses Supplier,98447840,71.20,Non-staff travel and subsistance
BEIS,UKRI - AHRC,26/03/2019,Non-staff travel and subsistance,GCRF - Programme Delivery,Non Employee Expenses Supplier,98447841,141.62,Non-staff travel and subsistance
BEIS,UKRI - AHRC,26/03/2019,Non-staff travel and subsistance,GCRF - Programme Delivery,Non Employee Expenses Supplier,98447842,77.00,Non-staff travel and subsistance
BEIS,UKRI - AHRC,26/03/2019,Non-staff travel and subsistance,GCRF - Programme Delivery,Non Employee Expenses Supplier,98447843,135.50,Non-staff travel and subsistance
BEIS,UKRI - AHRC,26/03/2019,Non-staff travel and subsistance,GCRF - Programme Delivery,Non Employee Expenses Supplier,98447844,92.95,Non-staff travel and subsistance
BEIS,UKRI - AHRC,26/03/2019,Non-staff travel and subsistance,GCRF - Programme Delivery,Non Employee Expenses Supplier,98447845,116.90,Non-staff travel and subsistance
BEIS,UKRI - AHRC,26/03/2019,Non-staff travel and subsistance,GCRF - Programme Delivery,Non Employee Expenses Supplier,98447846,60.95,Non-staff travel and subsistance
BEIS,UKRI - AHRC,26/03/2019,Non-staff travel and subsistance,GCRF - Programme Delivery,Non Employee Expenses Supplier,98447847,82.89,Non-staff travel and subsistance
BEIS,UKRI - AHRC,26/03/2019,Non-staff travel and subsistance,GCRF - Programme Delivery,Non Employee Expenses Supplier,98447848,133.84,Non-staff travel and subsistance
BEIS,UKRI - AHRC,26/03/2019,Non-staff travel and subsistance,GCRF - Programme Delivery,Non Employee Expenses Supplier,98447849,107.30,Non-staff travel and subsistance
BEIS,UKRI - AHRC,26/03/2019,Non-staff travel and subsistance,GCRF - Programme Delivery,Non Employee Expenses Supplier,98447850,122.05,Non-staff travel and subsistance
BEIS,UKRI - AHRC,26/03/2019,Non-staff travel and subsistance,GCRF - Programme Delivery,Non Employee Expenses Supplier,98447851,66.00,Non-staff travel and subsistance
BEIS,UKRI - AHRC,26/03/2019,Non-staff travel and subsistance,GCRF - Programme Delivery,Non Employee Expenses Supplier,98447852,58.05,Non-staff travel and subsistance
BEIS,UKRI - AHRC,26/03/2019,Non-staff travel and subsistance,GCRF - Programme Delivery,Non Employee Expenses Supplier,98447853,88.35,Non-staff travel and subsistance
BEIS,UKRI - AHRC,26/03/2019,Non-staff travel and subsistance,GCRF - Programme Delivery,Non Employee Expenses Supplier,98447854,75.80,Non-staff travel and subsistance
BEIS,UKRI - AHRC,26/03/2019,Non-staff travel and subsistance,GCRF - Programme Delivery,Non Employee Expenses Supplier,98447855,251.48,Non-staff travel and subsistance
BEIS,UKRI - AHRC,26/03/2019,Non-staff travel and subsistance,Newton Programme,Non Employee Expenses Supplier,98447856,635.64,Non-staff travel and subsistance
BEIS,UKRI - AHRC,26/03/2019,Non-staff travel and subsistance,Newton Programme,Non Employee Expenses Supplier,98447857,"1,561.20",Non-staff travel and subsistance
BEIS,UKRI - AHRC,26/03/2019,Non-staff travel and subsistance,Newton Programme,Non Employee Expenses Supplier,98447858,754.95,Non-staff travel and subsistance
BEIS,UKRI - AHRC,26/03/2019,Non-staff travel and subsistance,Newton Programme,Non Employee Expenses Supplier,98447859,203.32,Non-staff travel and subsistance
BEIS,UKRI - AHRC,26/03/2019,Non-staff travel and subsistance,Skills,Non Employee Expenses Supplier,98447860,80.00,Non-staff travel and subsistance
BEIS,UKRI - AHRC,26/03/2019,Non-staff travel and subsistance,"Languages,Literature & International Engagement",Non Employee Expenses Supplier,98447861,119.60,Non-staff travel and subsistance
BEIS,UKRI - AHRC,26/03/2019,Non-staff travel and subsistance,Creative Arts & Digital Humanities,Non Employee Expenses Supplier,98447862,61.00,Non-staff travel and subsistance
BEIS,UKRI - AHRC,26/03/2019,Non-staff travel and subsistance,Newton Programme,Non Employee Expenses Supplier,98447863,"1,028.20",Non-staff travel and subsistance
BEIS,UKRI - AHRC,26/03/2019,Non-staff travel and subsistance,GCRF - Programme Delivery,Non Employee Expenses Supplier,98447864,139.00,Non-staff travel and subsistance
BEIS,UKRI - AHRC,26/03/2019,Non-staff travel and subsistance,Skills,Non Employee Expenses Supplier,98447865,64.79,Non-staff travel and subsistance
BEIS,UKRI - AHRC,27/03/2019,Non-staff travel and subsistance,Newton Programme Delivery,Non Employee Expenses Supplier,98447764,384.70,Non-staff travel and subsistance
BEIS,UKRI - AHRC,25/03/2019,Research Grant Expenditure,Networks & Workshops,Northumbria University,98424828,"4,221.12",Research Grant Expenditure
BEIS,UKRI - AHRC,25/03/2019,Research Grant Expenditure,Networks & Workshops,Northumbria University,98424854,"6,772.54",Research Grant Expenditure
BEIS,UKRI - AHRC,25/03/2019,Research Grant Expenditure,Research Grants,Northumbria University,98424866,"21,499.96",Research Grant Expenditure
BEIS,UKRI - AHRC,25/03/2019,Research Grant Expenditure,Global Challenges Research Fund (GCRF),Northumbria University,98424894,"86,797.80",Research Grant Expenditure
BEIS,UKRI - AHRC,25/03/2019,Research Grant Expenditure,Networks & Workshops,Northumbria University,98424919,"5,890.95",Research Grant Expenditure
BEIS,UKRI - AHRC,25/03/2019,Research Grant Expenditure,International Other,Northumbria University,98425042,"16,161.46",Research Grant Expenditure
BEIS,UKRI - AHRC,25/03/2019,Fellowships,Research Fellowships,Northumbria University,98425187,"17,424.79",Fellowships
BEIS,UKRI - AHRC,25/03/2019,Fellowships,Research Fellowships,Northumbria University,98425198,"18,647.83",Fellowships
BEIS,UKRI - AHRC,25/03/2019,Fellowships,NPIF Research Talent (RCUK Innovation Fellowships),Northumbria University,98425235,"23,804.54",Fellowships
BEIS,UKRI - AHRC,25/03/2019,Research Grant Expenditure,Newton Programme,Nottingham Trent University,98424962,"2,363.33",Research Grant Expenditure
BEIS,UKRI - AHRC,25/03/2019,Research Grant Expenditure,Newton Programme,Nottingham Trent University,98424962,"21,130.73",Research Grant Expenditure
BEIS,UKRI - AHRC,25/03/2019,Fellowships,Research Fellowships,Nottingham Trent University,98425199,"23,616.09",Fellowships
BEIS,UKRI - AHRC,25/03/2019,Fellowships,Research Fellowships,Nottingham Trent University,98425207,"27,459.54",Fellowships
BEIS,UKRI - AHRC,07/03/2019,Catering Contracts,HR,Officedrop Ltd,98423930,144.00,Catering Contracts
BEIS,UKRI - AHRC,07/03/2019,Catering Contracts,HR,Officedrop Ltd,98423937,192.00,Catering Contracts
BEIS,UKRI - AHRC,28/03/2019,Legal & Professional Services,GCRF - Programme Delivery,Oncall Interpreters Ltd,98449314,"1,584.00",Legal & Professional Services
BEIS,UKRI - AHRC,25/03/2019,Research Grant Expenditure,Research Grants,Oxford Brookes University,98424818,"61,274.29",Research Grant Expenditure
BEIS,UKRI - AHRC,25/03/2019,Research Grant Expenditure,Newton Programme,Oxford Brookes University,98424989,"16,728.87",Research Grant Expenditure
BEIS,UKRI - AHRC,14/03/2019,Union Deductions,Balance Sheet,PCS Union,98431972,183.67,Union Deductions
BEIS,UKRI - AHRC,21/03/2019,Provisions ( Food etc),HR,Premier Farnell UK Ltd T/A Farnell Onecall,98442817,115.96,Provisions ( Food etc)
BEIS,UKRI - AHRC,29/03/2019,Computer Hardware,HR,Premier Farnell UK Ltd T/A Farnell Onecall,98449666,61.80,Computer Hardware
BEIS,UKRI - AHRC,14/03/2019,Staff Training,Corporate Services,Provek Ltd,98373437,86.34,Staff Training
BEIS,UKRI - AHRC,14/03/2019,Staff Training,Corporate Services,Provek Ltd,98373437,"1,800.00",Staff Training
BEIS,UKRI - AHRC,21/03/2019,Staff Training,HR,QA Ltd,98440267,"9,984.00",Staff Training
BEIS,UKRI - AHRC,21/03/2019,Computer Software,Business Process & Analysis,QSR International (UK) Ltd,97904529,"12,967.20",Computer Software
BEIS,UKRI - AHRC,25/03/2019,Research Grant Expenditure,Research Grants,Queen Mary University of London,98424752,"16,937.30",Research Grant Expenditure
BEIS,UKRI - AHRC,25/03/2019,Research Grant Expenditure,Research Grants,Queen Mary University of London,98424870,"33,272.59",Research Grant Expenditure
BEIS,UKRI - AHRC,25/03/2019,Research Grant Expenditure,Newton Programme,Queen Mary University of London,98424897,"32,088.41",Research Grant Expenditure
BEIS,UKRI - AHRC,25/03/2019,Research Grant Expenditure,Global Challenges Research Fund (GCRF),Queen Mary University of London,98424927,"90,954.62",Research Grant Expenditure
BEIS,UKRI - AHRC,25/03/2019,Research Grant Expenditure,Follow-on Fund,Queen Mary University of London,98425123,"11,831.73",Research Grant Expenditure
BEIS,UKRI - AHRC,25/03/2019,Fellowships,Research Fellowships,Queen Mary University of London,98425216,"24,861.25",Fellowships
BEIS,UKRI - AHRC,25/03/2019,Fellowships,Research Fellowships,Queen Mary University of London,98425244,(733.71),Fellowships
BEIS,UKRI - AHRC,25/03/2019,Research Grant Expenditure,Research Grants,Queen's University Belfast GRANT,98424646,"32,548.70",Research Grant Expenditure
BEIS,UKRI - AHRC,25/03/2019,Research Grant Expenditure,Research Grants,Queen's University Belfast GRANT,98424677,"50,922.54",Research Grant Expenditure
BEIS,UKRI - AHRC,25/03/2019,Research Grant Expenditure,Global Uncertainties Programme,Queen's University Belfast GRANT,98424696,"40,947.60",Research Grant Expenditure
BEIS,UKRI - AHRC,25/03/2019,Research Grant Expenditure,Care for the Future,Queen's University Belfast GRANT,98424703,"17,389.03",Research Grant Expenditure
BEIS,UKRI - AHRC,25/03/2019,Research Grant Expenditure,Connected Communities Programme,Queen's University Belfast GRANT,98424703,"17,389.00",Research Grant Expenditure
BEIS,UKRI - AHRC,25/03/2019,Research Grant Expenditure,Research Grants,Queen's University Belfast GRANT,98424707,"50,608.22",Research Grant Expenditure
BEIS,UKRI - AHRC,25/03/2019,Research Grant Expenditure,Research Grants,Queen's University Belfast GRANT,98424724,"54,598.69",Research Grant Expenditure
BEIS,UKRI - AHRC,25/03/2019,Research Grant Expenditure,Open World Research Initiative (OWRI).,Queen's University Belfast GRANT,98424734,"94,053.74",Research Grant Expenditure
BEIS,UKRI - AHRC,25/03/2019,Research Grant Expenditure,Research Grants,Queen's University Belfast GRANT,98424738,"46,380.73",Research Grant Expenditure
BEIS,UKRI - AHRC,25/03/2019,Research Grant Expenditure,Research Grants,Queen's University Belfast GRANT,98424863,"20,365.47",Research Grant Expenditure
BEIS,UKRI - AHRC,25/03/2019,Research Grant Expenditure,Creative Economy,Queen's University Belfast GRANT,98424957,"31,937.94",Research Grant Expenditure
BEIS,UKRI - AHRC,25/03/2019,Research Grant Expenditure,Research Grants,Queen's University Belfast GRANT,98425071,"20,752.40",Research Grant Expenditure
BEIS,UKRI - AHRC,25/03/2019,Research Grant Expenditure,Follow-on Fund,Queen's University Belfast GRANT,98425120,"20,083.68",Research Grant Expenditure
BEIS,UKRI - AHRC,25/03/2019,Research Grant Expenditure,Creative Economy,Queen's University Belfast GRANT,98425141,(566.74),Research Grant Expenditure
BEIS,UKRI - AHRC,25/03/2019,Fellowships,NPIF Research Talent (RCUK Innovation Fellowships),Queen's University Belfast GRANT,98425232,"32,867.08",Fellowships
BEIS,UKRI - AHRC,25/03/2019,Fellowships,Research Fellowships,Queen's University Belfast GRANT,98425255,"11,856.17",Fellowships
BEIS,UKRI - AHRC,25/03/2019,Fellowships,Research Fellowships,Queen's University Belfast GRANT,98425256,"20,820.87",Fellowships
BEIS,UKRI - AHRC,25/03/2019,Research Grant Expenditure,Fund for International Collaboration (FIC),Robert Gordon University,98425046,"11,258.76",Research Grant Expenditure
BEIS,UKRI - AHRC,25/03/2019,Fellowships,NPIF Research Talent (RCUK Innovation Fellowships),Royal Botanic Gardens Edinburgh,98425230,"31,947.68",Fellowships
BEIS,UKRI - AHRC,25/03/2019,Research Grant Expenditure,Innovation Placements (NPIF),Royal College of Art,98424948,"7,560.75",Research Grant Expenditure
BEIS,UKRI - AHRC,25/03/2019,Research Grant Expenditure,Fund for International Collaboration (FIC),Royal College of Art,98425044,"12,601.04",Research Grant Expenditure
BEIS,UKRI - AHRC,25/03/2019,Research Grant Expenditure,Research Grants,Royal College of Music,98424735,"66,291.82",Research Grant Expenditure
BEIS,UKRI - AHRC,25/03/2019,Research Grant Expenditure,Networks & Workshops,Royal College of Music,98425105,"5,570.07",Research Grant Expenditure
BEIS,UKRI - AHRC,25/03/2019,Research Grant Expenditure,Networks & Workshops,Royal Conservatoire of Scotland,98425115,"5,177.76",Research Grant Expenditure
BEIS,UKRI - AHRC,25/03/2019,Research Grant Expenditure,Research Grants,"Royal Holloway, University of London",98424670,"19,992.44",Research Grant Expenditure
BEIS,UKRI - AHRC,25/03/2019,Research Grant Expenditure,Research Grants,"Royal Holloway, University of London",98424684,"73,999.54",Research Grant Expenditure
BEIS,UKRI - AHRC,25/03/2019,Research Grant Expenditure,Creative Economy,"Royal Holloway, University of London",98424742,"118,078.51",Research Grant Expenditure
BEIS,UKRI - AHRC,25/03/2019,Research Grant Expenditure,Research Grants,"Royal Holloway, University of London",98424843,"32,782.77",Research Grant Expenditure
BEIS,UKRI - AHRC,25/03/2019,Research Grant Expenditure,RCUK Newton Programme,"Royal Holloway, University of London",98424873,"34,307.36",Research Grant Expenditure
BEIS,UKRI - AHRC,25/03/2019,Research Grant Expenditure,Innovation Placements (NPIF),"Royal Holloway, University of London",98424952,"29,486.93",Research Grant Expenditure
BEIS,UKRI - AHRC,25/03/2019,Research Grant Expenditure,Innovation Placements (NPIF),"Royal Holloway, University of London",98424952,"29,486.93",Research Grant Expenditure
BEIS,UKRI - AHRC,25/03/2019,Research Grant Expenditure,Industrial Strategy Challenge Fund (ISCF) - Creative Clusters,"Royal Holloway, University of London",98424955,"304,936.92",Research Grant Expenditure
BEIS,UKRI - AHRC,25/03/2019,Research Grant Expenditure,NPIF Research Talent (RCUK Innovation Fellowships),"Royal Holloway, University of London",98425013,"156,445.33",Research Grant Expenditure
BEIS,UKRI - AHRC,25/03/2019,Research Grant Expenditure,Fund for International Collaboration (FIC),"Royal Holloway, University of London",98425034,"42,514.53",Research Grant Expenditure
BEIS,UKRI - AHRC,25/03/2019,Fellowships,Research Fellowships,"Royal Holloway, University of London",98425247,"25,052.12",Fellowships
BEIS,UKRI - AHRC,18/03/2019,Advertising & Promotion,Communications,Rumba Graphic Design Ltd,98438838,720.00,Advertising & Promotion
BEIS,UKRI - AHRC,27/03/2019,International Subscriptions,ESF Membership Fee,Science Europe,98445714,"13,264.36",International Subscriptions
BEIS,UKRI - AHRC,25/03/2019,Research Grant Expenditure,Newton Programme,Science Museum Group,98424902,"41,494.11",Research Grant Expenditure
BEIS,UKRI - AHRC,25/03/2019,Research Grant Expenditure,Research Grants,"SOAS, University of London",98424685,"29,970.10",Research Grant Expenditure
BEIS,UKRI - AHRC,25/03/2019,Research Grant Expenditure,Research Grants,"SOAS, University of London",98424709,"48,422.95",Research Grant Expenditure
BEIS,UKRI - AHRC,25/03/2019,Research Grant Expenditure,Research Grants,"SOAS, University of London",98424715,"60,224.82",Research Grant Expenditure
BEIS,UKRI - AHRC,25/03/2019,Research Grant Expenditure,Research Grants,"SOAS, University of London",98424761,"66,269.92",Research Grant Expenditure
BEIS,UKRI - AHRC,25/03/2019,Research Grant Expenditure,Global Challenges Research Fund (GCRF),"SOAS, University of London",98424796,"153,580.33",Research Grant Expenditure
BEIS,UKRI - AHRC,25/03/2019,Research Grant Expenditure,Global Challenges Research Fund (GCRF),"SOAS, University of London",98424798,"43,470.85",Research Grant Expenditure
BEIS,UKRI - AHRC,25/03/2019,Research Grant Expenditure,Global Challenges Research Fund (GCRF),"SOAS, University of London",98424932,"88,561.26",Research Grant Expenditure
BEIS,UKRI - AHRC,25/03/2019,Research Grant Expenditure,Global Challenges Research Fund (GCRF),"SOAS, University of London",98424937,"38,711.38",Research Grant Expenditure
BEIS,UKRI - AHRC,08/03/2019,Council & Committee Honoraria,"AHRC - Strategic Planning, Evidence & Impact",Stephen Hoskins,98431736,500.00,Council & Committee Honoraria
BEIS,UKRI - AHRC,05/03/2019,Legal & Professional Services,GCRF - Programme Delivery,Studio Orb Ltd,98420178,125.00,Legal & Professional Services
BEIS,UKRI - AHRC,07/03/2019,Health & Safety (inc. Medicals & Opticians),HR,Swindon Occupational Medical Services Ltd,98425527,"1,650.00",Health & Safety (inc. Medicals & Opticians)
BEIS,UKRI - AHRC,25/03/2019,Voluntary Deductions,Balance Sheet,Swindon Office Sports and Social Club,98431971,94.00,Voluntary Deductions
BEIS,UKRI - AHRC,25/03/2019,Research Grant Expenditure,Living with Machines (SPF),The Alan Turing Institute,98424993,"743,421.54",Research Grant Expenditure
BEIS,UKRI - AHRC,25/03/2019,Research Grant Expenditure,Living with Machines (SPF),The Alan Turing Institute,98424993,"744,063.52",Research Grant Expenditure
BEIS,UKRI - AHRC,21/03/2019,International Subscriptions,Communications,The Copyright Licensing Agency Ltd,98442444,"2,326.46",International Subscriptions
BEIS,UKRI - AHRC,25/03/2019,Research Grant Expenditure,Audience of the Future (ISCF 2),The National Film & Television School,98424935,"601,281.95",Research Grant Expenditure
BEIS,UKRI - AHRC,25/03/2019,Research Grant Expenditure,Research Grants,The Open University,98424648,"54,044.39",Research Grant Expenditure
BEIS,UKRI - AHRC,25/03/2019,Research Grant Expenditure,Research Grants,The Open University,98424778,"36,992.76",Research Grant Expenditure
BEIS,UKRI - AHRC,25/03/2019,Research Grant Expenditure,Networks & Workshops,The Open University,98424829,"5,198.19",Research Grant Expenditure
BEIS,UKRI - AHRC,25/03/2019,Research Grant Expenditure,JPI Cultural Heritage,The Open University,98424847,"13,150.67",Research Grant Expenditure
BEIS,UKRI - AHRC,25/03/2019,Research Grant Expenditure,Global Challenges Research Fund (GCRF),The Open University,98424981,"36,037.36",Research Grant Expenditure
BEIS,UKRI - AHRC,25/03/2019,Research Grant Expenditure,Research Grants,The Royal Central School of Speech and Drama,98424862,"47,574.45",Research Grant Expenditure
BEIS,UKRI - AHRC,25/03/2019,Research Grant Expenditure,Research Grants,The University of Manchester,98424652,"45,521.16",Research Grant Expenditure
BEIS,UKRI - AHRC,25/03/2019,Research Grant Expenditure,Research Grants,The University of Manchester,98424658,"55,274.95",Research Grant Expenditure
BEIS,UKRI - AHRC,25/03/2019,Research Grant Expenditure,Research Grants,The University of Manchester,98424667,"67,207.81",Research Grant Expenditure
BEIS,UKRI - AHRC,25/03/2019,Research Grant Expenditure,Open World Research Initiative (OWRI).,The University of Manchester,98424673,"195,501.31",Research Grant Expenditure
BEIS,UKRI - AHRC,25/03/2019,Research Grant Expenditure,Research Grants,The University of Manchester,98424719,"60,454.10",Research Grant Expenditure
BEIS,UKRI - AHRC,25/03/2019,Research Grant Expenditure,Research Grants,The University of Manchester,98424762,"30,832.62",Research Grant Expenditure
BEIS,UKRI - AHRC,25/03/2019,Research Grant Expenditure,Global Challenges Research Fund (GCRF),The University of Manchester,98424790,"41,645.04",Research Grant Expenditure
BEIS,UKRI - AHRC,25/03/2019,Research Grant Expenditure,Research Grants,The University of Manchester,98424842,"56,814.89",Research Grant Expenditure
BEIS,UKRI - AHRC,25/03/2019,Research Grant Expenditure,Research Grants,The University of Manchester,98424846,"57,920.36",Research Grant Expenditure
BEIS,UKRI - AHRC,25/03/2019,Research Grant Expenditure,Research Grants,The University of Manchester,98424884,"27,342.62",Research Grant Expenditure
BEIS,UKRI - AHRC,25/03/2019,Research Grant Expenditure,Research Grants,The University of Manchester,98424904,"45,247.89",Research Grant Expenditure
BEIS,UKRI - AHRC,25/03/2019,Research Grant Expenditure,Research Grants,The University of Manchester,98424920,"67,324.13",Research Grant Expenditure
BEIS,UKRI - AHRC,25/03/2019,Research Grant Expenditure,Innovation Placements (NPIF),The University of Manchester,98424951,"29,486.93",Research Grant Expenditure
BEIS,UKRI - AHRC,25/03/2019,Research Grant Expenditure,Innovation Placements (NPIF),The University of Manchester,98424951,"29,486.93",Research Grant Expenditure
BEIS,UKRI - AHRC,25/03/2019,Research Grant Expenditure,NPIF Research Talent (RCUK Innovation Fellowships),The University of Manchester,98425009,"156,810.00",Research Grant Expenditure
BEIS,UKRI - AHRC,25/03/2019,Research Grant Expenditure,NPIF Research Talent (RCUK Innovation Fellowships),The University of Manchester,98425128,"(1,690.13)",Research Grant Expenditure
BEIS,UKRI - AHRC,25/03/2019,Fellowships,Research Fellowships,The University of Manchester,98425196,"21,784.67",Fellowships
BEIS,UKRI - AHRC,25/03/2019,Fellowships,Research Fellowships,The University of Manchester,98425246,"32,786.17",Fellowships
BEIS,UKRI - AHRC,12/03/2019,Recruitment Costs,Communications,UK Shared Business Services Ltd,98379162,32.43,Recruitment Costs
BEIS,UKRI - AHRC,12/03/2019,Recruitment Costs,Communications,UK Shared Business Services Ltd,98379169,32.43,Recruitment Costs
BEIS,UKRI - AHRC,12/03/2019,Recruitment Costs,HR,UK Shared Business Services Ltd,98389778,32.43,Recruitment Costs
BEIS,UKRI - AHRC,12/03/2019,Recruitment Costs,HR,UK Shared Business Services Ltd,98389780,32.43,Recruitment Costs
BEIS,UKRI - AHRC,12/03/2019,Recruitment Costs,PSU Project Office,UK Shared Business Services Ltd,98389781,32.43,Recruitment Costs
BEIS,UKRI - AHRC,12/03/2019,Computing Consumables,Corporate Services,UK Shared Business Services Ltd,98423750,"9,982.39",Computing Consumables
BEIS,UKRI - AHRC,12/03/2019,Staff Training,Corporate Services,UK Shared Business Services Ltd,98426174,"9,883.17",Staff Training
BEIS,UKRI - AHRC,12/03/2019,Staff Training,Corporate Services,UK Shared Business Services Ltd,98426242,341.21,Staff Training
BEIS,UKRI - AHRC,21/03/2019,Computing Consumables,Corporate Services,UK Shared Business Services Ltd,98442076,"11,379.09",Computing Consumables
BEIS,UKRI - AHRC,25/03/2019,Research Grant Expenditure,Care for the Future,University College London,98424647,"101,592.88",Research Grant Expenditure
BEIS,UKRI - AHRC,25/03/2019,Research Grant Expenditure,Research Grants,University College London,98424656,"30,559.11",Research Grant Expenditure
BEIS,UKRI - AHRC,25/03/2019,Research Grant Expenditure,Global Challenges Research Fund (GCRF),University College London,98424697,"40,977.88",Research Grant Expenditure
BEIS,UKRI - AHRC,25/03/2019,Research Grant Expenditure,Research Grants,University College London,98424701,"42,016.24",Research Grant Expenditure
BEIS,UKRI - AHRC,25/03/2019,Research Grant Expenditure,Science and Heritage Programme,University College London,98424718,"77,341.51",Research Grant Expenditure
BEIS,UKRI - AHRC,25/03/2019,Research Grant Expenditure,Research Grants,University College London,98424758,"32,720.48",Research Grant Expenditure
BEIS,UKRI - AHRC,25/03/2019,Research Grant Expenditure,Anti-microbial Resistance (AMR),University College London,98424773,"40,057.04",Research Grant Expenditure
BEIS,UKRI - AHRC,25/03/2019,Research Grant Expenditure,Global Challenges Research Fund (GCRF),University College London,98424794,"115,336.62",Research Grant Expenditure
BEIS,UKRI - AHRC,25/03/2019,Research Grant Expenditure,Research Grants,University College London,98424810,"62,699.82",Research Grant Expenditure
BEIS,UKRI - AHRC,25/03/2019,Research Grant Expenditure,Research Grants,University College London,98424812,"33,825.56",Research Grant Expenditure
BEIS,UKRI - AHRC,25/03/2019,Research Grant Expenditure,Research Grants,University College London,98424815,"29,782.92",Research Grant Expenditure
BEIS,UKRI - AHRC,25/03/2019,Research Grant Expenditure,JPI Cultural Heritage,University College London,98424838,"8,064.52",Research Grant Expenditure
BEIS,UKRI - AHRC,25/03/2019,Research Grant Expenditure,Newton Programme,University College London,98424900,"25,190.52",Research Grant Expenditure
BEIS,UKRI - AHRC,25/03/2019,Research Grant Expenditure,Newton Programme,University College London,98424900,"25,190.52",Research Grant Expenditure
BEIS,UKRI - AHRC,25/03/2019,Fellowships,Research Fellowships,University College London,98425183,"22,720.46",Fellowships
BEIS,UKRI - AHRC,25/03/2019,Fellowships,NPIF Research Talent (RCUK Innovation Fellowships),University College London,98425243,"20,849.26",Fellowships
BEIS,UKRI - AHRC,25/03/2019,Research Grant Expenditure,Care for the Future,University of Aberdeen,98425072,"10,063.13",Research Grant Expenditure
BEIS,UKRI - AHRC,25/03/2019,Research Grant Expenditure,Networks & Workshops,University of Aberdeen,98425144,(86.13),Research Grant Expenditure
BEIS,UKRI - AHRC,25/03/2019,Fellowships,Research Fellowships,University of Aberdeen,98425189,"17,986.97",Fellowships
BEIS,UKRI - AHRC,25/03/2019,Research Grant Expenditure,Industrial Strategy Challenge Fund (ISCF) - Creative Clusters,University of Abertay Dundee,98424944,"284,280.90",Research Grant Expenditure
BEIS,UKRI - AHRC,25/03/2019,Research Grant Expenditure,Global Challenges Research Fund (GCRF),University of Bath,98424977,"35,563.19",Research Grant Expenditure
BEIS,UKRI - AHRC,25/03/2019,Research Grant Expenditure,Research Grants,University of Birmingham GRANT,98424680,"52,210.90",Research Grant Expenditure
BEIS,UKRI - AHRC,25/03/2019,Research Grant Expenditure,Care for the Future,University of Birmingham GRANT,98424705,"42,933.42",Research Grant Expenditure
BEIS,UKRI - AHRC,25/03/2019,Research Grant Expenditure,Connected Communities Programme,University of Birmingham GRANT,98424705,"42,933.36",Research Grant Expenditure
BEIS,UKRI - AHRC,25/03/2019,Research Grant Expenditure,Research Grants,University of Birmingham GRANT,98424708,"31,143.65",Research Grant Expenditure
BEIS,UKRI - AHRC,25/03/2019,Research Grant Expenditure,Research Grants,University of Birmingham GRANT,98424713,"40,170.11",Research Grant Expenditure
BEIS,UKRI - AHRC,25/03/2019,Research Grant Expenditure,Research Grants,University of Birmingham GRANT,98424749,"24,026.79",Research Grant Expenditure
BEIS,UKRI - AHRC,25/03/2019,Research Grant Expenditure,Networks & Workshops,University of Birmingham GRANT,98424754,"3,500.39",Research Grant Expenditure
BEIS,UKRI - AHRC,25/03/2019,Research Grant Expenditure,Research Grants,University of Birmingham GRANT,98424785,"51,473.07",Research Grant Expenditure
BEIS,UKRI - AHRC,25/03/2019,Research Grant Expenditure,Global Challenges Research Fund (GCRF),University of Birmingham GRANT,98424799,"7,774.98",Research Grant Expenditure
BEIS,UKRI - AHRC,25/03/2019,Research Grant Expenditure,Networks & Workshops,University of Birmingham GRANT,98424856,"3,831.74",Research Grant Expenditure
BEIS,UKRI - AHRC,25/03/2019,Research Grant Expenditure,Networks & Workshops,University of Birmingham GRANT,98424982,"3,134.33",Research Grant Expenditure
BEIS,UKRI - AHRC,25/03/2019,Research Grant Expenditure,Fund for International Collaboration (FIC),University of Birmingham GRANT,98425035,"45,159.59",Research Grant Expenditure
BEIS,UKRI - AHRC,25/03/2019,Research Grant Expenditure,Research Grants,University of Birmingham GRANT,98425070,"19,608.76",Research Grant Expenditure
BEIS,UKRI - AHRC,25/03/2019,Research Grant Expenditure,Networks & Workshops,University of Birmingham GRANT,98425083,"(1,202.62)",Research Grant Expenditure
BEIS,UKRI - AHRC,25/03/2019,Research Grant Expenditure,Global Challenges Research Fund (GCRF),University of Birmingham GRANT,98425088,"12,983.29",Research Grant Expenditure
BEIS,UKRI - AHRC,25/03/2019,Research Grant Expenditure,Research Grants,University of Birmingham GRANT,98425090,"34,397.74",Research Grant Expenditure
BEIS,UKRI - AHRC,25/03/2019,Fellowships,Research Fellowships,University of Birmingham GRANT,98425191,"22,691.28",Fellowships
BEIS,UKRI - AHRC,25/03/2019,Fellowships,Research Fellowships,University of Birmingham GRANT,98425213,"25,746.88",Fellowships
BEIS,UKRI - AHRC,25/03/2019,Fellowships,Research Fellowships,University of Birmingham GRANT,98425222,"43,081.36",Fellowships
BEIS,UKRI - AHRC,25/03/2019,Research Grant Expenditure,Research Grants,University of Bradford,98424767,"10,157.00",Research Grant Expenditure
BEIS,UKRI - AHRC,25/03/2019,Research Grant Expenditure,Global Challenges Research Fund (GCRF),University of Bradford,98424912,"84,297.83",Research Grant Expenditure
BEIS,UKRI - AHRC,25/03/2019,Research Grant Expenditure,Global Challenges Research Fund (GCRF),University of Brighton,98424891,"80,578.34",Research Grant Expenditure
BEIS,UKRI - AHRC,25/03/2019,Fellowships,Research Fellowships,University of Brighton,98425226,"10,721.35",Fellowships
BEIS,UKRI - AHRC,25/03/2019,Fellowships,NPIF Research Talent (RCUK Innovation Fellowships),University of Brighton,98425237,"21,692.44",Fellowships
BEIS,UKRI - AHRC,25/03/2019,Fellowships,NPIF Research Talent (RCUK Innovation Fellowships),University of Brighton,98425238,"23,132.48",Fellowships
BEIS,UKRI - AHRC,25/03/2019,Research Grant Expenditure,Research Grants,University of Bristol GRANT,98424686,"64,426.18",Research Grant Expenditure
BEIS,UKRI - AHRC,25/03/2019,Research Grant Expenditure,RCUK Newton Programme,University of Bristol GRANT,98424869,"60,297.88",Research Grant Expenditure
BEIS,UKRI - AHRC,25/03/2019,Research Grant Expenditure,Research Grants,University of Bristol GRANT,98424907,"42,943.45",Research Grant Expenditure
BEIS,UKRI - AHRC,25/03/2019,Research Grant Expenditure,Global Challenges Research Fund (GCRF),University of Bristol GRANT,98424915,"86,590.95",Research Grant Expenditure
BEIS,UKRI - AHRC,25/03/2019,Research Grant Expenditure,Global Challenges Research Fund (GCRF),University of Bristol GRANT,98424969,"37,555.99",Research Grant Expenditure
BEIS,UKRI - AHRC,25/03/2019,Research Grant Expenditure,Global Challenges Research Fund (GCRF),University of Bristol GRANT,98424998,"83,898.59",Research Grant Expenditure
BEIS,UKRI - AHRC,25/03/2019,Research Grant Expenditure,Research Grants,University of Bristol GRANT,98425079,"24,168.23",Research Grant Expenditure
BEIS,UKRI - AHRC,25/03/2019,Research Grant Expenditure,Follow-on Fund,University of Bristol GRANT,98425098,"(60,756.97)",Research Grant Expenditure
BEIS,UKRI - AHRC,25/03/2019,Research Grant Expenditure,Follow-on Fund,University of Bristol GRANT,98425104,(122.89),Research Grant Expenditure
BEIS,UKRI - AHRC,25/03/2019,Research Grant Expenditure,Creative Economy,University of Bristol GRANT,98425140,"(2,598.80)",Research Grant Expenditure
BEIS,UKRI - AHRC,25/03/2019,Research Grant Expenditure,Networks & Workshops,University of Bristol GRANT,98425147,"4,476.97",Research Grant Expenditure
BEIS,UKRI - AHRC,25/03/2019,Fellowships,Research Fellowships,University of Bristol GRANT,98425181,"33,567.96",Fellowships
BEIS,UKRI - AHRC,25/03/2019,Fellowships,Research Fellowships,University of Bristol GRANT,98425195,"21,202.34",Fellowships
BEIS,UKRI - AHRC,25/03/2019,Fellowships,Research Fellowships,University of Bristol GRANT,98425220,"35,063.20",Fellowships
BEIS,UKRI - AHRC,25/03/2019,Fellowships,Research Fellowships,University of Bristol GRANT,98425224,"33,469.63",Fellowships
BEIS,UKRI - AHRC,25/03/2019,Fellowships,Research Fellowships,University of Bristol GRANT,98425224,"33,469.63",Fellowships
BEIS,UKRI - AHRC,25/03/2019,Research Grant Expenditure,Research Grants,University of Cambridge,98424649,"33,812.58",Research Grant Expenditure
BEIS,UKRI - AHRC,25/03/2019,Research Grant Expenditure,Research Grants,University of Cambridge,98424664,"56,013.69",Research Grant Expenditure
BEIS,UKRI - AHRC,25/03/2019,Research Grant Expenditure,Open World Research Initiative (OWRI).,University of Cambridge,98424675,"200,980.06",Research Grant Expenditure
BEIS,UKRI - AHRC,25/03/2019,Research Grant Expenditure,Research Grants,University of Cambridge,98424698,"29,180.34",Research Grant Expenditure
BEIS,UKRI - AHRC,25/03/2019,Research Grant Expenditure,Research Grants,University of Cambridge,98424716,"62,074.86",Research Grant Expenditure
BEIS,UKRI - AHRC,25/03/2019,Research Grant Expenditure,Research Grants,University of Cambridge,98424723,"54,719.30",Research Grant Expenditure
BEIS,UKRI - AHRC,25/03/2019,Research Grant Expenditure,Anti-microbial Resistance (AMR),University of Cambridge,98424771,"26,165.64",Research Grant Expenditure
BEIS,UKRI - AHRC,25/03/2019,Research Grant Expenditure,Global Challenges Research Fund (GCRF),University of Cambridge,98424800,"45,944.35",Research Grant Expenditure
BEIS,UKRI - AHRC,25/03/2019,Research Grant Expenditure,Global Challenges Research Fund (GCRF),University of Cambridge,98424976,"37,427.27",Research Grant Expenditure
BEIS,UKRI - AHRC,25/03/2019,Research Grant Expenditure,Fund for International Collaboration (FIC),University of Cambridge,98425005,"47,839.30",Research Grant Expenditure
BEIS,UKRI - AHRC,25/03/2019,Research Grant Expenditure,NPIF Research Talent (RCUK Innovation Fellowships),University of Cambridge,98425012,"156,356.83",Research Grant Expenditure
BEIS,UKRI - AHRC,25/03/2019,Research Grant Expenditure,Fund for International Collaboration (FIC),University of Cambridge,98425036,"47,674.08",Research Grant Expenditure
BEIS,UKRI - AHRC,25/03/2019,Research Grant Expenditure,Global Challenges Research Fund (GCRF),University of Cambridge,98425087,(159.32),Research Grant Expenditure
BEIS,UKRI - AHRC,25/03/2019,Fellowships,Research Fellowships,University of Cambridge,98425252,"19,901.02",Fellowships
BEIS,UKRI - AHRC,25/03/2019,Research Grant Expenditure,Global Challenges Research Fund (GCRF),University of Central Lancashire,98424892,"92,679.08",Research Grant Expenditure
BEIS,UKRI - AHRC,25/03/2019,Research Grant Expenditure,Networks & Workshops,University of Chester,98424787,"3,095.52",Research Grant Expenditure
BEIS,UKRI - AHRC,25/03/2019,Research Grant Expenditure,Research Grants,University of Chester,98424887,"37,616.38",Research Grant Expenditure
BEIS,UKRI - AHRC,25/03/2019,Research Grant Expenditure,Research Grants,University of Chester,98424887,"37,616.38",Research Grant Expenditure
BEIS,UKRI - AHRC,25/03/2019,Research Grant Expenditure,Research Grants,University of Dundee,98424825,"24,034.58",Research Grant Expenditure
BEIS,UKRI - AHRC,25/03/2019,Research Grant Expenditure,Global Challenges Research Fund (GCRF),University of Dundee,98425146,"37,452.51",Research Grant Expenditure
BEIS,UKRI - AHRC,25/03/2019,Research Grant Expenditure,Research Grants,University of Durham,98424659,"49,611.02",Research Grant Expenditure
BEIS,UKRI - AHRC,25/03/2019,Research Grant Expenditure,Research Grants,University of Durham,98424671,"16,350.33",Research Grant Expenditure
BEIS,UKRI - AHRC,25/03/2019,Research Grant Expenditure,Research Grants,University of Durham,98424679,"55,901.35",Research Grant Expenditure
BEIS,UKRI - AHRC,25/03/2019,Research Grant Expenditure,Research Grants,University of Durham,98424714,"58,788.57",Research Grant Expenditure
BEIS,UKRI - AHRC,25/03/2019,Research Grant Expenditure,Research Grants,University of Durham,98424807,"34,802.03",Research Grant Expenditure
BEIS,UKRI - AHRC,25/03/2019,Research Grant Expenditure,Research Grants,University of Durham,98424813,"64,234.19",Research Grant Expenditure
BEIS,UKRI - AHRC,25/03/2019,Research Grant Expenditure,Networks & Workshops,University of Durham,98424851,"8,850.63",Research Grant Expenditure
BEIS,UKRI - AHRC,25/03/2019,Research Grant Expenditure,Global Challenges Research Fund (GCRF),University of Durham,98424890,"84,069.77",Research Grant Expenditure
BEIS,UKRI - AHRC,25/03/2019,Research Grant Expenditure,Global Challenges Research Fund (GCRF),University of Durham,98424974,"37,881.87",Research Grant Expenditure
BEIS,UKRI - AHRC,25/03/2019,Research Grant Expenditure,Newton Programme,University of Durham,98424985,"19,065.46",Research Grant Expenditure
BEIS,UKRI - AHRC,25/03/2019,Research Grant Expenditure,Newton Programme,University of Durham,98424987,"24,019.64",Research Grant Expenditure
BEIS,UKRI - AHRC,25/03/2019,Research Grant Expenditure,Networks & Workshops,University of Durham,98425084,"7,384.74",Research Grant Expenditure
BEIS,UKRI - AHRC,25/03/2019,Research Grant Expenditure,Research Grants,University of East Anglia,98424700,"46,785.49",Research Grant Expenditure
BEIS,UKRI - AHRC,25/03/2019,Research Grant Expenditure,Research Grants,University of East Anglia,98424814,"32,843.79",Research Grant Expenditure
BEIS,UKRI - AHRC,25/03/2019,Research Grant Expenditure,Research Grants,University of East Anglia,98424886,"24,707.72",Research Grant Expenditure
BEIS,UKRI - AHRC,25/03/2019,Research Grant Expenditure,Global Challenges Research Fund (GCRF),University of East Anglia,98424914,"91,220.96",Research Grant Expenditure
BEIS,UKRI - AHRC,25/03/2019,Research Grant Expenditure,Follow-on Fund,University of East Anglia,98424996,"9,901.76",Research Grant Expenditure
BEIS,UKRI - AHRC,25/03/2019,Research Grant Expenditure,Global Challenges Research Fund (GCRF),University of East Anglia,98424997,"81,767.08",Research Grant Expenditure
BEIS,UKRI - AHRC,25/03/2019,Research Grant Expenditure,Research Grants,University of East Anglia,98425075,"22,720.04",Research Grant Expenditure
BEIS,UKRI - AHRC,25/03/2019,Research Grant Expenditure,Research Grants,University of East Anglia,98425089,"27,660.14",Research Grant Expenditure
BEIS,UKRI - AHRC,25/03/2019,Research Grant Expenditure,Research Grants,University of East Anglia,98425097,"(20,277.20)",Research Grant Expenditure
BEIS,UKRI - AHRC,25/03/2019,Fellowships,Research Fellowships,University of East Anglia,98425208,"23,309.50",Fellowships
BEIS,UKRI - AHRC,25/03/2019,Research Grant Expenditure,Research Grants,University of Edinburgh,98424766,"8,677.63",Research Grant Expenditure
BEIS,UKRI - AHRC,25/03/2019,Research Grant Expenditure,Global Challenges Research Fund (GCRF),University of Edinburgh,98424916,"83,032.42",Research Grant Expenditure
BEIS,UKRI - AHRC,25/03/2019,Research Grant Expenditure,Industrial Strategy Challenge Fund (ISCF) - Creative Clusters,University of Edinburgh,98424938,"305,193.74",Research Grant Expenditure
BEIS,UKRI - AHRC,25/03/2019,Research Grant Expenditure,Global Challenges Research Fund (GCRF),University of Edinburgh,98425006,"80,629.38",Research Grant Expenditure
BEIS,UKRI - AHRC,25/03/2019,Research Grant Expenditure,Networks & Workshops,University of Edinburgh,98425094,"5,922.55",Research Grant Expenditure
BEIS,UKRI - AHRC,25/03/2019,Research Grant Expenditure,Follow-on Fund,University of Edinburgh,98425102,"(5,808.28)",Research Grant Expenditure
BEIS,UKRI - AHRC,25/03/2019,Fellowships,Research Fellowships,University of Edinburgh,98425192,"17,276.28",Fellowships
BEIS,UKRI - AHRC,25/03/2019,Fellowships,Research Fellowships,University of Edinburgh,98425209,"34,753.66",Fellowships
BEIS,UKRI - AHRC,25/03/2019,Fellowships,Research Fellowships,University of Edinburgh,98425211,"22,391.62",Fellowships
BEIS,UKRI - AHRC,25/03/2019,Fellowships,Research Fellowships,University of Edinburgh,98425229,"19,214.21",Fellowships
BEIS,UKRI - AHRC,25/03/2019,Research Grant Expenditure,Care for the Future,University of Essex,98424816,"11,413.30",Research Grant Expenditure
BEIS,UKRI - AHRC,25/03/2019,Research Grant Expenditure,Connected Communities Programme,University of Essex,98424816,"11,413.26",Research Grant Expenditure
BEIS,UKRI - AHRC,25/03/2019,Fellowships,Research Fellowships,University of Essex,98425205,"32,184.94",Fellowships
BEIS,UKRI - AHRC,25/03/2019,Research Grant Expenditure,Research Grants,University of Exeter,98424666,"42,002.93",Research Grant Expenditure
BEIS,UKRI - AHRC,25/03/2019,Research Grant Expenditure,Research Grants,University of Exeter,98424737,"53,383.92",Research Grant Expenditure
BEIS,UKRI - AHRC,25/03/2019,Research Grant Expenditure,Research Grants,University of Exeter,98424739,"24,175.70",Research Grant Expenditure
BEIS,UKRI - AHRC,25/03/2019,Research Grant Expenditure,Networks & Workshops,University of Exeter,98424744,"4,674.82",Research Grant Expenditure
BEIS,UKRI - AHRC,25/03/2019,Research Grant Expenditure,Anti-microbial Resistance (AMR),University of Exeter,98424769,"22,264.76",Research Grant Expenditure
BEIS,UKRI - AHRC,25/03/2019,Research Grant Expenditure,Global Challenges Research Fund (GCRF),University of Exeter,98424803,"15,515.77",Research Grant Expenditure
BEIS,UKRI - AHRC,25/03/2019,Research Grant Expenditure,Care for the Future,University of Exeter,98424826,"93,133.05",Research Grant Expenditure
BEIS,UKRI - AHRC,25/03/2019,Research Grant Expenditure,Research Grants,University of Exeter,98424857,"81,585.13",Research Grant Expenditure
BEIS,UKRI - AHRC,25/03/2019,Research Grant Expenditure,Research Grants,University of Exeter,98424877,"19,890.46",Research Grant Expenditure
BEIS,UKRI - AHRC,25/03/2019,Research Grant Expenditure,Research Grants,University of Exeter,98424918,"33,414.55",Research Grant Expenditure
BEIS,UKRI - AHRC,25/03/2019,Research Grant Expenditure,Research Grants,University of Exeter,98424926,"43,393.94",Research Grant Expenditure
BEIS,UKRI - AHRC,25/03/2019,Research Grant Expenditure,Follow-on Fund,University of Exeter,98424933,"80,560.51",Research Grant Expenditure
BEIS,UKRI - AHRC,25/03/2019,Research Grant Expenditure,Global Challenges Research Fund (GCRF),University of Exeter,98424966,"35,151.16",Research Grant Expenditure
BEIS,UKRI - AHRC,25/03/2019,Research Grant Expenditure,Global Challenges Research Fund (GCRF),University of Exeter,98425085,"(13,373.58)",Research Grant Expenditure
BEIS,UKRI - AHRC,25/03/2019,Fellowships,Research Fellowships,University of Exeter,98425190,"29,624.22",Fellowships
BEIS,UKRI - AHRC,25/03/2019,Fellowships,Research Fellowships,University of Exeter,98425215,"21,204.89",Fellowships
BEIS,UKRI - AHRC,25/03/2019,Fellowships,Research Fellowships,University of Exeter,98425215,"26,320.59",Fellowships
BEIS,UKRI - AHRC,25/03/2019,Fellowships,Research Fellowships,University of Exeter,98425218,"28,898.96",Fellowships
BEIS,UKRI - AHRC,25/03/2019,Fellowships,Research Fellowships,University of Exeter,98425225,"24,175.04",Fellowships
BEIS,UKRI - AHRC,25/03/2019,Research Grant Expenditure,Research Grants,University of Glasgow,98424650,"44,777.27",Research Grant Expenditure
BEIS,UKRI - AHRC,25/03/2019,Research Grant Expenditure,Research Grants,University of Glasgow,98424711,"40,416.75",Research Grant Expenditure
BEIS,UKRI - AHRC,25/03/2019,Research Grant Expenditure,Research Grants,University of Glasgow,98424784,"43,094.30",Research Grant Expenditure
BEIS,UKRI - AHRC,25/03/2019,Research Grant Expenditure,Global Challenges Research Fund (GCRF),University of Glasgow,98424804,"15,771.13",Research Grant Expenditure
BEIS,UKRI - AHRC,25/03/2019,Research Grant Expenditure,Research Grants,University of Glasgow,98424821,"56,065.49",Research Grant Expenditure
BEIS,UKRI - AHRC,25/03/2019,Research Grant Expenditure,Networks & Workshops,University of Glasgow,98424831,"4,579.97",Research Grant Expenditure
BEIS,UKRI - AHRC,25/03/2019,Research Grant Expenditure,Networks & Workshops,University of Glasgow,98424864,"4,885.26",Research Grant Expenditure
BEIS,UKRI - AHRC,25/03/2019,Research Grant Expenditure,Research Grants,University of Glasgow,98424930,"72,191.97",Research Grant Expenditure
BEIS,UKRI - AHRC,25/03/2019,Research Grant Expenditure,Innovation Placements (NPIF),University of Glasgow,98424949,"29,669.18",Research Grant Expenditure
BEIS,UKRI - AHRC,25/03/2019,Research Grant Expenditure,Innovation Placements (NPIF),University of Glasgow,98424949,"29,669.18",Research Grant Expenditure
BEIS,UKRI - AHRC,25/03/2019,Research Grant Expenditure,Creative Economy,University of Glasgow,98424956,"32,258.88",Research Grant Expenditure
BEIS,UKRI - AHRC,25/03/2019,Research Grant Expenditure,Global Challenges Research Fund (GCRF),University of Glasgow,98424980,"37,678.45",Research Grant Expenditure
BEIS,UKRI - AHRC,25/03/2019,Research Grant Expenditure,Research Grants,University of Glasgow,98424999,"32,134.25",Research Grant Expenditure
BEIS,UKRI - AHRC,25/03/2019,Research Grant Expenditure,Research Grants,University of Glasgow,98424999,"32,134.25",Research Grant Expenditure
BEIS,UKRI - AHRC,25/03/2019,Research Grant Expenditure,Fund for International Collaboration (FIC),University of Glasgow,98425002,"48,314.32",Research Grant Expenditure
BEIS,UKRI - AHRC,25/03/2019,Research Grant Expenditure,Fund for International Collaboration (FIC),University of Glasgow,98425004,"42,918.30",Research Grant Expenditure
BEIS,UKRI - AHRC,25/03/2019,Research Grant Expenditure,NPIF Research Talent (RCUK Innovation Fellowships),University of Glasgow,98425010,"156,912.01",Research Grant Expenditure
BEIS,UKRI - AHRC,25/03/2019,Research Grant Expenditure,Research Grants,University of Glasgow,98425107,"34,388.03",Research Grant Expenditure
BEIS,UKRI - AHRC,25/03/2019,Research Grant Expenditure,Global Challenges Research Fund (GCRF),University of Glasgow,98425124,"41,392.35",Research Grant Expenditure
BEIS,UKRI - AHRC,25/03/2019,Research Grant Expenditure,Creative Economy,University of Glasgow,98425145,"(2,361.14)",Research Grant Expenditure
BEIS,UKRI - AHRC,25/03/2019,Fellowships,Research Fellowships,University of Glasgow,98425182,"22,236.40",Fellowships
BEIS,UKRI - AHRC,25/03/2019,Fellowships,Research Fellowships,University of Glasgow,98425204,"21,955.29",Fellowships
BEIS,UKRI - AHRC,25/03/2019,Research Grant Expenditure,Care for the Future,University of Hertfordshire,98424704,"25,878.00",Research Grant Expenditure
BEIS,UKRI - AHRC,25/03/2019,Research Grant Expenditure,Connected Communities Programme,University of Hertfordshire,98424704,"25,877.94",Research Grant Expenditure
BEIS,UKRI - AHRC,25/03/2019,Research Grant Expenditure,RCUK Global Challenges Research Fund (RCUK GCRF),University of Huddersfield,98424802,"274,300.00",Research Grant Expenditure
BEIS,UKRI - AHRC,25/03/2019,Research Grant Expenditure,Research Grants,University of Huddersfield,98425067,"41,942.59",Research Grant Expenditure
BEIS,UKRI - AHRC,25/03/2019,Research Grant Expenditure,Research Grants,University of Hull,98424763,"30,862.64",Research Grant Expenditure
BEIS,UKRI - AHRC,25/03/2019,Research Grant Expenditure,JPI Cultural Heritage,University of Hull,98424929,"11,191.91",Research Grant Expenditure
BEIS,UKRI - AHRC,25/03/2019,Research Grant Expenditure,Care for the Future,University of Kent,98424702,"21,074.26",Research Grant Expenditure
BEIS,UKRI - AHRC,25/03/2019,Research Grant Expenditure,Connected Communities Programme,University of Kent,98424702,"21,074.21",Research Grant Expenditure
BEIS,UKRI - AHRC,25/03/2019,Research Grant Expenditure,Research Grants,University of Kent,98424721,"67,449.18",Research Grant Expenditure
BEIS,UKRI - AHRC,25/03/2019,Research Grant Expenditure,Research Grants,University of Kent,98424748,"38,310.54",Research Grant Expenditure
BEIS,UKRI - AHRC,25/03/2019,Research Grant Expenditure,Networks & Workshops,University of Kent,98424768,"4,503.44",Research Grant Expenditure
BEIS,UKRI - AHRC,25/03/2019,Research Grant Expenditure,Research Grants,University of Kent,98424905,"53,827.04",Research Grant Expenditure
BEIS,UKRI - AHRC,25/03/2019,Research Grant Expenditure,Research Grants,University of Kent,98424905,"53,827.04",Research Grant Expenditure
BEIS,UKRI - AHRC,25/03/2019,Fellowships,Research Fellowships,University of Kent,98425203,"31,885.14",Fellowships
BEIS,UKRI - AHRC,25/03/2019,Fellowships,Research Fellowships,University of Kent,98425227,"44,946.48",Fellowships
BEIS,UKRI - AHRC,25/03/2019,Fellowships,Research Fellowships,University of Kent,98425248,"9,162.42",Fellowships
BEIS,UKRI - AHRC,25/03/2019,Research Grant Expenditure,Research Grants,University of Leeds,98424654,"36,068.56",Research Grant Expenditure
BEIS,UKRI - AHRC,25/03/2019,Research Grant Expenditure,Research Grants,University of Leeds,98424710,"72,983.20",Research Grant Expenditure
BEIS,UKRI - AHRC,25/03/2019,Research Grant Expenditure,Networks & Workshops,University of Leeds,98424745,"4,543.40",Research Grant Expenditure
BEIS,UKRI - AHRC,25/03/2019,Research Grant Expenditure,Research Grants,University of Leeds,98424753,"63,313.38",Research Grant Expenditure
BEIS,UKRI - AHRC,25/03/2019,Research Grant Expenditure,Anti-microbial Resistance (AMR),University of Leeds,98424774,"25,743.37",Research Grant Expenditure
BEIS,UKRI - AHRC,25/03/2019,Research Grant Expenditure,Global Challenges Research Fund (GCRF),University of Leeds,98424791,"46,278.18",Research Grant Expenditure
BEIS,UKRI - AHRC,25/03/2019,Research Grant Expenditure,Global Challenges Research Fund (GCRF),University of Leeds,98424792,"279,073.06",Research Grant Expenditure
BEIS,UKRI - AHRC,25/03/2019,Research Grant Expenditure,Networks & Workshops,University of Leeds,98424865,"4,297.81",Research Grant Expenditure
BEIS,UKRI - AHRC,25/03/2019,Research Grant Expenditure,Research Grants,University of Leeds,98424903,"25,804.88",Research Grant Expenditure
BEIS,UKRI - AHRC,25/03/2019,Research Grant Expenditure,Global Challenges Research Fund (GCRF),University of Leeds,98424911,"84,935.69",Research Grant Expenditure
BEIS,UKRI - AHRC,25/03/2019,Research Grant Expenditure,Newton Programme,University of Leeds,98424928,"16,546.06",Research Grant Expenditure
BEIS,UKRI - AHRC,25/03/2019,Research Grant Expenditure,Industrial Strategy Challenge Fund (ISCF) - Creative Clusters,University of Leeds,98424941,"299,289.46",Research Grant Expenditure
BEIS,UKRI - AHRC,25/03/2019,Research Grant Expenditure,Global Challenges Research Fund (GCRF),University of Leeds,98424979,"38,658.94",Research Grant Expenditure
BEIS,UKRI - AHRC,25/03/2019,Research Grant Expenditure,Newton Programme,University of Leeds,98425032,"20,355.48",Research Grant Expenditure
BEIS,UKRI - AHRC,25/03/2019,Research Grant Expenditure,Fund for International Collaboration (FIC),University of Leeds,98425049,"24,673.86",Research Grant Expenditure
BEIS,UKRI - AHRC,25/03/2019,Research Grant Expenditure,Research Grants,University of Leeds,98425062,(0.04),Research Grant Expenditure
BEIS,UKRI - AHRC,25/03/2019,Research Grant Expenditure,Research Grants,University of Leeds,98425076,"29,325.52",Research Grant Expenditure
BEIS,UKRI - AHRC,25/03/2019,Research Grant Expenditure,Global Challenges Research Fund (GCRF),University of Leeds,98425091,"1,822.99",Research Grant Expenditure
BEIS,UKRI - AHRC,25/03/2019,Research Grant Expenditure,Follow-on Fund,University of Leeds,98425099,(0.04),Research Grant Expenditure
BEIS,UKRI - AHRC,25/03/2019,Research Grant Expenditure,Follow-on Fund,University of Leeds,98425101,"(4,995.94)",Research Grant Expenditure
BEIS,UKRI - AHRC,25/03/2019,Research Grant Expenditure,Networks & Workshops,University of Leeds,98425111,"4,514.22",Research Grant Expenditure
BEIS,UKRI - AHRC,25/03/2019,Research Grant Expenditure,Creative Economy,University of Leeds,98425130,"(3,940.77)",Research Grant Expenditure
BEIS,UKRI - AHRC,25/03/2019,Research Grant Expenditure,Follow-on Fund,University of Leeds,98425143,"66,717.67",Research Grant Expenditure
BEIS,UKRI - AHRC,25/03/2019,Fellowships,Research Fellowships,University of Leeds,98425251,"29,842.80",Fellowships
BEIS,UKRI - AHRC,25/03/2019,Fellowships,Research Fellowships,University of Leeds,98425253,"20,477.48",Fellowships
BEIS,UKRI - AHRC,25/03/2019,Research Grant Expenditure,Research Grants,University of Leicester,98424725,"50,772.37",Research Grant Expenditure
BEIS,UKRI - AHRC,25/03/2019,Research Grant Expenditure,Research Grants,University of Leicester,98424759,"60,619.51",Research Grant Expenditure
BEIS,UKRI - AHRC,25/03/2019,Research Grant Expenditure,Research Grants,University of Leicester,98424809,"68,385.09",Research Grant Expenditure
BEIS,UKRI - AHRC,25/03/2019,Fellowships,Research Fellowships,University of Leicester,98425202,"23,531.31",Fellowships
BEIS,UKRI - AHRC,25/03/2019,Fellowships,Research Fellowships,University of Leicester,98425202,"23,531.31",Fellowships
BEIS,UKRI - AHRC,25/03/2019,Research Grant Expenditure,Networks & Workshops,University of Lincoln,98424853,"6,624.10",Research Grant Expenditure
BEIS,UKRI - AHRC,25/03/2019,Research Grant Expenditure,Global Challenges Research Fund (GCRF),University of Lincoln,98424893,"86,399.39",Research Grant Expenditure
BEIS,UKRI - AHRC,25/03/2019,Research Grant Expenditure,Follow-on Fund,University of Lincoln,98425092,"17,983.60",Research Grant Expenditure
BEIS,UKRI - AHRC,25/03/2019,Research Grant Expenditure,Translating Cultures,University of Liverpool,98424662,"15,000.00",Research Grant Expenditure
BEIS,UKRI - AHRC,25/03/2019,Research Grant Expenditure,Research Grants,University of Liverpool,98424706,"49,114.19",Research Grant Expenditure
BEIS,UKRI - AHRC,25/03/2019,Research Grant Expenditure,Networks & Workshops,University of Liverpool,98424746,"4,869.18",Research Grant Expenditure
BEIS,UKRI - AHRC,25/03/2019,Research Grant Expenditure,Networks & Workshops,University of Liverpool,98424746,"4,908.62",Research Grant Expenditure
BEIS,UKRI - AHRC,25/03/2019,Research Grant Expenditure,Research Grants,University of Liverpool,98424777,"47,588.66",Research Grant Expenditure
BEIS,UKRI - AHRC,25/03/2019,Research Grant Expenditure,Global Challenges Research Fund (GCRF),University of Liverpool,98424789,"39,413.45",Research Grant Expenditure
BEIS,UKRI - AHRC,25/03/2019,Research Grant Expenditure,Global Challenges Research Fund (GCRF),University of Liverpool,98424795,"114,362.69",Research Grant Expenditure
BEIS,UKRI - AHRC,25/03/2019,Research Grant Expenditure,Newton Programme,University of Liverpool,98424836,"23,544.51",Research Grant Expenditure
BEIS,UKRI - AHRC,25/03/2019,Research Grant Expenditure,Research Grants,University of Liverpool,98424867,"48,171.34",Research Grant Expenditure
BEIS,UKRI - AHRC,25/03/2019,Research Grant Expenditure,Research Grants,University of Liverpool,98424871,"20,222.93",Research Grant Expenditure
BEIS,UKRI - AHRC,25/03/2019,Research Grant Expenditure,Newton Programme,University of Liverpool,98424992,"26,525.62",Research Grant Expenditure
BEIS,UKRI - AHRC,25/03/2019,Research Grant Expenditure,Fund for International Collaboration (FIC),University of Liverpool,98425048,"25,203.11",Research Grant Expenditure
BEIS,UKRI - AHRC,25/03/2019,Research Grant Expenditure,Research Grants,University of Liverpool,98425056,"(17,386.05)",Research Grant Expenditure
BEIS,UKRI - AHRC,25/03/2019,Research Grant Expenditure,Follow-on Fund,University of Liverpool,98425117,"58,948.56",Research Grant Expenditure
BEIS,UKRI - AHRC,25/03/2019,Research Grant Expenditure,Research Grants,University of London,98425054,"32,381.54",Research Grant Expenditure
BEIS,UKRI - AHRC,25/03/2019,Research Grant Expenditure,Research Grants,University of Newcastle Upon Tyne,98424653,"36,655.04",Research Grant Expenditure
BEIS,UKRI - AHRC,25/03/2019,Research Grant Expenditure,Research Grants,University of Newcastle Upon Tyne,98424676,"52,925.20",Research Grant Expenditure
BEIS,UKRI - AHRC,25/03/2019,Research Grant Expenditure,RCUK Newton Programme,University of Newcastle Upon Tyne,98424692,"25,365.16",Research Grant Expenditure
BEIS,UKRI - AHRC,25/03/2019,Research Grant Expenditure,Networks & Workshops,University of Newcastle Upon Tyne,98424755,"4,559.30",Research Grant Expenditure
BEIS,UKRI - AHRC,25/03/2019,Research Grant Expenditure,Research Grants,University of Newcastle Upon Tyne,98424822,"59,830.37",Research Grant Expenditure
BEIS,UKRI - AHRC,25/03/2019,Research Grant Expenditure,Research Grants,University of Newcastle Upon Tyne,98424868,"54,407.74",Research Grant Expenditure
BEIS,UKRI - AHRC,25/03/2019,Research Grant Expenditure,Research Grants,University of Newcastle Upon Tyne,98424925,"46,983.42",Research Grant Expenditure
BEIS,UKRI - AHRC,25/03/2019,Research Grant Expenditure,Creative Economy,University of Newcastle Upon Tyne,98424947,"31,988.61",Research Grant Expenditure
BEIS,UKRI - AHRC,25/03/2019,Research Grant Expenditure,Innovation Placements (NPIF),University of Newcastle Upon Tyne,98424965,"29,486.93",Research Grant Expenditure
BEIS,UKRI - AHRC,25/03/2019,Research Grant Expenditure,Innovation Placements (NPIF),University of Newcastle Upon Tyne,98424965,"29,486.93",Research Grant Expenditure
BEIS,UKRI - AHRC,25/03/2019,Research Grant Expenditure,Research Grants,University of Newcastle Upon Tyne,98424990,"41,912.49",Research Grant Expenditure
BEIS,UKRI - AHRC,25/03/2019,Research Grant Expenditure,Global Challenges Research Fund (GCRF),University of Newcastle Upon Tyne,98425000,"92,289.68",Research Grant Expenditure
